Workbook

Sheet Instructions
A1: Instructions | K1: Year | L1: Month
A2: Kindly read All Instructions before Use Holistic Card Utitly | K2: 2022 | L2: Sept
A3: Note | B3: USE MS office 2010 and Above | K3: 2023 | L3: March
A4: 1 | B4: When you see a security warning, select Enable Content
A5: 2 | B5: if Still Warning File not Work . Then Close this File.Right-click the file and choose Properties from the context menu. At the bottom of the General tab, select the Unblock checkbox and select OK. | K5: 2024
A6: 3 | B6: In All Sheet Use only or Click on Yellow coloured Filled Cell to Enter or Select Data. Rest Cells Are Locked | K6: 2025
A7: 4 | B7: Now Goto Entry Sheet. Then Enter Data ( Marks) in Yellow cell thier | K7: 2026
A8: 5 | B8: you can copy Paste Students Data Like Name ,Father Name, Class Etc. From Epunjab Student Report Excel File | K8: 2029
A9: 6 | B9: After Entered All data in yellow cell of Entry Sheet . Goto Holistic Card to View/Print report card of each Students | K9: 2030
A10: 7 | B10: ਤੁਸੀ ਕਿਸੇ ਤਰਾਂ ਦੇ ਸੁਝਾਅ ਅਤੇ ਫੀਡਬੈਕ ਲਈ ਈਮੇਲ abhi072011@gmail.com ਤੇ ਸਪੰਰਕ ਕਰ ਸਕਦੇ ਹੋ
B11: Watch Youtube Video Before Use to Understand

Sheet Entry Sheet
EU1: Drawing
B2: ਸਕੂਲ ਦਾ ਨਾਮ ਅਤੇ ਪਤਾ : >> | D2: srkwrI hweI skUL | V2: Enter No. of Working Days | FR2: ਵਿਭਾਗ ਵੱਲੋਂ ਨਿਸ਼ਚਿਤ ਸਾਰੀਆਂ ਸਹਿ ਅਕਾਦਮਿਕ ਗਤੀਵਿਧੀਆਂ ਵਿੱਚ ਹਿੱਸਾ ਲਿਆ ਗਿਆ
B3: Udise Code >>>> | D3: 0 | E3: 3 | F3: 0 | G3: 9 | H3: 0 | I3: 4 | J3: 0 | K3: 1 | V3: Apr | W3: May | X3: Jul | Y3: Aug | Z3: Sep | AA3: Oct | AB3: Nov | AC3: Dec | AD3: Jan | AE3: Feb | AF3: Mar | AG3: Total | AU3: SUBJECT PUNJABI | BH3: SUBJECT HINDI | BU3: SUBJECT ENGLISH | CG3: SUBJECT MATHEMATICS | CU3: SUBJECT SCIENCE | DI3: SUBJECT SOCIAL SCIENCE | DV3: SUBJECT COMPUTER SCIENCE | EH3: SUBJECT PHYSICAL | EU3: SUBJECT ELECTIVE | FL3: participation of student in co-curricular/ extra-curricular activities and sports at School / Block / District / State level | FR3: ਵਿਦਿਆਰਥੀਆਂ ਵੱਲੋਂ ਹਰ ਪ੍ਰਤੀਯੋਗਤਾ ਅਤੇ ਸਹਿ- ਕਿਰਿਆ ਵਿੱਚ ਸ਼ਾਨਦਾਰ ਪ੍ਰਦਰਸ਼ਨ ਕੀਤਾ ਗਿਆ
B4: Only Fill Yellow Cells | V4: 25 | W4: 30 | X4: 30 | Y4: 30 | Z4: 30 | AA4: 30 | AB4: 30 | AC4: 30 | AD4: 30 | AE4: 30 | AF4: 30 | AG4: =SUM(V4:AF4) -> 325 | AU4: EXAM MARKS | AZ4: CCE/INA MARKS | BF4: PBI TOTAL (100) | BG4: GRADE | BH4: EXAM MARKS | BM4: CCE/INA MARKS | BS4: HINDI TOTAL (100) | BT4: GRADE | BU4: EXAM MARKS | BZ4: CCE/INA MARKS | CE4: HINDI TOTAL (100) | CF4: GRADE | CG4: EXAM MARKS | CL4: CCE/INA MARKS | CS4: TOTAL (100) | CT4: GRADE | CU4: EXAM MARKS | CZ4: CCE/INA MARKS | DG4: SCI TOTAL (100) | DH4: GRADE | DI4: EXAM MARKS | DN4: CCE/INA MARKS | DT4: SS TOTAL (100) | DU4: GRADE | DV4: EXAM MARKS | EA4: CCE/INA MARKS /Practical | EF4: CS TOTAL (100) | EG4: GRADE | EH4: EXAM MARKS | EM4: CCE/INA MARKS | ES4: PHYSICAL TOTAL (100) | ET4: GRADE | EU4: EXAM MARKS | EZ4: CCE/INA MARKS | FF4: TOTAL (100) | FG4: GRADE | FR4: ਖੇਡਾਂ ਸਬੰਧੀ ਸਾਰੀ ਗਤੀਵਿਧੀਆਂ ਵਿੱਚ ਬਲਾਕ, ਜਿਲਾ, ਰਾਜ ਪੱਧਰੀ ਤੇ ਵਿਚ ਭਾਗ ਲਿਆ ਲੈ ਕੇ ਪੁਜੀਸ਼ਨਾਂ ਹਾਸਿਲ ਕੀਤੀਆਂ ਗਈਆਂ
V5: No. of Days Attended Montly by student | AH5: % of Attendace Montly by student | AU5: 20 | AV5: 80 | AW5: 20 | AX5: 80 | AY5: 80 | AZ5: 6 | BA5: 3 | BB5: 3 | BC5: 7 | BD5: 1 | BE5: 20 | BH5: 20 | BI5: 80 | BJ5: 20 | BK5: 80 | BL5: 80 | BM5: 6 | BN5: 3 | BO5: 3 | BP5: 7 | BQ5: 1 | BR5: 20 | BU5: 20 | BV5: 80 | BW5: 20 | BX5: 80 | BY5: 80 | BZ5: 10 | CA5: 2 | CB5: 2 | CC5: 6 | CD5: 20 | CG5: 20 | CH5: 80 | CI5: 20 | CJ5: 80 | CK5: 80 | CL5: 10 | CM5: 2 | CN5: 2 | CO5: 2 | CP5: 2 | CQ5: 2 | CR5: 20 | CU5: 20 | CV5: 80 | CW5: 20 | CX5: 80 | CY5: 80 | CZ5: 10 | DA5: 2 | DB5: 2 | DC5: 2 | DD5: 2 | DE5: 2 | DF5: 20 | DI5: 20 | DJ5: 80 | DK5: 20 | DL5: 80 | DM5: 80 | DN5: 4 | DO5: 5 | DP5: 4 | DQ5: 1 | DR5: 6 | DS5: 20 | DV5: 20 | DW5: 40 | DX5: 20 | DY5: 40 | DZ5: 40 | EA5: 8 | EB5: 8 | EC5: 4 | ED5: 20 | EE5: 40 | EH5: 20 | EI5: 40 | EJ5: 20 | EK5: 40 | EL5: 40 | EM5: 3 | EN5: 2 | EO5: 4 | EP5: 1 | EQ5: 10 | ER5: 50 | EU5: 20 | EV5: 80 | EW5: 20 | EX5: 80 | EY5: 80 | EZ5: 10 | FA5: 5 | FB5: 4 | FC5: 1 | FD5: 20 | FH5: GRAND TOTAL (MAIN SUB) | FJ5: Total Grade | FK5: Pass/Fail | FR5: ਪ੍ਰਤੀਯੋਗਤਾ ਪ੍ਰੀਖਿਆ ਪ੍ਰੀਖਿਆ ਲਈ NMMS /PSTSE ਵਿਦਿਆਰਥੀਆਂ ਵੱਲੋਂ ਵੱਧ ਕੇ ਹਿੱਸਾ ਲਿਆ ਗਿਆ
B6: Sr. NO. | C6: ਨਾਮ: | D6: ਰੋਲ ਨੰਬਰ : | E6: ਦਾਖਲਾ ਨੰ: | F6: ਜਮਾਤ: | G6: Section | H6: ਜਨਮ ਮਿਤੀ | I6: ਪਤਾ | J6: Phone | K6: Mother Name | L6: Mother Qulaification | M6: Mother Occupation | N6: Father Name | O6: Father Qulaification | P6: Father Occupation | Q6: No. of Siblings | R6: Sibling's Age | S6: Mother Tongue | T6: Medium | U6: Rural /Urban | V6: Apr | W6: May | X6: Jul | Y6: Aug | Z6: Sep | AA6: Oct | AB6: Nov | AC6: Dec | AD6: Jan | AE6: Feb | AF6: Mar | AG6: Total | AH6: Apr | AI6: May | AJ6: Jul | AK6: Aug | AL6: Sep | AM6: Oct | AN6: Nov | AO6: Dec | AP6: Jan | AQ6: Feb | AR6: Mar | AS6: Total | AT6: 75% LESS | AU6: Bi monthly -I | AV6: Term Exam -1 | AW6: Bi monthly-II | AX6: Term II / Pre-Board | AY6: Final | AZ6: Practical / Project /Assignment | BA6: Performance, Cooperation and Discipline | BB6: Pre-Board/ Term Exam | BC6: Dictation and Creative Writing | BD6: Book Bank | BE6: Total | BH6: Bi monthly -I | BI6: Term Exam -1 | BJ6: Bi monthly-II | BK6: Term II / Pre-Board | BL6: Final | BM6: Practical / Project /Assignment | BN6: Performance, Cooperation and Discipline | BO6: Pre-Board/ Term Exam | BP6: Dictation and Creative Writing | BQ6: Book Bank | BR6: Total | BU6: Bi monthly -I | BV6: Term Exam -1 | BW6: Bi monthly-II | BX6: Term II / Pre-Board | BY6: Final | BZ6: Practical / Project Work/Assignment | CA6: Student Performance, Cooperation and Discipline | CB6: Pre-Board/ Term Exam | CC6: Notebook/Assignment/ Participation in tests | CD6: Total | CG6: Bi monthly -I | CH6: Term Exam -1 | CI6: Bi monthly-II | CJ6: Term II / Pre-Board | CK6: Final | CL6: Practical / Project Work/Assignment | CM6: Student Performance, Cooperation and Discipline in class | CN6: Pre-Board/ Term Exam | CO6: Concept Clarity and Model Presentation in Activity | CP6: Correlation of activity with daily life in Activity Fair | CQ6: Care of copies, Handwriting and Deposit of Old Books | CR6: Total | CU6: Bi monthly -I | CV6: Term Exam -1 | CW6: Bi monthly-II | CX6: Term II / Pre-Board | CY6: Final | CZ6: Practical / Project Work/Assignment | DA6: Student Performance, Cooperation and Discipline in class | DB6: Pre-Board/ Term Exam | DC6: Concept Clarity and Model Presentation in Activity | DD6: Correlation of activity with daily life in Activity Fair | DE6: Care of copies, Handwriting and Deposit of Old Books | DF6: Total | DI6: Bi monthly -I | DJ6: Term Exam -1 | DK6: Bi monthly-II | DL6: Term II / Pre-Board | DM6: Final | DN6: Term Exam/Bimonthly Tests | DO6: Pre Board | DP6: Interest in subject, (Home Work/ Note Book/Work Book) | DQ6: Book Bank | DR6: Project work / Activities ( Movements (1885-1919) | DS6: Total | DV6: Bi monthly -I | DW6: Term Exam -1 | DX6: Bi monthly-II | DY6: Term II / Pre-Board | DZ6: Final | EA6: Student Performance, Cooperation and Discipline | EB6: Pre-Board/ Term Exam | EC6: Care of copies, and Deposit of Old Books | ED6: Total | EE6: Practical | EH6: Bi monthly -I | EI6: Term Exam -1 | EJ6: Bi monthly-II | EK6: Term II / Pre-Board | EL6: Final | EM6: Practical / Project Work/Assignment | EN6: Student Performance, Cooperation and Discipline | EO6: Pre-Board/ Term Exam | EP6: Care of copies, Handwriting and Deposit of Old Book | EQ6: Total | ER6: Practical | EU6: Bi monthly -I | EV6: Term Exam -1 | EW6: Bi monthly-II | EX6: Term II / Pre-Board | EY6: Final | EZ6: Practical / Project Work/Assignment | FA6: Student Performance, Cooperation and Discipline | FB6: Pre-Board/ Term Exam | FC6: Care of copies, Handwriting and Deposit of Old Book | FD6: Total | FE6: Practical | FI6: % Age of Total | FL6: Term1 | FM6: Term 2 | FN6: Annual | FR6: ਵਿਦਿਆਰਥੀਆਂ ਵੱਲੋਂ ਹਾਊਸ ਇੰਚਾਰਜ ਵੱਲੋਂ ਦਿੱਤੀ ਗਈ ਗਤੀਵਿਧੀਆਂ ਵਿੱਚ ਬਾਕਮਾਲ ਕੰਮ ਕੀਤਾ ਗਿਆ
B7: 1 | C7: Ram | D7: 1 | F7: 6th | H7: 2000-10-17 | J7: 987654321 | K7: sonI | L7: 10vI | N7: rwm | O7: 5vI. | P7: lybr | Q7: 1 | R7: 10 | U7: Rural | V7: 24 | W7: 23 | X7: 26 | Y7: 24 | Z7: 21 | AA7: 21 | AB7: 5 | AC7: 21 | AD7: 24 | AE7: 26 | AF7: 16 | AG7: =SUM(V7:AF7) -> 231 | AH7: =V7/$V$4 -> 0.96 | AI7: =W7/$W$4 -> 0.7666666667 | AJ7: =X7/$X$4 -> 0.8666666667 | AK7: =Y7/$Y$4 -> 0.8 | AL7: =Z7/$Z$4 -> 0.7 | AM7: =AA7/$AA$4 -> 0.7 | AN7: =AB7/$AB$4 -> 0.1666666667 | AO7: =AC7/$AC$4 -> 0.7 | AP7: =AD7/$AD$4 -> 0.8 | AQ7: =AE7/$AE$4 -> 0.8666666667 | AR7: =AF7/$AF$4 -> 0.5333333333 | AS7: =AG7/$AG$4 -> 0.7107692308 | AY7: 80 | AZ7: 6 | BA7: 3 | BB7: 3 | BC7: 7 | BD7: 1 | BE7: =SUM(AZ7:BD7) -> 20 | BF7: =BE7+AY7 -> 100 | BG7: =IFERROR(IF(BF7>90,"A+",IF(BF7>80,"A",IF(BF7>70,"B+",IF(BF7>60,"B",IF(BF7>50,"C+",IF(BF7>40,"C",IF(BF7>=33,"D","E"))))))),"Abs") -> A+ | BH7: 20 | BI7: 80 | BJ7: 20 | BK7: 80 | BL7: 80 | BM7: 6 | BN7: 3 | BO7: 3 | BP7: 7 | BQ7: 1 | BR7: =SUM(BM7:BQ7) -> 20 | BS7: =BR7+BL7 -> 100 | BT7: =IFERROR(IF(BS7>90,"A+",IF(BS7>80,"A",IF(BS7>70,"B+",IF(BS7>60,"B",IF(BS7>50,"C+",IF(BS7>40,"C",IF(BS7>=33,"D","E"))))))),"Abs") -> A+ | BU7: 20 | BV7: 80 | BW7: 20 | BX7: 80 | BY7: 80 | BZ7: 10 | CA7: 2 | CB7: 2 | CC7: 6 | CD7: =SUM(BZ7:CC7) -> 20 | CE7: =CD7+BY7 -> 100 | CF7: =IFERROR(IF(CE7>90,"A+",IF(CE7>80,"A",IF(CE7>70,"B+",IF(CE7>60,"B",IF(CE7>50,"C+",IF(CE7>40,"C",IF(CE7>=33,"D","E"))))))),"Abs") -> A+ | CG7: 20 | CH7: 80 | CI7: 20 | CJ7: 80 | CK7: 80 | CL7: 10 | CM7: 2 | CN7: 2 | CO7: 2 | CP7: 2 | CQ7: 2 | CR7: =SUM(CL7:CQ7) -> 20 | CS7: =CR7+CK7 -> 100 | CT7: =IFERROR(IF(CS7>90,"A+",IF(CS7>80,"A",IF(CS7>70,"B+",IF(CS7>60,"B",IF(CS7>50,"C+",IF(CS7>40,"C",IF(CS7>=33,"D","E"))))))),"Abs") -> A+ | CU7: 20 | CV7: 80 | CW7: 20 | CX7: 80 | CY7: 80 | CZ7: 10 | DA7: 2 | DB7: 2 | DC7: 2 | DD7: 2 | DE7: 2 | DF7: =SUM(CZ7:DE7) -> 20 | DG7: =DF7+CY7 -> 100 | DH7: =IFERROR(IF(DG7>90,"A+",IF(DG7>80,"A",IF(DG7>70,"B+",IF(DG7>60,"B",IF(DG7>50,"C+",IF(DG7>40,"C",IF(DG7>=33,"D","E"))))))),"Abs") -> A+ | DI7: 20 | DJ7: 80 | DK7: 20 | DL7: 80 | DM7: 80 | DN7: 4 | DO7: 5 | DP7: 4 | DQ7: 1 | DR7: 6 | DS7: =SUM(DN7:DR7) -> 20 | DT7: =DS7+DM7 -> 100 | DU7: =IFERROR(IF(DT7>90,"A+",IF(DT7>80,"A",IF(DT7>70,"B+",IF(DT7>60,"B",IF(DT7>50,"C+",IF(DT7>40,"C",IF(DT7>=33,"D","E"))))))),"Abs") -> A+ | DV7: 20 | DW7: 40 | DX7: 20 | DY7: 40 | DZ7: 40 | EA7: 8 | EB7: 8 | EC7: 4 | ED7: =SUM(EA7:EC7) -> 20 | EE7: 40 | EF7: =EE7+ED7+DZ7 -> 100 | EG7: =IFERROR(IF(EF7>90,"A+",IF(EF7>80,"A",IF(EF7>70,"B+",IF(EF7>60,"B",IF(EF7>50,"C+",IF(EF7>40,"C",IF(EF7>=33,"D","E"))))))),"Abs") -> A+ | EH7: 20 | EI7: 40 | EJ7: 20 | EK7: 40 | EL7: 40 | EM7: 3 | EN7: 2 | EO7: 4 | EP7: 1 | EQ7: =SUM(EM7:EP7) -> 10 | ER7: 50 | ES7: =ER7+EQ7+EL7 -> 100 | ET7: =IFERROR(IF(ES7>90,"A+",IF(ES7>80,"A",IF(ES7>70,"B+",IF(ES7>60,"B",IF(ES7>50,"C+",IF(ES7>40,"C",IF(ES7>=33,"D","E"))))))),"Abs") -> A+ | EU7: 20 | EV7: 80 | EW7: 20 | EX7: 80 | EY7: 80 | EZ7: 10 | FA7: 5 | FB7: 4 | FC7: 1 | FD7: =SUM(EZ7:FC7) -> 20 | FE7: 10 | FF7: =FE7+FD7+EY7 -> 110 | FG7: =IFERROR(IF(FF7>90,"A+",IF(FF7>80,"A",IF(FF7>70,"B+",IF(FF7>60,"B",IF(FF7>50,"C+",IF(FF7>40,"C",IF(FF7>=33,"D","E"))))))),"Abs") -> A+ | FH7: =IF(AND(MIN(AY7,BL7,BY7,CK7,CY7,DM7)>19,MIN(BF7,BS7,CE7,CS7,DG7,DT7)>32),SUM(BF7,BS7,CE7,CS7,DG7,DT7),"---") -> 600 | FI7: =IFERROR(FH7/600*100,"ERR") -> 100 | FJ7: =IF(FI7="ERR","",(IF(FI7>90,"A+",IF(FI7>80,"A",IF(FI7>70,"B+",IF(FI7>60,"B",IF(FI7>50,"C+",IF(FI7>40,"C",IF(FI7>=33,"D",IF(FI7<33,"E","")))))))))) -> A+ | FK7: =IF(FI7="ERR","----",IF(FI7>=33,"ਪਾਸ","--")) -> ਪਾਸ | FL7: ਵਿਭਾਗ ਵੱਲੋਂ ਨਿਸ਼ਚਿਤ ਸਾਰੀਆਂ ਸਹਿ ਅਕਾਦਮਿਕ ਗਤੀਵਿਧੀਆਂ ਵਿੱਚ ਹਿੱਸਾ ਲਿਆ ਗਿਆ | FM7: ਵਿਦਿਆਰਥੀਆਂ ਵੱਲੋਂ ਹਰ ਪ੍ਰਤੀਯੋਗਤਾ ਅਤੇ ਸਹਿ- ਕਿਰਿਆ ਵਿੱਚ ਸ਼ਾਨਦਾਰ ਪ੍ਰਦਰਸ਼ਨ ਕੀਤਾ ਗਿਆ | FN7: ਵਿਭਾਗ ਵੱਲੋਂ ਨਿਸ਼ਚਿਤ ਸਾਰੀਆਂ ਸਹਿ ਅਕਾਦਮਿਕ ਗਤੀਵਿਧੀਆਂ ਵਿੱਚ ਹਿੱਸਾ ਲਿਆ ਗਿਆ | FR7: ਬੱਚਿਆਂ ਵੱਲੋਂ ਸਾਲ ਵਿੱਚ ਹਰ ਮਹੱਤਵਪੂਰਨ ਦਿਨ ਤੇ ਪੋਸਟਰ ਡਿਬੇਟ ਕੁਇਜ਼ ਚਾਰਟ ਮਾਡਲ ਵਿੱਚ ਭਾਗ ਲਿਆ ਗਿਆ।
B8: 2 | C8: sham | D8: 2 | F8: 7th | H8: 2001-10-01 | J8: 123456789 | K8: sIqMU | L8: 8vI | N8: kulj | O8: AnpV | Q8: 1 | R8: 10 | U8: Rural | V8: 23 | W8: 19 | X8: 16 | Y8: 17 | Z8: 18 | AA8: 23 | AG8: =SUM(V8:AF8) -> 116 | AH8: =V8/$V$4 -> 0.92 | AI8: =W8/$W$4 -> 0.6333333333 | AJ8: =X8/$X$4 -> 0.5333333333 | AK8: =Y8/$Y$4 -> 0.5666666667 | AL8: =Z8/$Z$4 -> 0.6 | AM8: =AA8/$AA$4 -> 0.7666666667 | AN8: =AB8/$AB$4 -> 0 | AO8: =AC8/$AC$4 -> 0 | AP8: =AD8/$AD$4 -> 0 | AQ8: =AE8/$AE$4 -> 0 | AR8: =AF8/$AF$4 -> 0 | AS8: =AG8/$AG$4 -> 0.3569230769 | BE8: =SUM(AZ8:BD8) -> 0 | BF8: =BE8+AY8 -> 0 | BG8: =IFERROR(IF(BF8>90,"A+",IF(BF8>80,"A",IF(BF8>70,"B+",IF(BF8>60,"B",IF(BF8>50,"C+",IF(BF8>40,"C",IF(BF8>=33,"D","E"))))))),"Abs") -> E | BR8: =SUM(BM8:BQ8) -> 0 | BS8: =BR8+BL8 -> 0 | BT8: =IFERROR(IF(BS8>90,"A+",IF(BS8>80,"A",IF(BS8>70,"B+",IF(BS8>60,"B",IF(BS8>50,"C+",IF(BS8>40,"C",IF(BS8>=33,"D","E"))))))),"Abs") -> E | CD8: =SUM(BZ8:CC8) -> 0 | CE8: =CD8+BY8 -> 0 | CF8: =IFERROR(IF(CE8>90,"A+",IF(CE8>80,"A",IF(CE8>70,"B+",IF(CE8>60,"B",IF(CE8>50,"C+",IF(CE8>40,"C",IF(CE8>=33,"D","E"))))))),"Abs") -> E | CR8: =SUM(CL8:CQ8) -> 0 | CS8: =CR8+CK8 -> 0 | CT8: =IFERROR(IF(CS8>90,"A+",IF(CS8>80,"A",IF(CS8>70,"B+",IF(CS8>60,"B",IF(CS8>50,"C+",IF(CS8>40,"C",IF(CS8>=33,"D","E"))))))),"Abs") -> E | DF8: =SUM(CZ8:DE8) -> 0 | DG8: =DF8+CY8 -> 0 | DH8: =IFERROR(IF(DG8>90,"A+",IF(DG8>80,"A",IF(DG8>70,"B+",IF(DG8>60,"B",IF(DG8>50,"C+",IF(DG8>40,"C",IF(DG8>=33,"D","E"))))))),"Abs") -> E | DS8: =SUM(DN8:DR8) -> 0 | DT8: =DS8+DM8 -> 0 | DU8: =IFERROR(IF(DT8>90,"A+",IF(DT8>80,"A",IF(DT8>70,"B+",IF(DT8>60,"B",IF(DT8>50,"C+",IF(DT8>40,"C",IF(DT8>=33,"D","E"))))))),"Abs") -> E | ED8: =SUM(EA8:EC8) -> 0 | EF8: =EE8+ED8+DZ8 -> 0 | EG8: =IFERROR(IF(EF8>90,"A+",IF(EF8>80,"A",IF(EF8>70,"B+",IF(EF8>60,"B",IF(EF8>50,"C+",IF(EF8>40,"C",IF(EF8>=33,"D","E"))))))),"Abs") -> E | EQ8: =SUM(EM8:EP8) -> 0 | ES8: =ER8+EQ8+EL8 -> 0 | ET8: =IFERROR(IF(ES8>90,"A+",IF(ES8>80,"A",IF(ES8>70,"B+",IF(ES8>60,"B",IF(ES8>50,"C+",IF(ES8>40,"C",IF(ES8>=33,"D","E"))))))),"Abs") -> E | FD8: =SUM(EZ8:FC8) -> 0 | FF8: =FE8+FD8+EY8 -> 0 | FG8: =IFERROR(IF(FF8>90,"A+",IF(FF8>80,"A",IF(FF8>70,"B+",IF(FF8>60,"B",IF(FF8>50,"C+",IF(FF8>40,"C",IF(FF8>=33,"D","E"))))))),"Abs") -> E | FH8: =IF(AND(MIN(AY8,BL8,BY8,CK8,CY8,DM8)>19,MIN(BF8,BS8,CE8,CS8,DG8,DT8)>32),SUM(BF8,BS8,CE8,CS8,DG8,DT8),"---") -> --- | FI8: =IFERROR(FH8/600*100,"ERR") -> ERR | FJ8: =IF(FI8="ERR","",(IF(FI8>90,"A+",IF(FI8>80,"A",IF(FI8>70,"B+",IF(FI8>60,"B",IF(FI8>50,"C+",IF(FI8>40,"C",IF(FI8>=33,"D",IF(FI8<33,"E","")))))))))) ->  | FK8: =IF(FI8="ERR","----",IF(FI8>=33,"ਪਾਸ","--")) -> ---- | FR8: ਸਾਇੰਸ, ਗਣਿਤ ,ਸ. ਸ, ਅੰਗਰੇਜੀ ਮੇਲਿਆ ਦੌਰਾਨ ਬੱਚਿਆਂ ਦੇ ਸਗਰਮ ਭੂਮਿਕਾ ਨਿਭਾਈ
B9: 3 | D9: 3 | Q9: 1 | R9: 10 | U9: Rural | AG9: 0 | AH9: 0 | AI9: 0 | AJ9: 0 | AK9: 0 | AL9: 0 | AM9: 0 | AN9: 0 | AO9: 0 | AP9: 0 | AQ9: 0 | AR9: 0 | AS9: 0 | BE9: 0 | BF9: 0 | BG9: E | BR9: 0 | BS9: 0 | BT9: E | CD9: 0 | CE9: 0 | CF9: E | CR9: 0 | CS9: 0 | CT9: E | DF9: 0 | DG9: 0 | DH9: E | DS9: 0 | DT9: 0 | DU9: E | ED9: 0 | EF9: 0 | EG9: E | EQ9: 0 | ES9: 0 | ET9: E | FD9: 0 | FF9: 0 | FG9: E | FH9: --- | FI9: ERR | FK9: ---- | FR9: ਬੱਚਿਆਂ ਵੱਲੋਂ ਸਕੂਲ ਨੂੰ ਸਾਫ ਰੱਖਣਾ ਰੁੱਖ ਲਗਾਉਣਾ ਵਾਤਾਵਰਨ ਬਚਾਉਣ ਸਬੰਧੀ ਉਪਰਾਲੇ ਕੀਤੇ ਗਏ
B10: 4 | Q10: 1 | R10: 10 | AG10: 0 | AH10: 0 | AI10: 0 | AJ10: 0 | AK10: 0 | AL10: 0 | AM10: 0 | AN10: 0 | AO10: 0 | AP10: 0 | AQ10: 0 | AR10: 0 | AS10: 0 | BE10: 0 | BF10: 0 | BG10: E | BR10: 0 | BS10: 0 | BT10: E | CD10: 0 | CE10: 0 | CF10: E | CR10: 0 | CS10: 0 | CT10: E | DF10: 0 | DG10: 0 | DH10: E | DS10: 0 | DT10: 0 | DU10: E | ED10: 0 | EF10: 0 | EG10: E | EQ10: 0 | ES10: 0 | ET10: E | FD10: 0 | FF10: 0 | FG10: E | FH10: --- | FI10: ERR | FK10: ----
B11: 5 | AG11: 0 | AH11: 0 | AI11: 0 | AJ11: 0 | AK11: 0 | AL11: 0 | AM11: 0 | AN11: 0 | AO11: 0 | AP11: 0 | AQ11: 0 | AR11: 0 | AS11: 0 | BE11: 0 | BF11: 0 | BG11: E | BR11: 0 | BS11: 0 | BT11: E | CD11: 0 | CE11: 0 | CF11: E | CR11: 0 | CS11: 0 | CT11: E | DF11: 0 | DG11: 0 | DH11: E | DS11: 0 | DT11: 0 | DU11: E | ED11: 0 | EF11: 0 | EG11: E | EQ11: 0 | ES11: 0 | ET11: E | FD11: 0 | FF11: 0 | FG11: E | FH11: --- | FI11: ERR | FK11: ----
B12: 6 | AG12: 0 | AH12: 0 | AI12: 0 | AJ12: 0 | AK12: 0 | AL12: 0 | AM12: 0 | AN12: 0 | AO12: 0 | AP12: 0 | AQ12: 0 | AR12: 0 | AS12: 0 | BE12: 0 | BF12: 0 | BG12: E | BR12: 0 | BS12: 0 | BT12: E | CD12: 0 | CE12: 0 | CF12: E | CR12: 0 | CS12: 0 | CT12: E | DF12: 0 | DG12: 0 | DH12: E | DS12: 0 | DT12: 0 | DU12: E | ED12: 0 | EF12: 0 | EG12: E | EQ12: 0 | ES12: 0 | ET12: E | FD12: 0 | FF12: 0 | FG12: E | FH12: --- | FI12: ERR | FK12: ----
B13: 7 | AG13: 0 | AH13: 0 | AI13: 0 | AJ13: 0 | AK13: 0 | AL13: 0 | AM13: 0 | AN13: 0 | AO13: 0 | AP13: 0 | AQ13: 0 | AR13: 0 | AS13: 0 | BE13: 0 | BF13: 0 | BG13: E | BR13: 0 | BS13: 0 | BT13: E | CD13: 0 | CE13: 0 | CF13: E | CR13: 0 | CS13: 0 | CT13: E | DF13: 0 | DG13: 0 | DH13: E | DS13: 0 | DT13: 0 | DU13: E | ED13: 0 | EF13: 0 | EG13: E | EQ13: 0 | ES13: 0 | ET13: E | FD13: 0 | FF13: 0 | FG13: E | FH13: --- | FI13: ERR | FK13: ----
B14: 8 | AG14: 0 | AH14: 0 | AI14: 0 | AJ14: 0 | AK14: 0 | AL14: 0 | AM14: 0 | AN14: 0 | AO14: 0 | AP14: 0 | AQ14: 0 | AR14: 0 | AS14: 0 | BE14: 0 | BF14: 0 | BG14: E | BR14: 0 | BS14: 0 | BT14: E | CD14: 0 | CE14: 0 | CF14: E | CR14: 0 | CS14: 0 | CT14: E | DF14: 0 | DG14: 0 | DH14: E | DS14: 0 | DT14: 0 | DU14: E | ED14: 0 | EF14: 0 | EG14: E | EQ14: 0 | ES14: 0 | ET14: E | FD14: 0 | FF14: 0 | FG14: E | FH14: --- | FI14: ERR | FK14: ----
B15: 9 | AG15: 0 | AH15: 0 | AI15: 0 | AJ15: 0 | AK15: 0 | AL15: 0 | AM15: 0 | AN15: 0 | AO15: 0 | AP15: 0 | AQ15: 0 | AR15: 0 | AS15: 0 | BE15: 0 | BF15: 0 | BG15: E | BR15: 0 | BS15: 0 | BT15: E | CD15: 0 | CE15: 0 | CF15: E | CR15: 0 | CS15: 0 | CT15: E | DF15: 0 | DG15: 0 | DH15: E | DS15: 0 | DT15: 0 | DU15: E | ED15: 0 | EF15: 0 | EG15: E | EQ15: 0 | ES15: 0 | ET15: E | FD15: 0 | FF15: 0 | FG15: E | FH15: --- | FI15: ERR | FK15: ----
B16: 10 | AG16: 0 | AH16: 0 | AI16: 0 | AJ16: 0 | AK16: 0 | AL16: 0 | AM16: 0 | AN16: 0 | AO16: 0 | AP16: 0 | AQ16: 0 | AR16: 0 | AS16: 0 | BE16: 0 | BF16: 0 | BG16: E | BR16: 0 | BS16: 0 | BT16: E | CD16: 0 | CE16: 0 | CF16: E | CR16: 0 | CS16: 0 | CT16: E | DF16: 0 | DG16: 0 | DH16: E | DS16: 0 | DT16: 0 | DU16: E | ED16: 0 | EF16: 0 | EG16: E | EQ16: 0 | ES16: 0 | ET16: E | FD16: 0 | FF16: 0 | FG16: E | FH16: --- | FI16: ERR | FK16: ----
B17: 11 | AG17: 0 | AH17: 0 | AI17: 0 | AJ17: 0 | AK17: 0 | AL17: 0 | AM17: 0 | AN17: 0 | AO17: 0 | AP17: 0 | AQ17: 0 | AR17: 0 | AS17: 0 | BE17: 0 | BF17: 0 | BG17: E | BR17: 0 | BS17: 0 | BT17: E | CD17: 0 | CE17: 0 | CF17: E | CR17: 0 | CS17: 0 | CT17: E | DF17: 0 | DG17: 0 | DH17: E | DS17: 0 | DT17: 0 | DU17: E | ED17: 0 | EF17: 0 | EG17: E | EQ17: 0 | ES17: 0 | ET17: E | FD17: 0 | FF17: 0 | FG17: E | FH17: --- | FI17: ERR | FK17: ----
B18: 12 | AG18: 0 | AH18: 0 | AI18: 0 | AJ18: 0 | AK18: 0 | AL18: 0 | AM18: 0 | AN18: 0 | AO18: 0 | AP18: 0 | AQ18: 0 | AR18: 0 | AS18: 0 | BE18: 0 | BF18: 0 | BG18: E | BR18: 0 | BS18: 0 | BT18: E | CD18: 0 | CE18: 0 | CF18: E | CR18: 0 | CS18: 0 | CT18: E | DF18: 0 | DG18: 0 | DH18: E | DS18: 0 | DT18: 0 | DU18: E | ED18: 0 | EF18: 0 | EG18: E | EQ18: 0 | ES18: 0 | ET18: E | FD18: 0 | FF18: 0 | FG18: E | FH18: --- | FI18: ERR | FK18: ----
B19: 13 | AG19: 0 | AH19: 0 | AI19: 0 | AJ19: 0 | AK19: 0 | AL19: 0 | AM19: 0 | AN19: 0 | AO19: 0 | AP19: 0 | AQ19: 0 | AR19: 0 | AS19: 0 | BE19: 0 | BF19: 0 | BG19: E | BR19: 0 | BS19: 0 | BT19: E | CD19: 0 | CE19: 0 | CF19: E | CR19: 0 | CS19: 0 | CT19: E | DF19: 0 | DG19: 0 | DH19: E | DS19: 0 | DT19: 0 | DU19: E | ED19: 0 | EF19: 0 | EG19: E | EQ19: 0 | ES19: 0 | ET19: E | FD19: 0 | FF19: 0 | FG19: E | FH19: --- | FI19: ERR | FK19: ----
B20: 14 | AG20: 0 | AH20: 0 | AI20: 0 | AJ20: 0 | AK20: 0 | AL20: 0 | AM20: 0 | AN20: 0 | AO20: 0 | AP20: 0 | AQ20: 0 | AR20: 0 | AS20: 0 | BE20: 0 | BF20: 0 | BG20: E | BR20: 0 | BS20: 0 | BT20: E | CD20: 0 | CE20: 0 | CF20: E | CR20: 0 | CS20: 0 | CT20: E | DF20: 0 | DG20: 0 | DH20: E | DS20: 0 | DT20: 0 | DU20: E | ED20: 0 | EF20: 0 | EG20: E | EQ20: 0 | ES20: 0 | ET20: E | FD20: 0 | FF20: 0 | FG20: E | FH20: --- | FI20: ERR | FK20: ----
B21: 15 | AG21: 0 | AH21: 0 | AI21: 0 | AJ21: 0 | AK21: 0 | AL21: 0 | AM21: 0 | AN21: 0 | AO21: 0 | AP21: 0 | AQ21: 0 | AR21: 0 | AS21: 0 | BE21: 0 | BF21: 0 | BG21: E | BR21: 0 | BS21: 0 | BT21: E | CD21: 0 | CE21: 0 | CF21: E | CR21: 0 | CS21: 0 | CT21: E | DF21: 0 | DG21: 0 | DH21: E | DS21: 0 | DT21: 0 | DU21: E | ED21: 0 | EF21: 0 | EG21: E | EQ21: 0 | ES21: 0 | ET21: E | FD21: 0 | FF21: 0 | FG21: E | FH21: --- | FI21: ERR | FK21: ----
B22: 16 | AG22: 0 | AH22: 0 | AI22: 0 | AJ22: 0 | AK22: 0 | AL22: 0 | AM22: 0 | AN22: 0 | AO22: 0 | AP22: 0 | AQ22: 0 | AR22: 0 | AS22: 0 | BE22: 0 | BF22: 0 | BG22: E | BR22: 0 | BS22: 0 | BT22: E | CD22: 0 | CE22: 0 | CF22: E | CR22: 0 | CS22: 0 | CT22: E | DF22: 0 | DG22: 0 | DH22: E | DS22: 0 | DT22: 0 | DU22: E | ED22: 0 | EF22: 0 | EG22: E | EQ22: 0 | ES22: 0 | ET22: E | FD22: 0 | FF22: 0 | FG22: E | FH22: --- | FI22: ERR | FK22: ----
B23: 17 | AG23: 0 | AH23: 0 | AI23: 0 | AJ23: 0 | AK23: 0 | AL23: 0 | AM23: 0 | AN23: 0 | AO23: 0 | AP23: 0 | AQ23: 0 | AR23: 0 | AS23: 0 | BE23: 0 | BF23: 0 | BG23: E | BR23: 0 | BS23: 0 | BT23: E | CD23: 0 | CE23: 0 | CF23: E | CR23: 0 | CS23: 0 | CT23: E | DF23: 0 | DG23: 0 | DH23: E | DS23: 0 | DT23: 0 | DU23: E | ED23: 0 | EF23: 0 | EG23: E | EQ23: 0 | ES23: 0 | ET23: E | FD23: 0 | FF23: 0 | FG23: E | FH23: --- | FI23: ERR | FK23: ----
B24: 18 | AG24: 0 | AH24: 0 | AI24: 0 | AJ24: 0 | AK24: 0 | AL24: 0 | AM24: 0 | AN24: 0 | AO24: 0 | AP24: 0 | AQ24: 0 | AR24: 0 | AS24: 0 | BE24: 0 | BF24: 0 | BG24: E | BR24: 0 | BS24: 0 | BT24: E | CD24: 0 | CE24: 0 | CF24: E | CR24: 0 | CS24: 0 | CT24: E | DF24: 0 | DG24: 0 | DH24: E | DS24: 0 | DT24: 0 | DU24: E | ED24: 0 | EF24: 0 | EG24: E | EQ24: 0 | ES24: 0 | ET24: E | FD24: 0 | FF24: 0 | FG24: E | FH24: --- | FI24: ERR | FK24: ----
B25: 19 | AG25: 0 | AH25: 0 | AI25: 0 | AJ25: 0 | AK25: 0 | AL25: 0 | AM25: 0 | AN25: 0 | AO25: 0 | AP25: 0 | AQ25: 0 | AR25: 0 | AS25: 0 | BE25: 0 | BF25: 0 | BG25: E | BR25: 0 | BS25: 0 | BT25: E | CD25: 0 | CE25: 0 | CF25: E | CR25: 0 | CS25: 0 | CT25: E | DF25: 0 | DG25: 0 | DH25: E | DS25: 0 | DT25: 0 | DU25: E | ED25: 0 | EF25: 0 | EG25: E | EQ25: 0 | ES25: 0 | ET25: E | FD25: 0 | FF25: 0 | FG25: E | FH25: --- | FI25: ERR | FK25: ----
B26: 20 | AG26: 0 | AH26: 0 | AI26: 0 | AJ26: 0 | AK26: 0 | AL26: 0 | AM26: 0 | AN26: 0 | AO26: 0 | AP26: 0 | AQ26: 0 | AR26: 0 | AS26: 0 | BE26: 0 | BF26: 0 | BG26: E | BR26: 0 | BS26: 0 | BT26: E | CD26: 0 | CE26: 0 | CF26: E | CR26: 0 | CS26: 0 | CT26: E | DF26: 0 | DG26: 0 | DH26: E | DS26: 0 | DT26: 0 | DU26: E | ED26: 0 | EF26: 0 | EG26: E | EQ26: 0 | ES26: 0 | ET26: E | FD26: 0 | FF26: 0 | FG26: E | FH26: --- | FI26: ERR | FK26: ----
B27: 21 | AG27: 0 | AH27: 0 | AI27: 0 | AJ27: 0 | AK27: 0 | AL27: 0 | AM27: 0 | AN27: 0 | AO27: 0 | AP27: 0 | AQ27: 0 | AR27: 0 | AS27: 0 | BE27: 0 | BF27: 0 | BG27: E | BR27: 0 | BS27: 0 | BT27: E | CD27: 0 | CE27: 0 | CF27: E | CR27: 0 | CS27: 0 | CT27: E | DF27: 0 | DG27: 0 | DH27: E | DS27: 0 | DT27: 0 | DU27: E | ED27: 0 | EF27: 0 | EG27: E | EQ27: 0 | ES27: 0 | ET27: E | FD27: 0 | FF27: 0 | FG27: E | FH27: --- | FI27: ERR | FK27: ----
B28: 22 | AG28: 0 | AH28: 0 | AI28: 0 | AJ28: 0 | AK28: 0 | AL28: 0 | AM28: 0 | AN28: 0 | AO28: 0 | AP28: 0 | AQ28: 0 | AR28: 0 | AS28: 0 | BE28: 0 | BF28: 0 | BG28: E | BR28: 0 | BS28: 0 | BT28: E | CD28: 0 | CE28: 0 | CF28: E | CR28: 0 | CS28: 0 | CT28: E | DF28: 0 | DG28: 0 | DH28: E | DS28: 0 | DT28: 0 | DU28: E | ED28: 0 | EF28: 0 | EG28: E | EQ28: 0 | ES28: 0 | ET28: E | FD28: 0 | FF28: 0 | FG28: E | FH28: --- | FI28: ERR | FK28: ----
B29: 23 | AG29: 0 | AH29: 0 | AI29: 0 | AJ29: 0 | AK29: 0 | AL29: 0 | AM29: 0 | AN29: 0 | AO29: 0 | AP29: 0 | AQ29: 0 | AR29: 0 | AS29: 0 | BE29: 0 | BF29: 0 | BG29: E | BR29: 0 | BS29: 0 | BT29: E | CD29: 0 | CE29: 0 | CF29: E | CR29: 0 | CS29: 0 | CT29: E | DF29: 0 | DG29: 0 | DH29: E | DS29: 0 | DT29: 0 | DU29: E | ED29: 0 | EF29: 0 | EG29: E | EQ29: 0 | ES29: 0 | ET29: E | FD29: 0 | FF29: 0 | FG29: E | FH29: --- | FI29: ERR | FK29: ----
B30: 24 | AG30: 0 | AH30: 0 | AI30: 0 | AJ30: 0 | AK30: 0 | AL30: 0 | AM30: 0 | AN30: 0 | AO30: 0 | AP30: 0 | AQ30: 0 | AR30: 0 | AS30: 0 | BE30: 0 | BF30: 0 | BG30: E | BR30: 0 | BS30: 0 | BT30: E | CD30: 0 | CE30: 0 | CF30: E | CR30: 0 | CS30: 0 | CT30: E | DF30: 0 | DG30: 0 | DH30: E | DS30: 0 | DT30: 0 | DU30: E | ED30: 0 | EF30: 0 | EG30: E | EQ30: 0 | ES30: 0 | ET30: E | FD30: 0 | FF30: 0 | FG30: E | FH30: --- | FI30: ERR | FK30: ----
B31: 25 | AG31: 0 | AH31: 0 | AI31: 0 | AJ31: 0 | AK31: 0 | AL31: 0 | AM31: 0 | AN31: 0 | AO31: 0 | AP31: 0 | AQ31: 0 | AR31: 0 | AS31: 0 | BE31: 0 | BF31: 0 | BG31: E | BR31: 0 | BS31: 0 | BT31: E | CD31: 0 | CE31: 0 | CF31: E | CR31: 0 | CS31: 0 | CT31: E | DF31: 0 | DG31: 0 | DH31: E | DS31: 0 | DT31: 0 | DU31: E | ED31: 0 | EF31: 0 | EG31: E | EQ31: 0 | ES31: 0 | ET31: E | FD31: 0 | FF31: 0 | FG31: E | FH31: --- | FI31: ERR | FK31: ----
B32: 26 | AG32: 0 | AH32: 0 | AI32: 0 | AJ32: 0 | AK32: 0 | AL32: 0 | AM32: 0 | AN32: 0 | AO32: 0 | AP32: 0 | AQ32: 0 | AR32: 0 | AS32: 0 | BE32: 0 | BF32: 0 | BG32: E | BR32: 0 | BS32: 0 | BT32: E | CD32: 0 | CE32: 0 | CF32: E | CR32: 0 | CS32: 0 | CT32: E | DF32: 0 | DG32: 0 | DH32: E | DS32: 0 | DT32: 0 | DU32: E | ED32: 0 | EF32: 0 | EG32: E | EQ32: 0 | ES32: 0 | ET32: E | FD32: 0 | FF32: 0 | FG32: E | FH32: --- | FI32: ERR | FK32: ----
B33: 27 | AG33: 0 | AH33: 0 | AI33: 0 | AJ33: 0 | AK33: 0 | AL33: 0 | AM33: 0 | AN33: 0 | AO33: 0 | AP33: 0 | AQ33: 0 | AR33: 0 | AS33: 0 | BE33: 0 | BF33: 0 | BG33: E | BR33: 0 | BS33: 0 | BT33: E | CD33: 0 | CE33: 0 | CF33: E | CR33: 0 | CS33: 0 | CT33: E | DF33: 0 | DG33: 0 | DH33: E | DS33: 0 | DT33: 0 | DU33: E | ED33: 0 | EF33: 0 | EG33: E | EQ33: 0 | ES33: 0 | ET33: E | FD33: 0 | FF33: 0 | FG33: E | FH33: --- | FI33: ERR | FK33: ----
B34: 28 | AG34: 0 | AH34: 0 | AI34: 0 | AJ34: 0 | AK34: 0 | AL34: 0 | AM34: 0 | AN34: 0 | AO34: 0 | AP34: 0 | AQ34: 0 | AR34: 0 | AS34: 0 | BE34: 0 | BF34: 0 | BG34: E | BR34: 0 | BS34: 0 | BT34: E | CD34: 0 | CE34: 0 | CF34: E | CR34: 0 | CS34: 0 | CT34: E | DF34: 0 | DG34: 0 | DH34: E | DS34: 0 | DT34: 0 | DU34: E | ED34: 0 | EF34: 0 | EG34: E | EQ34: 0 | ES34: 0 | ET34: E | FD34: 0 | FF34: 0 | FG34: E | FH34: --- | FI34: ERR | FK34: ----
B35: 29 | AG35: 0 | AH35: 0 | AI35: 0 | AJ35: 0 | AK35: 0 | AL35: 0 | AM35: 0 | AN35: 0 | AO35: 0 | AP35: 0 | AQ35: 0 | AR35: 0 | AS35: 0 | BE35: 0 | BF35: 0 | BG35: E | BR35: 0 | BS35: 0 | BT35: E | CD35: 0 | CE35: 0 | CF35: E | CR35: 0 | CS35: 0 | CT35: E | DF35: 0 | DG35: 0 | DH35: E | DS35: 0 | DT35: 0 | DU35: E | ED35: 0 | EF35: 0 | EG35: E | EQ35: 0 | ES35: 0 | ET35: E | FD35: 0 | FF35: 0 | FG35: E | FH35: --- | FI35: ERR | FK35: ----
B36: 30 | AG36: 0 | AH36: 0 | AI36: 0 | AJ36: 0 | AK36: 0 | AL36: 0 | AM36: 0 | AN36: 0 | AO36: 0 | AP36: 0 | AQ36: 0 | AR36: 0 | AS36: 0 | BE36: 0 | BF36: 0 | BG36: E | BR36: 0 | BS36: 0 | BT36: E | CD36: 0 | CE36: 0 | CF36: E | CR36: 0 | CS36: 0 | CT36: E | DF36: 0 | DG36: 0 | DH36: E | DS36: 0 | DT36: 0 | DU36: E | ED36: 0 | EF36: 0 | EG36: E | EQ36: 0 | ES36: 0 | ET36: E | FD36: 0 | FF36: 0 | FG36: E | FH36: --- | FI36: ERR | FK36: ----
B37: 31 | AG37: 0 | AH37: 0 | AI37: 0 | AJ37: 0 | AK37: 0 | AL37: 0 | AM37: 0 | AN37: 0 | AO37: 0 | AP37: 0 | AQ37: 0 | AR37: 0 | AS37: 0 | BE37: 0 | BF37: 0 | BG37: E | BR37: 0 | BS37: 0 | BT37: E | CD37: 0 | CE37: 0 | CF37: E | CR37: 0 | CS37: 0 | CT37: E | DF37: 0 | DG37: 0 | DH37: E | DS37: 0 | DT37: 0 | DU37: E | ED37: 0 | EF37: 0 | EG37: E | EQ37: 0 | ES37: 0 | ET37: E | FD37: 0 | FF37: 0 | FG37: E | FH37: --- | FI37: ERR | FK37: ----
B38: 32 | AG38: 0 | AH38: 0 | AI38: 0 | AJ38: 0 | AK38: 0 | AL38: 0 | AM38: 0 | AN38: 0 | AO38: 0 | AP38: 0 | AQ38: 0 | AR38: 0 | AS38: 0 | BE38: 0 | BF38: 0 | BG38: E | BR38: 0 | BS38: 0 | BT38: E | CD38: 0 | CE38: 0 | CF38: E | CR38: 0 | CS38: 0 | CT38: E | DF38: 0 | DG38: 0 | DH38: E | DS38: 0 | DT38: 0 | DU38: E | ED38: 0 | EF38: 0 | EG38: E | EQ38: 0 | ES38: 0 | ET38: E | FD38: 0 | FF38: 0 | FG38: E | FH38: --- | FI38: ERR | FK38: ----
B39: 33 | AG39: 0 | AH39: 0 | AI39: 0 | AJ39: 0 | AK39: 0 | AL39: 0 | AM39: 0 | AN39: 0 | AO39: 0 | AP39: 0 | AQ39: 0 | AR39: 0 | AS39: 0 | BE39: 0 | BF39: 0 | BG39: E | BR39: 0 | BS39: 0 | BT39: E | CD39: 0 | CE39: 0 | CF39: E | CR39: 0 | CS39: 0 | CT39: E | DF39: 0 | DG39: 0 | DH39: E | DS39: 0 | DT39: 0 | DU39: E | ED39: 0 | EF39: 0 | EG39: E | EQ39: 0 | ES39: 0 | ET39: E | FD39: 0 | FF39: 0 | FG39: E | FH39: --- | FI39: ERR | FK39: ----
B40: 34 | AG40: 0 | AH40: 0 | AI40: 0 | AJ40: 0 | AK40: 0 | AL40: 0 | AM40: 0 | AN40: 0 | AO40: 0 | AP40: 0 | AQ40: 0 | AR40: 0 | AS40: 0 | BE40: 0 | BF40: 0 | BG40: E | BR40: 0 | BS40: 0 | BT40: E | CD40: 0 | CE40: 0 | CF40: E | CR40: 0 | CS40: 0 | CT40: E | DF40: 0 | DG40: 0 | DH40: E | DS40: 0 | DT40: 0 | DU40: E | ED40: 0 | EF40: 0 | EG40: E | EQ40: 0 | ES40: 0 | ET40: E | FD40: 0 | FF40: 0 | FG40: E | FH40: --- | FI40: ERR | FK40: ----
B41: 35 | AG41: 0 | AH41: 0 | AI41: 0 | AJ41: 0 | AK41: 0 | AL41: 0 | AM41: 0 | AN41: 0 | AO41: 0 | AP41: 0 | AQ41: 0 | AR41: 0 | AS41: 0 | BE41: 0 | BF41: 0 | BG41: E | BR41: 0 | BS41: 0 | BT41: E | CD41: 0 | CE41: 0 | CF41: E | CR41: 0 | CS41: 0 | CT41: E | DF41: 0 | DG41: 0 | DH41: E | DS41: 0 | DT41: 0 | DU41: E | ED41: 0 | EF41: 0 | EG41: E | EQ41: 0 | ES41: 0 | ET41: E | FD41: 0 | FF41: 0 | FG41: E | FH41: --- | FI41: ERR | FK41: ----
B42: 36 | AG42: 0 | AH42: 0 | AI42: 0 | AJ42: 0 | AK42: 0 | AL42: 0 | AM42: 0 | AN42: 0 | AO42: 0 | AP42: 0 | AQ42: 0 | AR42: 0 | AS42: 0 | BE42: 0 | BF42: 0 | BG42: E | BR42: 0 | BS42: 0 | BT42: E | CD42: 0 | CE42: 0 | CF42: E | CR42: 0 | CS42: 0 | CT42: E | DF42: 0 | DG42: 0 | DH42: E | DS42: 0 | DT42: 0 | DU42: E | ED42: 0 | EF42: 0 | EG42: E | EQ42: 0 | ES42: 0 | ET42: E | FD42: 0 | FF42: 0 | FG42: E | FH42: --- | FI42: ERR | FK42: ----
B43: 37 | AG43: 0 | AH43: 0 | AI43: 0 | AJ43: 0 | AK43: 0 | AL43: 0 | AM43: 0 | AN43: 0 | AO43: 0 | AP43: 0 | AQ43: 0 | AR43: 0 | AS43: 0 | BE43: 0 | BF43: 0 | BG43: E | BR43: 0 | BS43: 0 | BT43: E | CD43: 0 | CE43: 0 | CF43: E | CR43: 0 | CS43: 0 | CT43: E | DF43: 0 | DG43: 0 | DH43: E | DS43: 0 | DT43: 0 | DU43: E | ED43: 0 | EF43: 0 | EG43: E | EQ43: 0 | ES43: 0 | ET43: E | FD43: 0 | FF43: 0 | FG43: E | FH43: --- | FI43: ERR | FK43: ----
B44: 38 | AG44: 0 | AH44: 0 | AI44: 0 | AJ44: 0 | AK44: 0 | AL44: 0 | AM44: 0 | AN44: 0 | AO44: 0 | AP44: 0 | AQ44: 0 | AR44: 0 | AS44: 0 | BE44: 0 | BF44: 0 | BG44: E | BR44: 0 | BS44: 0 | BT44: E | CD44: 0 | CE44: 0 | CF44: E | CR44: 0 | CS44: 0 | CT44: E | DF44: 0 | DG44: 0 | DH44: E | DS44: 0 | DT44: 0 | DU44: E | ED44: 0 | EF44: 0 | EG44: E | EQ44: 0 | ES44: 0 | ET44: E | FD44: 0 | FF44: 0 | FG44: E | FH44: --- | FI44: ERR | FK44: ----
B45: 39 | AG45: 0 | AH45: 0 | AI45: 0 | AJ45: 0 | AK45: 0 | AL45: 0 | AM45: 0 | AN45: 0 | AO45: 0 | AP45: 0 | AQ45: 0 | AR45: 0 | AS45: 0 | BE45: 0 | BF45: 0 | BG45: E | BR45: 0 | BS45: 0 | BT45: E | CD45: 0 | CE45: 0 | CF45: E | CR45: 0 | CS45: 0 | CT45: E | DF45: 0 | DG45: 0 | DH45: E | DS45: 0 | DT45: 0 | DU45: E | ED45: 0 | EF45: 0 | EG45: E | EQ45: 0 | ES45: 0 | ET45: E | FD45: 0 | FF45: 0 | FG45: E | FH45: --- | FI45: ERR | FK45: ----
B46: 40 | AG46: 0 | AH46: 0 | AI46: 0 | AJ46: 0 | AK46: 0 | AL46: 0 | AM46: 0 | AN46: 0 | AO46: 0 | AP46: 0 | AQ46: 0 | AR46: 0 | AS46: 0 | BE46: 0 | BF46: 0 | BG46: E | BR46: 0 | BS46: 0 | BT46: E | CD46: 0 | CE46: 0 | CF46: E | CR46: 0 | CS46: 0 | CT46: E | DF46: 0 | DG46: 0 | DH46: E | DS46: 0 | DT46: 0 | DU46: E | ED46: 0 | EF46: 0 | EG46: E | EQ46: 0 | ES46: 0 | ET46: E | FD46: 0 | FF46: 0 | FG46: E | FH46: --- | FI46: ERR | FK46: ----
B47: 41 | AG47: 0 | AH47: 0 | AI47: 0 | AJ47: 0 | AK47: 0 | AL47: 0 | AM47: 0 | AN47: 0 | AO47: 0 | AP47: 0 | AQ47: 0 | AR47: 0 | AS47: 0 | BE47: 0 | BF47: 0 | BG47: E | BR47: 0 | BS47: 0 | BT47: E | CD47: 0 | CE47: 0 | CF47: E | CR47: 0 | CS47: 0 | CT47: E | DF47: 0 | DG47: 0 | DH47: E | DS47: 0 | DT47: 0 | DU47: E | ED47: 0 | EF47: 0 | EG47: E | EQ47: 0 | ES47: 0 | ET47: E | FD47: 0 | FF47: 0 | FG47: E | FH47: --- | FI47: ERR | FK47: ----
B48: 42 | AG48: 0 | AH48: 0 | AI48: 0 | AJ48: 0 | AK48: 0 | AL48: 0 | AM48: 0 | AN48: 0 | AO48: 0 | AP48: 0 | AQ48: 0 | AR48: 0 | AS48: 0 | BE48: 0 | BF48: 0 | BG48: E | BR48: 0 | BS48: 0 | BT48: E | CD48: 0 | CE48: 0 | CF48: E | CR48: 0 | CS48: 0 | CT48: E | DF48: 0 | DG48: 0 | DH48: E | DS48: 0 | DT48: 0 | DU48: E | ED48: 0 | EF48: 0 | EG48: E | EQ48: 0 | ES48: 0 | ET48: E | FD48: 0 | FF48: 0 | FG48: E | FH48: --- | FI48: ERR | FK48: ----
B49: 43 | AG49: 0 | AH49: 0 | AI49: 0 | AJ49: 0 | AK49: 0 | AL49: 0 | AM49: 0 | AN49: 0 | AO49: 0 | AP49: 0 | AQ49: 0 | AR49: 0 | AS49: 0 | BE49: 0 | BF49: 0 | BG49: E | BR49: 0 | BS49: 0 | BT49: E | CD49: 0 | CE49: 0 | CF49: E | CR49: 0 | CS49: 0 | CT49: E | DF49: 0 | DG49: 0 | DH49: E | DS49: 0 | DT49: 0 | DU49: E | ED49: 0 | EF49: 0 | EG49: E | EQ49: 0 | ES49: 0 | ET49: E | FD49: 0 | FF49: 0 | FG49: E | FH49: --- | FI49: ERR | FK49: ----
B50: 44 | AG50: 0 | AH50: 0 | AI50: 0 | AJ50: 0 | AK50: 0 | AL50: 0 | AM50: 0 | AN50: 0 | AO50: 0 | AP50: 0 | AQ50: 0 | AR50: 0 | AS50: 0 | BE50: 0 | BF50: 0 | BG50: E | BR50: 0 | BS50: 0 | BT50: E | CD50: 0 | CE50: 0 | CF50: E | CR50: 0 | CS50: 0 | CT50: E | DF50: 0 | DG50: 0 | DH50: E | DS50: 0 | DT50: 0 | DU50: E | ED50: 0 | EF50: 0 | EG50: E | EQ50: 0 | ES50: 0 | ET50: E | FD50: 0 | FF50: 0 | FG50: E | FH50: --- | FI50: ERR | FK50: ----
B51: 45 | AG51: 0 | AH51: 0 | AI51: 0 | AJ51: 0 | AK51: 0 | AL51: 0 | AM51: 0 | AN51: 0 | AO51: 0 | AP51: 0 | AQ51: 0 | AR51: 0 | AS51: 0 | BE51: 0 | BF51: 0 | BG51: E | BR51: 0 | BS51: 0 | BT51: E | CD51: 0 | CE51: 0 | CF51: E | CR51: 0 | CS51: 0 | CT51: E | DF51: 0 | DG51: 0 | DH51: E | DS51: 0 | DT51: 0 | DU51: E | ED51: 0 | EF51: 0 | EG51: E | EQ51: 0 | ES51: 0 | ET51: E | FD51: 0 | FF51: 0 | FG51: E | FH51: --- | FI51: ERR | FK51: ----
B52: 46 | AG52: 0 | AH52: 0 | AI52: 0 | AJ52: 0 | AK52: 0 | AL52: 0 | AM52: 0 | AN52: 0 | AO52: 0 | AP52: 0 | AQ52: 0 | AR52: 0 | AS52: 0 | BE52: 0 | BF52: 0 | BG52: E | BR52: 0 | BS52: 0 | BT52: E | CD52: 0 | CE52: 0 | CF52: E | CR52: 0 | CS52: 0 | CT52: E | DF52: 0 | DG52: 0 | DH52: E | DS52: 0 | DT52: 0 | DU52: E | ED52: 0 | EF52: 0 | EG52: E | EQ52: 0 | ES52: 0 | ET52: E | FD52: 0 | FF52: 0 | FG52: E | FH52: --- | FI52: ERR | FK52: ----
B53: 47 | AG53: 0 | AH53: 0 | AI53: 0 | AJ53: 0 | AK53: 0 | AL53: 0 | AM53: 0 | AN53: 0 | AO53: 0 | AP53: 0 | AQ53: 0 | AR53: 0 | AS53: 0 | BE53: 0 | BF53: 0 | BG53: E | BR53: 0 | BS53: 0 | BT53: E | CD53: 0 | CE53: 0 | CF53: E | CR53: 0 | CS53: 0 | CT53: E | DF53: 0 | DG53: 0 | DH53: E | DS53: 0 | DT53: 0 | DU53: E | ED53: 0 | EF53: 0 | EG53: E | EQ53: 0 | ES53: 0 | ET53: E | FD53: 0 | FF53: 0 | FG53: E | FH53: --- | FI53: ERR | FK53: ----
B54: 48 | AG54: 0 | AH54: 0 | AI54: 0 | AJ54: 0 | AK54: 0 | AL54: 0 | AM54: 0 | AN54: 0 | AO54: 0 | AP54: 0 | AQ54: 0 | AR54: 0 | AS54: 0 | BE54: 0 | BF54: 0 | BG54: E | BR54: 0 | BS54: 0 | BT54: E | CD54: 0 | CE54: 0 | CF54: E | CR54: 0 | CS54: 0 | CT54: E | DF54: 0 | DG54: 0 | DH54: E | DS54: 0 | DT54: 0 | DU54: E | ED54: 0 | EF54: 0 | EG54: E | EQ54: 0 | ES54: 0 | ET54: E | FD54: 0 | FF54: 0 | FG54: E | FH54: --- | FI54: ERR | FK54: ----
B55: 49 | AG55: 0 | AH55: 0 | AI55: 0 | AJ55: 0 | AK55: 0 | AL55: 0 | AM55: 0 | AN55: 0 | AO55: 0 | AP55: 0 | AQ55: 0 | AR55: 0 | AS55: 0 | BE55: 0 | BF55: 0 | BG55: E | BR55: 0 | BS55: 0 | BT55: E | CD55: 0 | CE55: 0 | CF55: E | CR55: 0 | CS55: 0 | CT55: E | DF55: 0 | DG55: 0 | DH55: E | DS55: 0 | DT55: 0 | DU55: E | ED55: 0 | EF55: 0 | EG55: E | EQ55: 0 | ES55: 0 | ET55: E | FD55: 0 | FF55: 0 | FG55: E | FH55: --- | FI55: ERR | FK55: ----
B56: 50 | AG56: 0 | AH56: 0 | AI56: 0 | AJ56: 0 | AK56: 0 | AL56: 0 | AM56: 0 | AN56: 0 | AO56: 0 | AP56: 0 | AQ56: 0 | AR56: 0 | AS56: 0 | BE56: 0 | BF56: 0 | BG56: E | BR56: 0 | BS56: 0 | BT56: E | CD56: 0 | CE56: 0 | CF56: E | CR56: 0 | CS56: 0 | CT56: E | DF56: 0 | DG56: 0 | DH56: E | DS56: 0 | DT56: 0 | DU56: E | ED56: 0 | EF56: 0 | EG56: E | EQ56: 0 | ES56: 0 | ET56: E | FD56: 0 | FF56: 0 | FG56: E | FH56: --- | FI56: ERR | FK56: ----
B57: 51 | AG57: 0 | AH57: 0 | AI57: 0 | AJ57: 0 | AK57: 0 | AL57: 0 | AM57: 0 | AN57: 0 | AO57: 0 | AP57: 0 | AQ57: 0 | AR57: 0 | AS57: 0 | BE57: 0 | BF57: 0 | BG57: E | BR57: 0 | BS57: 0 | BT57: E | CD57: 0 | CE57: 0 | CF57: E | CR57: 0 | CS57: 0 | CT57: E | DF57: 0 | DG57: 0 | DH57: E | DS57: 0 | DT57: 0 | DU57: E | ED57: 0 | EF57: 0 | EG57: E | EQ57: 0 | ES57: 0 | ET57: E | FD57: 0 | FF57: 0 | FG57: E | FH57: --- | FI57: ERR | FK57: ----
B58: 52 | AG58: 0 | AH58: 0 | AI58: 0 | AJ58: 0 | AK58: 0 | AL58: 0 | AM58: 0 | AN58: 0 | AO58: 0 | AP58: 0 | AQ58: 0 | AR58: 0 | AS58: 0 | BE58: 0 | BF58: 0 | BG58: E | BR58: 0 | BS58: 0 | BT58: E | CD58: 0 | CE58: 0 | CF58: E | CR58: 0 | CS58: 0 | CT58: E | DF58: 0 | DG58: 0 | DH58: E | DS58: 0 | DT58: 0 | DU58: E | ED58: 0 | EF58: 0 | EG58: E | EQ58: 0 | ES58: 0 | ET58: E | FD58: 0 | FF58: 0 | FG58: E | FH58: --- | FI58: ERR | FK58: ----
B59: 53 | AG59: 0 | AH59: 0 | AI59: 0 | AJ59: 0 | AK59: 0 | AL59: 0 | AM59: 0 | AN59: 0 | AO59: 0 | AP59: 0 | AQ59: 0 | AR59: 0 | AS59: 0 | BE59: 0 | BF59: 0 | BG59: E | BR59: 0 | BS59: 0 | BT59: E | CD59: 0 | CE59: 0 | CF59: E | CR59: 0 | CS59: 0 | CT59: E | DF59: 0 | DG59: 0 | DH59: E | DS59: 0 | DT59: 0 | DU59: E | ED59: 0 | EF59: 0 | EG59: E | EQ59: 0 | ES59: 0 | ET59: E | FD59: 0 | FF59: 0 | FG59: E | FH59: --- | FI59: ERR | FK59: ----
B60: 54 | AG60: 0 | AH60: 0 | AI60: 0 | AJ60: 0 | AK60: 0 | AL60: 0 | AM60: 0 | AN60: 0 | AO60: 0 | AP60: 0 | AQ60: 0 | AR60: 0 | AS60: 0 | BE60: 0 | BF60: 0 | BG60: E | BR60: 0 | BS60: 0 | BT60: E | CD60: 0 | CE60: 0 | CF60: E | CR60: 0 | CS60: 0 | CT60: E | DF60: 0 | DG60: 0 | DH60: E | DS60: 0 | DT60: 0 | DU60: E | ED60: 0 | EF60: 0 | EG60: E | EQ60: 0 | ES60: 0 | ET60: E | FD60: 0 | FF60: 0 | FG60: E | FH60: --- | FI60: ERR | FK60: ----
B61: 55 | AG61: 0 | AH61: 0 | AI61: 0 | AJ61: 0 | AK61: 0 | AL61: 0 | AM61: 0 | AN61: 0 | AO61: 0 | AP61: 0 | AQ61: 0 | AR61: 0 | AS61: 0 | BE61: 0 | BF61: 0 | BG61: E | BR61: 0 | BS61: 0 | BT61: E | CD61: 0 | CE61: 0 | CF61: E | CR61: 0 | CS61: 0 | CT61: E | DF61: 0 | DG61: 0 | DH61: E | DS61: 0 | DT61: 0 | DU61: E | ED61: 0 | EF61: 0 | EG61: E | EQ61: 0 | ES61: 0 | ET61: E | FD61: 0 | FF61: 0 | FG61: E | FH61: --- | FI61: ERR | FK61: ----
B62: 56 | AG62: 0 | AH62: 0 | AI62: 0 | AJ62: 0 | AK62: 0 | AL62: 0 | AM62: 0 | AN62: 0 | AO62: 0 | AP62: 0 | AQ62: 0 | AR62: 0 | AS62: 0 | BE62: 0 | BF62: 0 | BG62: E | BR62: 0 | BS62: 0 | BT62: E | CD62: 0 | CE62: 0 | CF62: E | CR62: 0 | CS62: 0 | CT62: E | DF62: 0 | DG62: 0 | DH62: E | DS62: 0 | DT62: 0 | DU62: E | ED62: 0 | EF62: 0 | EG62: E | EQ62: 0 | ES62: 0 | ET62: E | FD62: 0 | FF62: 0 | FG62: E | FH62: --- | FI62: ERR | FK62: ----
B63: 57 | AG63: 0 | AH63: 0 | AI63: 0 | AJ63: 0 | AK63: 0 | AL63: 0 | AM63: 0 | AN63: 0 | AO63: 0 | AP63: 0 | AQ63: 0 | AR63: 0 | AS63: 0 | BE63: 0 | BF63: 0 | BG63: E | BR63: 0 | BS63: 0 | BT63: E | CD63: 0 | CE63: 0 | CF63: E | CR63: 0 | CS63: 0 | CT63: E | DF63: 0 | DG63: 0 | DH63: E | DS63: 0 | DT63: 0 | DU63: E | ED63: 0 | EF63: 0 | EG63: E | EQ63: 0 | ES63: 0 | ET63: E | FD63: 0 | FF63: 0 | FG63: E | FH63: --- | FI63: ERR | FK63: ----
B64: 58 | AG64: 0 | AH64: 0 | AI64: 0 | AJ64: 0 | AK64: 0 | AL64: 0 | AM64: 0 | AN64: 0 | AO64: 0 | AP64: 0 | AQ64: 0 | AR64: 0 | AS64: 0 | BE64: 0 | BF64: 0 | BG64: E | BR64: 0 | BS64: 0 | BT64: E | CD64: 0 | CE64: 0 | CF64: E | CR64: 0 | CS64: 0 | CT64: E | DF64: 0 | DG64: 0 | DH64: E | DS64: 0 | DT64: 0 | DU64: E | ED64: 0 | EF64: 0 | EG64: E | EQ64: 0 | ES64: 0 | ET64: E | FD64: 0 | FF64: 0 | FG64: E | FH64: --- | FI64: ERR | FK64: ----
B65: 59 | AG65: 0 | AH65: 0 | AI65: 0 | AJ65: 0 | AK65: 0 | AL65: 0 | AM65: 0 | AN65: 0 | AO65: 0 | AP65: 0 | AQ65: 0 | AR65: 0 | AS65: 0 | BE65: 0 | BF65: 0 | BG65: E | BR65: 0 | BS65: 0 | BT65: E | CD65: 0 | CE65: 0 | CF65: E | CR65: 0 | CS65: 0 | CT65: E | DF65: 0 | DG65: 0 | DH65: E | DS65: 0 | DT65: 0 | DU65: E | ED65: 0 | EF65: 0 | EG65: E | EQ65: 0 | ES65: 0 | ET65: E | FD65: 0 | FF65: 0 | FG65: E | FH65: --- | FI65: ERR | FK65: ----
B66: 60 | AG66: 0 | AH66: 0 | AI66: 0 | AJ66: 0 | AK66: 0 | AL66: 0 | AM66: 0 | AN66: 0 | AO66: 0 | AP66: 0 | AQ66: 0 | AR66: 0 | AS66: 0 | BE66: 0 | BF66: 0 | BG66: E | BR66: 0 | BS66: 0 | BT66: E | CD66: 0 | CE66: 0 | CF66: E | CR66: 0 | CS66: 0 | CT66: E | DF66: 0 | DG66: 0 | DH66: E | DS66: 0 | DT66: 0 | DU66: E | ED66: 0 | EF66: 0 | EG66: E | EQ66: 0 | ES66: 0 | ET66: E | FD66: 0 | FF66: 0 | FG66: E | FH66: --- | FI66: ERR | FK66: ----
B67: 61 | AG67: 0 | AH67: 0 | AI67: 0 | AJ67: 0 | AK67: 0 | AL67: 0 | AM67: 0 | AN67: 0 | AO67: 0 | AP67: 0 | AQ67: 0 | AR67: 0 | AS67: 0 | BE67: 0 | BF67: 0 | BG67: E | BR67: 0 | BS67: 0 | BT67: E | CD67: 0 | CE67: 0 | CF67: E | CR67: 0 | CS67: 0 | CT67: E | DF67: 0 | DG67: 0 | DH67: E | DS67: 0 | DT67: 0 | DU67: E | ED67: 0 | EF67: 0 | EG67: E | EQ67: 0 | ES67: 0 | ET67: E | FD67: 0 | FF67: 0 | FG67: E | FH67: --- | FI67: ERR | FK67: ----
B68: 62 | AG68: 0 | AH68: 0 | AI68: 0 | AJ68: 0 | AK68: 0 | AL68: 0 | AM68: 0 | AN68: 0 | AO68: 0 | AP68: 0 | AQ68: 0 | AR68: 0 | AS68: 0 | BE68: 0 | BF68: 0 | BG68: E | BR68: 0 | BS68: 0 | BT68: E | CD68: 0 | CE68: 0 | CF68: E | CR68: 0 | CS68: 0 | CT68: E | DF68: 0 | DG68: 0 | DH68: E | DS68: 0 | DT68: 0 | DU68: E | ED68: 0 | EF68: 0 | EG68: E | EQ68: 0 | ES68: 0 | ET68: E | FD68: 0 | FF68: 0 | FG68: E | FH68: --- | FI68: ERR | FK68: ----
B69: 63 | AG69: 0 | AH69: 0 | AI69: 0 | AJ69: 0 | AK69: 0 | AL69: 0 | AM69: 0 | AN69: 0 | AO69: 0 | AP69: 0 | AQ69: 0 | AR69: 0 | AS69: 0 | BE69: 0 | BF69: 0 | BG69: E | BR69: 0 | BS69: 0 | BT69: E | CD69: 0 | CE69: 0 | CF69: E | CR69: 0 | CS69: 0 | CT69: E | DF69: 0 | DG69: 0 | DH69: E | DS69: 0 | DT69: 0 | DU69: E | ED69: 0 | EF69: 0 | EG69: E | EQ69: 0 | ES69: 0 | ET69: E | FD69: 0 | FF69: 0 | FG69: E | FH69: --- | FI69: ERR | FK69: ----
B70: 64 | AG70: 0 | AH70: 0 | AI70: 0 | AJ70: 0 | AK70: 0 | AL70: 0 | AM70: 0 | AN70: 0 | AO70: 0 | AP70: 0 | AQ70: 0 | AR70: 0 | AS70: 0 | BE70: 0 | BF70: 0 | BG70: E | BR70: 0 | BS70: 0 | BT70: E | CD70: 0 | CE70: 0 | CF70: E | CR70: 0 | CS70: 0 | CT70: E | DF70: 0 | DG70: 0 | DH70: E | DS70: 0 | DT70: 0 | DU70: E | ED70: 0 | EF70: 0 | EG70: E | EQ70: 0 | ES70: 0 | ET70: E | FD70: 0 | FF70: 0 | FG70: E | FH70: --- | FI70: ERR | FK70: ----
B71: 65 | AG71: 0 | AH71: 0 | AI71: 0 | AJ71: 0 | AK71: 0 | AL71: 0 | AM71: 0 | AN71: 0 | AO71: 0 | AP71: 0 | AQ71: 0 | AR71: 0 | AS71: 0 | BE71: 0 | BF71: 0 | BG71: E | BR71: 0 | BS71: 0 | BT71: E | CD71: 0 | CE71: 0 | CF71: E | CR71: 0 | CS71: 0 | CT71: E | DF71: 0 | DG71: 0 | DH71: E | DS71: 0 | DT71: 0 | DU71: E | ED71: 0 | EF71: 0 | EG71: E | EQ71: 0 | ES71: 0 | ET71: E | FD71: 0 | FF71: 0 | FG71: E | FH71: --- | FI71: ERR | FK71: ----
B72: 66 | AG72: =SUM(V72:AF72) -> 0 | AH72: =V72/$V$4 -> 0 | AI72: =W72/$W$4 -> 0 | AJ72: =X72/$X$4 -> 0 | AK72: =Y72/$Y$4 -> 0 | AL72: =Z72/$Z$4 -> 0 | AM72: =AA72/$AA$4 -> 0 | AN72: =AB72/$AB$4 -> 0 | AO72: =AC72/$AC$4 -> 0 | AP72: =AD72/$AD$4 -> 0 | AQ72: =AE72/$AE$4 -> 0 | AR72: =AF72/$AF$4 -> 0 | AS72: =AG72/$AG$4 -> 0 | BE72: =SUM(AZ72:BD72) -> 0 | BF72: =BE72+AY72 -> 0 | BG72: =IFERROR(IF(BF72>90,"A+",IF(BF72>80,"A",IF(BF72>70,"B+",IF(BF72>60,"B",IF(BF72>50,"C+",IF(BF72>40,"C",IF(BF72>=33,"D","E"))))))),"Abs") -> E | BR72: =SUM(BM72:BQ72) -> 0 | BS72: =BR72+BL72 -> 0 | BT72: =IFERROR(IF(BS72>90,"A+",IF(BS72>80,"A",IF(BS72>70,"B+",IF(BS72>60,"B",IF(BS72>50,"C+",IF(BS72>40,"C",IF(BS72>=33,"D","E"))))))),"Abs") -> E | CD72: =SUM(BZ72:CC72) -> 0 | CE72: =CD72+BY72 -> 0 | CF72: =IFERROR(IF(CE72>90,"A+",IF(CE72>80,"A",IF(CE72>70,"B+",IF(CE72>60,"B",IF(CE72>50,"C+",IF(CE72>40,"C",IF(CE72>=33,"D","E"))))))),"Abs") -> E | CR72: =SUM(CL72:CQ72) -> 0 | CS72: =CR72+CK72 -> 0 | CT72: =IFERROR(IF(CS72>90,"A+",IF(CS72>80,"A",IF(CS72>70,"B+",IF(CS72>60,"B",IF(CS72>50,"C+",IF(CS72>40,"C",IF(CS72>=33,"D","E"))))))),"Abs") -> E | DF72: =SUM(CZ72:DE72) -> 0 | DG72: =DF72+CY72 -> 0 | DH72: =IFERROR(IF(DG72>90,"A+",IF(DG72>80,"A",IF(DG72>70,"B+",IF(DG72>60,"B",IF(DG72>50,"C+",IF(DG72>40,"C",IF(DG72>=33,"D","E"))))))),"Abs") -> E | DS72: =SUM(DN72:DR72) -> 0 | DT72: =DS72+DM72 -> 0 | DU72: =IFERROR(IF(DT72>90,"A+",IF(DT72>80,"A",IF(DT72>70,"B+",IF(DT72>60,"B",IF(DT72>50,"C+",IF(DT72>40,"C",IF(DT72>=33,"D","E"))))))),"Abs") -> E | ED72: =SUM(EA72:EC72) -> 0 | EF72: =EE72+ED72+DZ72 -> 0 | EG72: =IFERROR(IF(EF72>90,"A+",IF(EF72>80,"A",IF(EF72>70,"B+",IF(EF72>60,"B",IF(EF72>50,"C+",IF(EF72>40,"C",IF(EF72>=33,"D","E"))))))),"Abs") -> E | EQ72: =SUM(EM72:EP72) -> 0 | ES72: =ER72+EQ72+EL72 -> 0 | ET72: =IFERROR(IF(ES72>90,"A+",IF(ES72>80,"A",IF(ES72>70,"B+",IF(ES72>60,"B",IF(ES72>50,"C+",IF(ES72>40,"C",IF(ES72>=33,"D","E"))))))),"Abs") -> E | FD72: =SUM(EZ72:FC72) -> 0 | FF72: =FE72+FD72+EY72 -> 0 | FG72: =IFERROR(IF(FF72>90,"A+",IF(FF72>80,"A",IF(FF72>70,"B+",IF(FF72>60,"B",IF(FF72>50,"C+",IF(FF72>40,"C",IF(FF72>=33,"D","E"))))))),"Abs") -> E | FH72: =IF(AND(MIN(AY72,BL72,BY72,CK72,CY72,DM72)>19,MIN(BF72,BS72,CE72,CS72,DG72,DT72)>32),SUM(BF72,BS72,CE72,CS72,DG72,DT72),"---") -> --- | FI72: =IFERROR(FH72/600*100,"ERR") -> ERR | FJ72: =IF(FI72="ERR","",(IF(FI72>90,"A+",IF(FI72>80,"A",IF(FI72>70,"B+",IF(FI72>60,"B",IF(FI72>50,"C+",IF(FI72>40,"C",IF(FI72>=33,"D",IF(FI72<33,"E","")))))))))) ->  | FK72: =IF(FI72="ERR","----",IF(FI72>=33,"ਪਾਸ","--")) -> ----
B73: 67 | AG73: 0 | AH73: 0 | AI73: 0 | AJ73: 0 | AK73: 0 | AL73: 0 | AM73: 0 | AN73: 0 | AO73: 0 | AP73: 0 | AQ73: 0 | AR73: 0 | AS73: 0 | BE73: 0 | BF73: 0 | BG73: E | BR73: 0 | BS73: 0 | BT73: E | CD73: 0 | CE73: 0 | CF73: E | CR73: 0 | CS73: 0 | CT73: E | DF73: 0 | DG73: 0 | DH73: E | DS73: 0 | DT73: 0 | DU73: E | ED73: 0 | EF73: 0 | EG73: E | EQ73: 0 | ES73: 0 | ET73: E | FD73: 0 | FF73: 0 | FG73: E | FH73: --- | FI73: ERR | FK73: ----
B74: 68 | AG74: 0 | AH74: 0 | AI74: 0 | AJ74: 0 | AK74: 0 | AL74: 0 | AM74: 0 | AN74: 0 | AO74: 0 | AP74: 0 | AQ74: 0 | AR74: 0 | AS74: 0 | BE74: 0 | BF74: 0 | BG74: E | BR74: 0 | BS74: 0 | BT74: E | CD74: 0 | CE74: 0 | CF74: E | CR74: 0 | CS74: 0 | CT74: E | DF74: 0 | DG74: 0 | DH74: E | DS74: 0 | DT74: 0 | DU74: E | ED74: 0 | EF74: 0 | EG74: E | EQ74: 0 | ES74: 0 | ET74: E | FD74: 0 | FF74: 0 | FG74: E | FH74: --- | FI74: ERR | FK74: ----
B75: 69 | AG75: 0 | AH75: 0 | AI75: 0 | AJ75: 0 | AK75: 0 | AL75: 0 | AM75: 0 | AN75: 0 | AO75: 0 | AP75: 0 | AQ75: 0 | AR75: 0 | AS75: 0 | BE75: 0 | BF75: 0 | BG75: E | BR75: 0 | BS75: 0 | BT75: E | CD75: 0 | CE75: 0 | CF75: E | CR75: 0 | CS75: 0 | CT75: E | DF75: 0 | DG75: 0 | DH75: E | DS75: 0 | DT75: 0 | DU75: E | ED75: 0 | EF75: 0 | EG75: E | EQ75: 0 | ES75: 0 | ET75: E | FD75: 0 | FF75: 0 | FG75: E | FH75: --- | FI75: ERR | FK75: ----
B76: 70 | AG76: 0 | AH76: 0 | AI76: 0 | AJ76: 0 | AK76: 0 | AL76: 0 | AM76: 0 | AN76: 0 | AO76: 0 | AP76: 0 | AQ76: 0 | AR76: 0 | AS76: 0 | BE76: 0 | BF76: 0 | BG76: E | BR76: 0 | BS76: 0 | BT76: E | CD76: 0 | CE76: 0 | CF76: E | CR76: 0 | CS76: 0 | CT76: E | DF76: 0 | DG76: 0 | DH76: E | DS76: 0 | DT76: 0 | DU76: E | ED76: 0 | EF76: 0 | EG76: E | EQ76: 0 | ES76: 0 | ET76: E | FD76: 0 | FF76: 0 | FG76: E | FH76: --- | FI76: ERR | FK76: ----
B77: 71 | AG77: 0 | AH77: 0 | AI77: 0 | AJ77: 0 | AK77: 0 | AL77: 0 | AM77: 0 | AN77: 0 | AO77: 0 | AP77: 0 | AQ77: 0 | AR77: 0 | AS77: 0 | BE77: 0 | BF77: 0 | BG77: E | BR77: 0 | BS77: 0 | BT77: E | CD77: 0 | CE77: 0 | CF77: E | CR77: 0 | CS77: 0 | CT77: E | DF77: 0 | DG77: 0 | DH77: E | DS77: 0 | DT77: 0 | DU77: E | ED77: 0 | EF77: 0 | EG77: E | EQ77: 0 | ES77: 0 | ET77: E | FD77: 0 | FF77: 0 | FG77: E | FH77: --- | FI77: ERR | FK77: ----
B78: 72 | AG78: 0 | AH78: 0 | AI78: 0 | AJ78: 0 | AK78: 0 | AL78: 0 | AM78: 0 | AN78: 0 | AO78: 0 | AP78: 0 | AQ78: 0 | AR78: 0 | AS78: 0 | BE78: 0 | BF78: 0 | BG78: E | BR78: 0 | BS78: 0 | BT78: E | CD78: 0 | CE78: 0 | CF78: E | CR78: 0 | CS78: 0 | CT78: E | DF78: 0 | DG78: 0 | DH78: E | DS78: 0 | DT78: 0 | DU78: E | ED78: 0 | EF78: 0 | EG78: E | EQ78: 0 | ES78: 0 | ET78: E | FD78: 0 | FF78: 0 | FG78: E | FH78: --- | FI78: ERR | FK78: ----
B79: 73 | AG79: 0 | AH79: 0 | AI79: 0 | AJ79: 0 | AK79: 0 | AL79: 0 | AM79: 0 | AN79: 0 | AO79: 0 | AP79: 0 | AQ79: 0 | AR79: 0 | AS79: 0 | BE79: 0 | BF79: 0 | BG79: E | BR79: 0 | BS79: 0 | BT79: E | CD79: 0 | CE79: 0 | CF79: E | CR79: 0 | CS79: 0 | CT79: E | DF79: 0 | DG79: 0 | DH79: E | DS79: 0 | DT79: 0 | DU79: E | ED79: 0 | EF79: 0 | EG79: E | EQ79: 0 | ES79: 0 | ET79: E | FD79: 0 | FF79: 0 | FG79: E | FH79: --- | FI79: ERR | FK79: ----
B80: 74 | AG80: 0 | AH80: 0 | AI80: 0 | AJ80: 0 | AK80: 0 | AL80: 0 | AM80: 0 | AN80: 0 | AO80: 0 | AP80: 0 | AQ80: 0 | AR80: 0 | AS80: 0 | BE80: 0 | BF80: 0 | BG80: E | BR80: 0 | BS80: 0 | BT80: E | CD80: 0 | CE80: 0 | CF80: E | CR80: 0 | CS80: 0 | CT80: E | DF80: 0 | DG80: 0 | DH80: E | DS80: 0 | DT80: 0 | DU80: E | ED80: 0 | EF80: 0 | EG80: E | EQ80: 0 | ES80: 0 | ET80: E | FD80: 0 | FF80: 0 | FG80: E | FH80: --- | FI80: ERR | FK80: ----
B81: 75 | AG81: 0 | AH81: 0 | AI81: 0 | AJ81: 0 | AK81: 0 | AL81: 0 | AM81: 0 | AN81: 0 | AO81: 0 | AP81: 0 | AQ81: 0 | AR81: 0 | AS81: 0 | BE81: 0 | BF81: 0 | BG81: E | BR81: 0 | BS81: 0 | BT81: E | CD81: 0 | CE81: 0 | CF81: E | CR81: 0 | CS81: 0 | CT81: E | DF81: 0 | DG81: 0 | DH81: E | DS81: 0 | DT81: 0 | DU81: E | ED81: 0 | EF81: 0 | EG81: E | EQ81: 0 | ES81: 0 | ET81: E | FD81: 0 | FF81: 0 | FG81: E | FH81: --- | FI81: ERR | FK81: ----
B82: 76 | AG82: 0 | AH82: 0 | AI82: 0 | AJ82: 0 | AK82: 0 | AL82: 0 | AM82: 0 | AN82: 0 | AO82: 0 | AP82: 0 | AQ82: 0 | AR82: 0 | AS82: 0 | BE82: 0 | BF82: 0 | BG82: E | BR82: 0 | BS82: 0 | BT82: E | CD82: 0 | CE82: 0 | CF82: E | CR82: 0 | CS82: 0 | CT82: E | DF82: 0 | DG82: 0 | DH82: E | DS82: 0 | DT82: 0 | DU82: E | ED82: 0 | EF82: 0 | EG82: E | EQ82: 0 | ES82: 0 | ET82: E | FD82: 0 | FF82: 0 | FG82: E | FH82: --- | FI82: ERR | FK82: ----
B83: 77 | AG83: 0 | AH83: 0 | AI83: 0 | AJ83: 0 | AK83: 0 | AL83: 0 | AM83: 0 | AN83: 0 | AO83: 0 | AP83: 0 | AQ83: 0 | AR83: 0 | AS83: 0 | BE83: 0 | BF83: 0 | BG83: E | BR83: 0 | BS83: 0 | BT83: E | CD83: 0 | CE83: 0 | CF83: E | CR83: 0 | CS83: 0 | CT83: E | DF83: 0 | DG83: 0 | DH83: E | DS83: 0 | DT83: 0 | DU83: E | ED83: 0 | EF83: 0 | EG83: E | EQ83: 0 | ES83: 0 | ET83: E | FD83: 0 | FF83: 0 | FG83: E | FH83: --- | FI83: ERR | FK83: ----
B84: 78 | AG84: 0 | AH84: 0 | AI84: 0 | AJ84: 0 | AK84: 0 | AL84: 0 | AM84: 0 | AN84: 0 | AO84: 0 | AP84: 0 | AQ84: 0 | AR84: 0 | AS84: 0 | BE84: 0 | BF84: 0 | BG84: E | BR84: 0 | BS84: 0 | BT84: E | CD84: 0 | CE84: 0 | CF84: E | CR84: 0 | CS84: 0 | CT84: E | DF84: 0 | DG84: 0 | DH84: E | DS84: 0 | DT84: 0 | DU84: E | ED84: 0 | EF84: 0 | EG84: E | EQ84: 0 | ES84: 0 | ET84: E | FD84: 0 | FF84: 0 | FG84: E | FH84: --- | FI84: ERR | FK84: ----
B85: 79 | AG85: 0 | AH85: 0 | AI85: 0 | AJ85: 0 | AK85: 0 | AL85: 0 | AM85: 0 | AN85: 0 | AO85: 0 | AP85: 0 | AQ85: 0 | AR85: 0 | AS85: 0 | BE85: 0 | BF85: 0 | BG85: E | BR85: 0 | BS85: 0 | BT85: E | CD85: 0 | CE85: 0 | CF85: E | CR85: 0 | CS85: 0 | CT85: E | DF85: 0 | DG85: 0 | DH85: E | DS85: 0 | DT85: 0 | DU85: E | ED85: 0 | EF85: 0 | EG85: E | EQ85: 0 | ES85: 0 | ET85: E | FD85: 0 | FF85: 0 | FG85: E | FH85: --- | FI85: ERR | FK85: ----
B86: 80 | AG86: 0 | AH86: 0 | AI86: 0 | AJ86: 0 | AK86: 0 | AL86: 0 | AM86: 0 | AN86: 0 | AO86: 0 | AP86: 0 | AQ86: 0 | AR86: 0 | AS86: 0 | BE86: 0 | BF86: 0 | BG86: E | BR86: 0 | BS86: 0 | BT86: E | CD86: 0 | CE86: 0 | CF86: E | CR86: 0 | CS86: 0 | CT86: E | DF86: 0 | DG86: 0 | DH86: E | DS86: 0 | DT86: 0 | DU86: E | ED86: 0 | EF86: 0 | EG86: E | EQ86: 0 | ES86: 0 | ET86: E | FD86: 0 | FF86: 0 | FG86: E | FH86: --- | FI86: ERR | FK86: ----
B87: 81 | AG87: 0 | AH87: 0 | AI87: 0 | AJ87: 0 | AK87: 0 | AL87: 0 | AM87: 0 | AN87: 0 | AO87: 0 | AP87: 0 | AQ87: 0 | AR87: 0 | AS87: 0 | BE87: 0 | BF87: 0 | BG87: E | BR87: 0 | BS87: 0 | BT87: E | CD87: 0 | CE87: 0 | CF87: E | CR87: 0 | CS87: 0 | CT87: E | DF87: 0 | DG87: 0 | DH87: E | DS87: 0 | DT87: 0 | DU87: E | ED87: 0 | EF87: 0 | EG87: E | EQ87: 0 | ES87: 0 | ET87: E | FD87: 0 | FF87: 0 | FG87: E | FH87: --- | FI87: ERR | FK87: ----
B88: 82 | AG88: 0 | AH88: 0 | AI88: 0 | AJ88: 0 | AK88: 0 | AL88: 0 | AM88: 0 | AN88: 0 | AO88: 0 | AP88: 0 | AQ88: 0 | AR88: 0 | AS88: 0 | BE88: 0 | BF88: 0 | BG88: E | BR88: 0 | BS88: 0 | BT88: E | CD88: 0 | CE88: 0 | CF88: E | CR88: 0 | CS88: 0 | CT88: E | DF88: 0 | DG88: 0 | DH88: E | DS88: 0 | DT88: 0 | DU88: E | ED88: 0 | EF88: 0 | EG88: E | EQ88: 0 | ES88: 0 | ET88: E | FD88: 0 | FF88: 0 | FG88: E | FH88: --- | FI88: ERR | FK88: ----
B89: 83 | AG89: 0 | AH89: 0 | AI89: 0 | AJ89: 0 | AK89: 0 | AL89: 0 | AM89: 0 | AN89: 0 | AO89: 0 | AP89: 0 | AQ89: 0 | AR89: 0 | AS89: 0 | BE89: 0 | BF89: 0 | BG89: E | BR89: 0 | BS89: 0 | BT89: E | CD89: 0 | CE89: 0 | CF89: E | CR89: 0 | CS89: 0 | CT89: E | DF89: 0 | DG89: 0 | DH89: E | DS89: 0 | DT89: 0 | DU89: E | ED89: 0 | EF89: 0 | EG89: E | EQ89: 0 | ES89: 0 | ET89: E | FD89: 0 | FF89: 0 | FG89: E | FH89: --- | FI89: ERR | FK89: ----
B90: 84 | AG90: 0 | AH90: 0 | AI90: 0 | AJ90: 0 | AK90: 0 | AL90: 0 | AM90: 0 | AN90: 0 | AO90: 0 | AP90: 0 | AQ90: 0 | AR90: 0 | AS90: 0 | BE90: 0 | BF90: 0 | BG90: E | BR90: 0 | BS90: 0 | BT90: E | CD90: 0 | CE90: 0 | CF90: E | CR90: 0 | CS90: 0 | CT90: E | DF90: 0 | DG90: 0 | DH90: E | DS90: 0 | DT90: 0 | DU90: E | ED90: 0 | EF90: 0 | EG90: E | EQ90: 0 | ES90: 0 | ET90: E | FD90: 0 | FF90: 0 | FG90: E | FH90: --- | FI90: ERR | FK90: ----
B91: 85 | AG91: 0 | AH91: 0 | AI91: 0 | AJ91: 0 | AK91: 0 | AL91: 0 | AM91: 0 | AN91: 0 | AO91: 0 | AP91: 0 | AQ91: 0 | AR91: 0 | AS91: 0 | BE91: 0 | BF91: 0 | BG91: E | BR91: 0 | BS91: 0 | BT91: E | CD91: 0 | CE91: 0 | CF91: E | CR91: 0 | CS91: 0 | CT91: E | DF91: 0 | DG91: 0 | DH91: E | DS91: 0 | DT91: 0 | DU91: E | ED91: 0 | EF91: 0 | EG91: E | EQ91: 0 | ES91: 0 | ET91: E | FD91: 0 | FF91: 0 | FG91: E | FH91: --- | FI91: ERR | FK91: ----
B92: 86 | AG92: 0 | AH92: 0 | AI92: 0 | AJ92: 0 | AK92: 0 | AL92: 0 | AM92: 0 | AN92: 0 | AO92: 0 | AP92: 0 | AQ92: 0 | AR92: 0 | AS92: 0 | BE92: 0 | BF92: 0 | BG92: E | BR92: 0 | BS92: 0 | BT92: E | CD92: 0 | CE92: 0 | CF92: E | CR92: 0 | CS92: 0 | CT92: E | DF92: 0 | DG92: 0 | DH92: E | DS92: 0 | DT92: 0 | DU92: E | ED92: 0 | EF92: 0 | EG92: E | EQ92: 0 | ES92: 0 | ET92: E | FD92: 0 | FF92: 0 | FG92: E | FH92: --- | FI92: ERR | FK92: ----
B93: 87 | AG93: 0 | AH93: 0 | AI93: 0 | AJ93: 0 | AK93: 0 | AL93: 0 | AM93: 0 | AN93: 0 | AO93: 0 | AP93: 0 | AQ93: 0 | AR93: 0 | AS93: 0 | BE93: 0 | BF93: 0 | BG93: E | BR93: 0 | BS93: 0 | BT93: E | CD93: 0 | CE93: 0 | CF93: E | CR93: 0 | CS93: 0 | CT93: E | DF93: 0 | DG93: 0 | DH93: E | DS93: 0 | DT93: 0 | DU93: E | ED93: 0 | EF93: 0 | EG93: E | EQ93: 0 | ES93: 0 | ET93: E | FD93: 0 | FF93: 0 | FG93: E | FH93: --- | FI93: ERR | FK93: ----
B94: 88 | AG94: 0 | AH94: 0 | AI94: 0 | AJ94: 0 | AK94: 0 | AL94: 0 | AM94: 0 | AN94: 0 | AO94: 0 | AP94: 0 | AQ94: 0 | AR94: 0 | AS94: 0 | BE94: 0 | BF94: 0 | BG94: E | BR94: 0 | BS94: 0 | BT94: E | CD94: 0 | CE94: 0 | CF94: E | CR94: 0 | CS94: 0 | CT94: E | DF94: 0 | DG94: 0 | DH94: E | DS94: 0 | DT94: 0 | DU94: E | ED94: 0 | EF94: 0 | EG94: E | EQ94: 0 | ES94: 0 | ET94: E | FD94: 0 | FF94: 0 | FG94: E | FH94: --- | FI94: ERR | FK94: ----
B95: 89 | AG95: 0 | AH95: 0 | AI95: 0 | AJ95: 0 | AK95: 0 | AL95: 0 | AM95: 0 | AN95: 0 | AO95: 0 | AP95: 0 | AQ95: 0 | AR95: 0 | AS95: 0 | BE95: 0 | BF95: 0 | BG95: E | BR95: 0 | BS95: 0 | BT95: E | CD95: 0 | CE95: 0 | CF95: E | CR95: 0 | CS95: 0 | CT95: E | DF95: 0 | DG95: 0 | DH95: E | DS95: 0 | DT95: 0 | DU95: E | ED95: 0 | EF95: 0 | EG95: E | EQ95: 0 | ES95: 0 | ET95: E | FD95: 0 | FF95: 0 | FG95: E | FH95: --- | FI95: ERR | FK95: ----
B96: 90 | AG96: 0 | AH96: 0 | AI96: 0 | AJ96: 0 | AK96: 0 | AL96: 0 | AM96: 0 | AN96: 0 | AO96: 0 | AP96: 0 | AQ96: 0 | AR96: 0 | AS96: 0 | BE96: 0 | BF96: 0 | BG96: E | BR96: 0 | BS96: 0 | BT96: E | CD96: 0 | CE96: 0 | CF96: E | CR96: 0 | CS96: 0 | CT96: E | DF96: 0 | DG96: 0 | DH96: E | DS96: 0 | DT96: 0 | DU96: E | ED96: 0 | EF96: 0 | EG96: E | EQ96: 0 | ES96: 0 | ET96: E | FD96: 0 | FF96: 0 | FG96: E | FH96: --- | FI96: ERR | FK96: ----
B97: 91 | AG97: 0 | AH97: 0 | AI97: 0 | AJ97: 0 | AK97: 0 | AL97: 0 | AM97: 0 | AN97: 0 | AO97: 0 | AP97: 0 | AQ97: 0 | AR97: 0 | AS97: 0 | BE97: 0 | BF97: 0 | BG97: E | BR97: 0 | BS97: 0 | BT97: E | CD97: 0 | CE97: 0 | CF97: E | CR97: 0 | CS97: 0 | CT97: E | DF97: 0 | DG97: 0 | DH97: E | DS97: 0 | DT97: 0 | DU97: E | ED97: 0 | EF97: 0 | EG97: E | EQ97: 0 | ES97: 0 | ET97: E | FD97: 0 | FF97: 0 | FG97: E | FH97: --- | FI97: ERR | FK97: ----
B98: 92 | AG98: 0 | AH98: 0 | AI98: 0 | AJ98: 0 | AK98: 0 | AL98: 0 | AM98: 0 | AN98: 0 | AO98: 0 | AP98: 0 | AQ98: 0 | AR98: 0 | AS98: 0 | BE98: 0 | BF98: 0 | BG98: E | BR98: 0 | BS98: 0 | BT98: E | CD98: 0 | CE98: 0 | CF98: E | CR98: 0 | CS98: 0 | CT98: E | DF98: 0 | DG98: 0 | DH98: E | DS98: 0 | DT98: 0 | DU98: E | ED98: 0 | EF98: 0 | EG98: E | EQ98: 0 | ES98: 0 | ET98: E | FD98: 0 | FF98: 0 | FG98: E | FH98: --- | FI98: ERR | FK98: ----
B99: 93 | AG99: 0 | AH99: 0 | AI99: 0 | AJ99: 0 | AK99: 0 | AL99: 0 | AM99: 0 | AN99: 0 | AO99: 0 | AP99: 0 | AQ99: 0 | AR99: 0 | AS99: 0 | BE99: 0 | BF99: 0 | BG99: E | BR99: 0 | BS99: 0 | BT99: E | CD99: 0 | CE99: 0 | CF99: E | CR99: 0 | CS99: 0 | CT99: E | DF99: 0 | DG99: 0 | DH99: E | DS99: 0 | DT99: 0 | DU99: E | ED99: 0 | EF99: 0 | EG99: E | EQ99: 0 | ES99: 0 | ET99: E | FD99: 0 | FF99: 0 | FG99: E | FH99: --- | FI99: ERR | FK99: ----
B100: 94 | AG100: 0 | AH100: 0 | AI100: 0 | AJ100: 0 | AK100: 0 | AL100: 0 | AM100: 0 | AN100: 0 | AO100: 0 | AP100: 0 | AQ100: 0 | AR100: 0 | AS100: 0 | BE100: 0 | BF100: 0 | BG100: E | BR100: 0 | BS100: 0 | BT100: E | CD100: 0 | CE100: 0 | CF100: E | CR100: 0 | CS100: 0 | CT100: E | DF100: 0 | DG100: 0 | DH100: E | DS100: 0 | DT100: 0 | DU100: E | ED100: 0 | EF100: 0 | EG100: E | EQ100: 0 | ES100: 0 | ET100: E | FD100: 0 | FF100: 0 | FG100: E | FH100: --- | FI100: ERR | FK100: ----
B101: 95 | AG101: 0 | AH101: 0 | AI101: 0 | AJ101: 0 | AK101: 0 | AL101: 0 | AM101: 0 | AN101: 0 | AO101: 0 | AP101: 0 | AQ101: 0 | AR101: 0 | AS101: 0 | BE101: 0 | BF101: 0 | BG101: E | BR101: 0 | BS101: 0 | BT101: E | CD101: 0 | CE101: 0 | CF101: E | CR101: 0 | CS101: 0 | CT101: E | DF101: 0 | DG101: 0 | DH101: E | DS101: 0 | DT101: 0 | DU101: E | ED101: 0 | EF101: 0 | EG101: E | EQ101: 0 | ES101: 0 | ET101: E | FD101: 0 | FF101: 0 | FG101: E | FH101: --- | FI101: ERR | FK101: ----
B102: 96 | AG102: 0 | AH102: 0 | AI102: 0 | AJ102: 0 | AK102: 0 | AL102: 0 | AM102: 0 | AN102: 0 | AO102: 0 | AP102: 0 | AQ102: 0 | AR102: 0 | AS102: 0 | BE102: 0 | BF102: 0 | BG102: E | BR102: 0 | BS102: 0 | BT102: E | CD102: 0 | CE102: 0 | CF102: E | CR102: 0 | CS102: 0 | CT102: E | DF102: 0 | DG102: 0 | DH102: E | DS102: 0 | DT102: 0 | DU102: E | ED102: 0 | EF102: 0 | EG102: E | EQ102: 0 | ES102: 0 | ET102: E | FD102: 0 | FF102: 0 | FG102: E | FH102: --- | FI102: ERR | FK102: ----
B103: 97 | AG103: 0 | AH103: 0 | AI103: 0 | AJ103: 0 | AK103: 0 | AL103: 0 | AM103: 0 | AN103: 0 | AO103: 0 | AP103: 0 | AQ103: 0 | AR103: 0 | AS103: 0 | BE103: 0 | BF103: 0 | BG103: E | BR103: 0 | BS103: 0 | BT103: E | CD103: 0 | CE103: 0 | CF103: E | CR103: 0 | CS103: 0 | CT103: E | DF103: 0 | DG103: 0 | DH103: E | DS103: 0 | DT103: 0 | DU103: E | ED103: 0 | EF103: 0 | EG103: E | EQ103: 0 | ES103: 0 | ET103: E | FD103: 0 | FF103: 0 | FG103: E | FH103: --- | FI103: ERR | FK103: ----
B104: 98 | AG104: 0 | AH104: 0 | AI104: 0 | AJ104: 0 | AK104: 0 | AL104: 0 | AM104: 0 | AN104: 0 | AO104: 0 | AP104: 0 | AQ104: 0 | AR104: 0 | AS104: 0 | BE104: 0 | BF104: 0 | BG104: E | BR104: 0 | BS104: 0 | BT104: E | CD104: 0 | CE104: 0 | CF104: E | CR104: 0 | CS104: 0 | CT104: E | DF104: 0 | DG104: 0 | DH104: E | DS104: 0 | DT104: 0 | DU104: E | ED104: 0 | EF104: 0 | EG104: E | EQ104: 0 | ES104: 0 | ET104: E | FD104: 0 | FF104: 0 | FG104: E | FH104: --- | FI104: ERR | FK104: ----
B105: 99 | AG105: 0 | AH105: 0 | AI105: 0 | AJ105: 0 | AK105: 0 | AL105: 0 | AM105: 0 | AN105: 0 | AO105: 0 | AP105: 0 | AQ105: 0 | AR105: 0 | AS105: 0 | BE105: 0 | BF105: 0 | BG105: E | BR105: 0 | BS105: 0 | BT105: E | CD105: 0 | CE105: 0 | CF105: E | CR105: 0 | CS105: 0 | CT105: E | DF105: 0 | DG105: 0 | DH105: E | DS105: 0 | DT105: 0 | DU105: E | ED105: 0 | EF105: 0 | EG105: E | EQ105: 0 | ES105: 0 | ET105: E | FD105: 0 | FF105: 0 | FG105: E | FH105: --- | FI105: ERR | FK105: ----
B106: 100 | AG106: 0 | AH106: 0 | AI106: 0 | AJ106: 0 | AK106: 0 | AL106: 0 | AM106: 0 | AN106: 0 | AO106: 0 | AP106: 0 | AQ106: 0 | AR106: 0 | AS106: 0 | BE106: 0 | BF106: 0 | BG106: E | BR106: 0 | BS106: 0 | BT106: E | CD106: 0 | CE106: 0 | CF106: E | CR106: 0 | CS106: 0 | CT106: E | DF106: 0 | DG106: 0 | DH106: E | DS106: 0 | DT106: 0 | DU106: E | ED106: 0 | EF106: 0 | EG106: E | EQ106: 0 | ES106: 0 | ET106: E | FD106: 0 | FF106: 0 | FG106: E | FH106: --- | FI106: ERR | FK106: ----
B107: 101 | AG107: 0 | AH107: 0 | AI107: 0 | AJ107: 0 | AK107: 0 | AL107: 0 | AM107: 0 | AN107: 0 | AO107: 0 | AP107: 0 | AQ107: 0 | AR107: 0 | AS107: 0 | BE107: 0 | BF107: 0 | BG107: E | BR107: 0 | BS107: 0 | BT107: E | CD107: 0 | CE107: 0 | CF107: E | CR107: 0 | CS107: 0 | CT107: E | DF107: 0 | DG107: 0 | DH107: E | DS107: 0 | DT107: 0 | DU107: E | ED107: 0 | EF107: 0 | EG107: E | EQ107: 0 | ES107: 0 | ET107: E | FD107: 0 | FF107: 0 | FG107: E | FH107: --- | FI107: ERR | FK107: ----
B108: 102 | AG108: 0 | AH108: 0 | AI108: 0 | AJ108: 0 | AK108: 0 | AL108: 0 | AM108: 0 | AN108: 0 | AO108: 0 | AP108: 0 | AQ108: 0 | AR108: 0 | AS108: 0 | BE108: 0 | BF108: 0 | BG108: E | BR108: 0 | BS108: 0 | BT108: E | CD108: 0 | CE108: 0 | CF108: E | CR108: 0 | CS108: 0 | CT108: E | DF108: 0 | DG108: 0 | DH108: E | DS108: 0 | DT108: 0 | DU108: E | ED108: 0 | EF108: 0 | EG108: E | EQ108: 0 | ES108: 0 | ET108: E | FD108: 0 | FF108: 0 | FG108: E | FH108: --- | FI108: ERR | FK108: ----
B109: 103 | AG109: 0 | AH109: 0 | AI109: 0 | AJ109: 0 | AK109: 0 | AL109: 0 | AM109: 0 | AN109: 0 | AO109: 0 | AP109: 0 | AQ109: 0 | AR109: 0 | AS109: 0 | BE109: 0 | BF109: 0 | BG109: E | BR109: 0 | BS109: 0 | BT109: E | CD109: 0 | CE109: 0 | CF109: E | CR109: 0 | CS109: 0 | CT109: E | DF109: 0 | DG109: 0 | DH109: E | DS109: 0 | DT109: 0 | DU109: E | ED109: 0 | EF109: 0 | EG109: E | EQ109: 0 | ES109: 0 | ET109: E | FD109: 0 | FF109: 0 | FG109: E | FH109: --- | FI109: ERR | FK109: ----
B110: 104 | AG110: 0 | AH110: 0 | AI110: 0 | AJ110: 0 | AK110: 0 | AL110: 0 | AM110: 0 | AN110: 0 | AO110: 0 | AP110: 0 | AQ110: 0 | AR110: 0 | AS110: 0 | BE110: 0 | BF110: 0 | BG110: E | BR110: 0 | BS110: 0 | BT110: E | CD110: 0 | CE110: 0 | CF110: E | CR110: 0 | CS110: 0 | CT110: E | DF110: 0 | DG110: 0 | DH110: E | DS110: 0 | DT110: 0 | DU110: E | ED110: 0 | EF110: 0 | EG110: E | EQ110: 0 | ES110: 0 | ET110: E | FD110: 0 | FF110: 0 | FG110: E | FH110: --- | FI110: ERR | FK110: ----
B111: 105 | AG111: 0 | AH111: 0 | AI111: 0 | AJ111: 0 | AK111: 0 | AL111: 0 | AM111: 0 | AN111: 0 | AO111: 0 | AP111: 0 | AQ111: 0 | AR111: 0 | AS111: 0 | BE111: 0 | BF111: 0 | BG111: E | BR111: 0 | BS111: 0 | BT111: E | CD111: 0 | CE111: 0 | CF111: E | CR111: 0 | CS111: 0 | CT111: E | DF111: 0 | DG111: 0 | DH111: E | DS111: 0 | DT111: 0 | DU111: E | ED111: 0 | EF111: 0 | EG111: E | EQ111: 0 | ES111: 0 | ET111: E | FD111: 0 | FF111: 0 | FG111: E | FH111: --- | FI111: ERR | FK111: ----
B112: 106 | AG112: 0 | AH112: 0 | AI112: 0 | AJ112: 0 | AK112: 0 | AL112: 0 | AM112: 0 | AN112: 0 | AO112: 0 | AP112: 0 | AQ112: 0 | AR112: 0 | AS112: 0 | BE112: 0 | BF112: 0 | BG112: E | BR112: 0 | BS112: 0 | BT112: E | CD112: 0 | CE112: 0 | CF112: E | CR112: 0 | CS112: 0 | CT112: E | DF112: 0 | DG112: 0 | DH112: E | DS112: 0 | DT112: 0 | DU112: E | ED112: 0 | EF112: 0 | EG112: E | EQ112: 0 | ES112: 0 | ET112: E | FD112: 0 | FF112: 0 | FG112: E | FH112: --- | FI112: ERR | FK112: ----
B113: 107 | AG113: 0 | AH113: 0 | AI113: 0 | AJ113: 0 | AK113: 0 | AL113: 0 | AM113: 0 | AN113: 0 | AO113: 0 | AP113: 0 | AQ113: 0 | AR113: 0 | AS113: 0 | BE113: 0 | BF113: 0 | BG113: E | BR113: 0 | BS113: 0 | BT113: E | CD113: 0 | CE113: 0 | CF113: E | CR113: 0 | CS113: 0 | CT113: E | DF113: 0 | DG113: 0 | DH113: E | DS113: 0 | DT113: 0 | DU113: E | ED113: 0 | EF113: 0 | EG113: E | EQ113: 0 | ES113: 0 | ET113: E | FD113: 0 | FF113: 0 | FG113: E | FH113: --- | FI113: ERR | FK113: ----
B114: 108 | AG114: 0 | AH114: 0 | AI114: 0 | AJ114: 0 | AK114: 0 | AL114: 0 | AM114: 0 | AN114: 0 | AO114: 0 | AP114: 0 | AQ114: 0 | AR114: 0 | AS114: 0 | BE114: 0 | BF114: 0 | BG114: E | BR114: 0 | BS114: 0 | BT114: E | CD114: 0 | CE114: 0 | CF114: E | CR114: 0 | CS114: 0 | CT114: E | DF114: 0 | DG114: 0 | DH114: E | DS114: 0 | DT114: 0 | DU114: E | ED114: 0 | EF114: 0 | EG114: E | EQ114: 0 | ES114: 0 | ET114: E | FD114: 0 | FF114: 0 | FG114: E | FH114: --- | FI114: ERR | FK114: ----
B115: 109 | AG115: 0 | AH115: 0 | AI115: 0 | AJ115: 0 | AK115: 0 | AL115: 0 | AM115: 0 | AN115: 0 | AO115: 0 | AP115: 0 | AQ115: 0 | AR115: 0 | AS115: 0 | BE115: 0 | BF115: 0 | BG115: E | BR115: 0 | BS115: 0 | BT115: E | CD115: 0 | CE115: 0 | CF115: E | CR115: 0 | CS115: 0 | CT115: E | DF115: 0 | DG115: 0 | DH115: E | DS115: 0 | DT115: 0 | DU115: E | ED115: 0 | EF115: 0 | EG115: E | EQ115: 0 | ES115: 0 | ET115: E | FD115: 0 | FF115: 0 | FG115: E | FH115: --- | FI115: ERR | FK115: ----
B116: 110 | AG116: 0 | AH116: 0 | AI116: 0 | AJ116: 0 | AK116: 0 | AL116: 0 | AM116: 0 | AN116: 0 | AO116: 0 | AP116: 0 | AQ116: 0 | AR116: 0 | AS116: 0 | BE116: 0 | BF116: 0 | BG116: E | BR116: 0 | BS116: 0 | BT116: E | CD116: 0 | CE116: 0 | CF116: E | CR116: 0 | CS116: 0 | CT116: E | DF116: 0 | DG116: 0 | DH116: E | DS116: 0 | DT116: 0 | DU116: E | ED116: 0 | EF116: 0 | EG116: E | EQ116: 0 | ES116: 0 | ET116: E | FD116: 0 | FF116: 0 | FG116: E | FH116: --- | FI116: ERR | FK116: ----
B117: 111 | AG117: 0 | AH117: 0 | AI117: 0 | AJ117: 0 | AK117: 0 | AL117: 0 | AM117: 0 | AN117: 0 | AO117: 0 | AP117: 0 | AQ117: 0 | AR117: 0 | AS117: 0 | BE117: 0 | BF117: 0 | BG117: E | BR117: 0 | BS117: 0 | BT117: E | CD117: 0 | CE117: 0 | CF117: E | CR117: 0 | CS117: 0 | CT117: E | DF117: 0 | DG117: 0 | DH117: E | DS117: 0 | DT117: 0 | DU117: E | ED117: 0 | EF117: 0 | EG117: E | EQ117: 0 | ES117: 0 | ET117: E | FD117: 0 | FF117: 0 | FG117: E | FH117: --- | FI117: ERR | FK117: ----
B118: 112 | AG118: 0 | AH118: 0 | AI118: 0 | AJ118: 0 | AK118: 0 | AL118: 0 | AM118: 0 | AN118: 0 | AO118: 0 | AP118: 0 | AQ118: 0 | AR118: 0 | AS118: 0 | BE118: 0 | BF118: 0 | BG118: E | BR118: 0 | BS118: 0 | BT118: E | CD118: 0 | CE118: 0 | CF118: E | CR118: 0 | CS118: 0 | CT118: E | DF118: 0 | DG118: 0 | DH118: E | DS118: 0 | DT118: 0 | DU118: E | ED118: 0 | EF118: 0 | EG118: E | EQ118: 0 | ES118: 0 | ET118: E | FD118: 0 | FF118: 0 | FG118: E | FH118: --- | FI118: ERR | FK118: ----
B119: 113 | AG119: 0 | AH119: 0 | AI119: 0 | AJ119: 0 | AK119: 0 | AL119: 0 | AM119: 0 | AN119: 0 | AO119: 0 | AP119: 0 | AQ119: 0 | AR119: 0 | AS119: 0 | BE119: 0 | BF119: 0 | BG119: E | BR119: 0 | BS119: 0 | BT119: E | CD119: 0 | CE119: 0 | CF119: E | CR119: 0 | CS119: 0 | CT119: E | DF119: 0 | DG119: 0 | DH119: E | DS119: 0 | DT119: 0 | DU119: E | ED119: 0 | EF119: 0 | EG119: E | EQ119: 0 | ES119: 0 | ET119: E | FD119: 0 | FF119: 0 | FG119: E | FH119: --- | FI119: ERR | FK119: ----
B120: 114 | AG120: 0 | AH120: 0 | AI120: 0 | AJ120: 0 | AK120: 0 | AL120: 0 | AM120: 0 | AN120: 0 | AO120: 0 | AP120: 0 | AQ120: 0 | AR120: 0 | AS120: 0 | BE120: 0 | BF120: 0 | BG120: E | BR120: 0 | BS120: 0 | BT120: E | CD120: 0 | CE120: 0 | CF120: E | CR120: 0 | CS120: 0 | CT120: E | DF120: 0 | DG120: 0 | DH120: E | DS120: 0 | DT120: 0 | DU120: E | ED120: 0 | EF120: 0 | EG120: E | EQ120: 0 | ES120: 0 | ET120: E | FD120: 0 | FF120: 0 | FG120: E | FH120: --- | FI120: ERR | FK120: ----
B121: 115 | AG121: 0 | AH121: 0 | AI121: 0 | AJ121: 0 | AK121: 0 | AL121: 0 | AM121: 0 | AN121: 0 | AO121: 0 | AP121: 0 | AQ121: 0 | AR121: 0 | AS121: 0 | BE121: 0 | BF121: 0 | BG121: E | BR121: 0 | BS121: 0 | BT121: E | CD121: 0 | CE121: 0 | CF121: E | CR121: 0 | CS121: 0 | CT121: E | DF121: 0 | DG121: 0 | DH121: E | DS121: 0 | DT121: 0 | DU121: E | ED121: 0 | EF121: 0 | EG121: E | EQ121: 0 | ES121: 0 | ET121: E | FD121: 0 | FF121: 0 | FG121: E | FH121: --- | FI121: ERR | FK121: ----
B122: 116 | AG122: 0 | AH122: 0 | AI122: 0 | AJ122: 0 | AK122: 0 | AL122: 0 | AM122: 0 | AN122: 0 | AO122: 0 | AP122: 0 | AQ122: 0 | AR122: 0 | AS122: 0 | BE122: 0 | BF122: 0 | BG122: E | BR122: 0 | BS122: 0 | BT122: E | CD122: 0 | CE122: 0 | CF122: E | CR122: 0 | CS122: 0 | CT122: E | DF122: 0 | DG122: 0 | DH122: E | DS122: 0 | DT122: 0 | DU122: E | ED122: 0 | EF122: 0 | EG122: E | EQ122: 0 | ES122: 0 | ET122: E | FD122: 0 | FF122: 0 | FG122: E | FH122: --- | FI122: ERR | FK122: ----
B123: 117 | AG123: 0 | AH123: 0 | AI123: 0 | AJ123: 0 | AK123: 0 | AL123: 0 | AM123: 0 | AN123: 0 | AO123: 0 | AP123: 0 | AQ123: 0 | AR123: 0 | AS123: 0 | BE123: 0 | BF123: 0 | BG123: E | BR123: 0 | BS123: 0 | BT123: E | CD123: 0 | CE123: 0 | CF123: E | CR123: 0 | CS123: 0 | CT123: E | DF123: 0 | DG123: 0 | DH123: E | DS123: 0 | DT123: 0 | DU123: E | ED123: 0 | EF123: 0 | EG123: E | EQ123: 0 | ES123: 0 | ET123: E | FD123: 0 | FF123: 0 | FG123: E | FH123: --- | FI123: ERR | FK123: ----
B124: 118 | AG124: 0 | AH124: 0 | AI124: 0 | AJ124: 0 | AK124: 0 | AL124: 0 | AM124: 0 | AN124: 0 | AO124: 0 | AP124: 0 | AQ124: 0 | AR124: 0 | AS124: 0 | BE124: 0 | BF124: 0 | BG124: E | BR124: 0 | BS124: 0 | BT124: E | CD124: 0 | CE124: 0 | CF124: E | CR124: 0 | CS124: 0 | CT124: E | DF124: 0 | DG124: 0 | DH124: E | DS124: 0 | DT124: 0 | DU124: E | ED124: 0 | EF124: 0 | EG124: E | EQ124: 0 | ES124: 0 | ET124: E | FD124: 0 | FF124: 0 | FG124: E | FH124: --- | FI124: ERR | FK124: ----
B125: 119 | AG125: 0 | AH125: 0 | AI125: 0 | AJ125: 0 | AK125: 0 | AL125: 0 | AM125: 0 | AN125: 0 | AO125: 0 | AP125: 0 | AQ125: 0 | AR125: 0 | AS125: 0 | BE125: 0 | BF125: 0 | BG125: E | BR125: 0 | BS125: 0 | BT125: E | CD125: 0 | CE125: 0 | CF125: E | CR125: 0 | CS125: 0 | CT125: E | DF125: 0 | DG125: 0 | DH125: E | DS125: 0 | DT125: 0 | DU125: E | ED125: 0 | EF125: 0 | EG125: E | EQ125: 0 | ES125: 0 | ET125: E | FD125: 0 | FF125: 0 | FG125: E | FH125: --- | FI125: ERR | FK125: ----
B126: 120 | AG126: 0 | AH126: 0 | AI126: 0 | AJ126: 0 | AK126: 0 | AL126: 0 | AM126: 0 | AN126: 0 | AO126: 0 | AP126: 0 | AQ126: 0 | AR126: 0 | AS126: 0 | BE126: 0 | BF126: 0 | BG126: E | BR126: 0 | BS126: 0 | BT126: E | CD126: 0 | CE126: 0 | CF126: E | CR126: 0 | CS126: 0 | CT126: E | DF126: 0 | DG126: 0 | DH126: E | DS126: 0 | DT126: 0 | DU126: E | ED126: 0 | EF126: 0 | EG126: E | EQ126: 0 | ES126: 0 | ET126: E | FD126: 0 | FF126: 0 | FG126: E | FH126: --- | FI126: ERR | FK126: ----
B127: 121 | AG127: 0 | AH127: 0 | AI127: 0 | AJ127: 0 | AK127: 0 | AL127: 0 | AM127: 0 | AN127: 0 | AO127: 0 | AP127: 0 | AQ127: 0 | AR127: 0 | AS127: 0 | BE127: 0 | BF127: 0 | BG127: E | BR127: 0 | BS127: 0 | BT127: E | CD127: 0 | CE127: 0 | CF127: E | CR127: 0 | CS127: 0 | CT127: E | DF127: 0 | DG127: 0 | DH127: E | DS127: 0 | DT127: 0 | DU127: E | ED127: 0 | EF127: 0 | EG127: E | EQ127: 0 | ES127: 0 | ET127: E | FD127: 0 | FF127: 0 | FG127: E | FH127: --- | FI127: ERR | FK127: ----
B128: 122 | AG128: 0 | AH128: 0 | AI128: 0 | AJ128: 0 | AK128: 0 | AL128: 0 | AM128: 0 | AN128: 0 | AO128: 0 | AP128: 0 | AQ128: 0 | AR128: 0 | AS128: 0 | BE128: 0 | BF128: 0 | BG128: E | BR128: 0 | BS128: 0 | BT128: E | CD128: 0 | CE128: 0 | CF128: E | CR128: 0 | CS128: 0 | CT128: E | DF128: 0 | DG128: 0 | DH128: E | DS128: 0 | DT128: 0 | DU128: E | ED128: 0 | EF128: 0 | EG128: E | EQ128: 0 | ES128: 0 | ET128: E | FD128: 0 | FF128: 0 | FG128: E | FH128: --- | FI128: ERR | FK128: ----
B129: 123 | AG129: 0 | AH129: 0 | AI129: 0 | AJ129: 0 | AK129: 0 | AL129: 0 | AM129: 0 | AN129: 0 | AO129: 0 | AP129: 0 | AQ129: 0 | AR129: 0 | AS129: 0 | BE129: 0 | BF129: 0 | BG129: E | BR129: 0 | BS129: 0 | BT129: E | CD129: 0 | CE129: 0 | CF129: E | CR129: 0 | CS129: 0 | CT129: E | DF129: 0 | DG129: 0 | DH129: E | DS129: 0 | DT129: 0 | DU129: E | ED129: 0 | EF129: 0 | EG129: E | EQ129: 0 | ES129: 0 | ET129: E | FD129: 0 | FF129: 0 | FG129: E | FH129: --- | FI129: ERR | FK129: ----
B130: 124 | AG130: 0 | AH130: 0 | AI130: 0 | AJ130: 0 | AK130: 0 | AL130: 0 | AM130: 0 | AN130: 0 | AO130: 0 | AP130: 0 | AQ130: 0 | AR130: 0 | AS130: 0 | BE130: 0 | BF130: 0 | BG130: E | BR130: 0 | BS130: 0 | BT130: E | CD130: 0 | CE130: 0 | CF130: E | CR130: 0 | CS130: 0 | CT130: E | DF130: 0 | DG130: 0 | DH130: E | DS130: 0 | DT130: 0 | DU130: E | ED130: 0 | EF130: 0 | EG130: E | EQ130: 0 | ES130: 0 | ET130: E | FD130: 0 | FF130: 0 | FG130: E | FH130: --- | FI130: ERR | FK130: ----
B131: 125 | AG131: 0 | AH131: 0 | AI131: 0 | AJ131: 0 | AK131: 0 | AL131: 0 | AM131: 0 | AN131: 0 | AO131: 0 | AP131: 0 | AQ131: 0 | AR131: 0 | AS131: 0 | BE131: 0 | BF131: 0 | BG131: E | BR131: 0 | BS131: 0 | BT131: E | CD131: 0 | CE131: 0 | CF131: E | CR131: 0 | CS131: 0 | CT131: E | DF131: 0 | DG131: 0 | DH131: E | DS131: 0 | DT131: 0 | DU131: E | ED131: 0 | EF131: 0 | EG131: E | EQ131: 0 | ES131: 0 | ET131: E | FD131: 0 | FF131: 0 | FG131: E | FH131: --- | FI131: ERR | FK131: ----
B132: 126 | AG132: 0 | AH132: 0 | AI132: 0 | AJ132: 0 | AK132: 0 | AL132: 0 | AM132: 0 | AN132: 0 | AO132: 0 | AP132: 0 | AQ132: 0 | AR132: 0 | AS132: 0 | BE132: 0 | BF132: 0 | BG132: E | BR132: 0 | BS132: 0 | BT132: E | CD132: 0 | CE132: 0 | CF132: E | CR132: 0 | CS132: 0 | CT132: E | DF132: 0 | DG132: 0 | DH132: E | DS132: 0 | DT132: 0 | DU132: E | ED132: 0 | EF132: 0 | EG132: E | EQ132: 0 | ES132: 0 | ET132: E | FD132: 0 | FF132: 0 | FG132: E | FH132: --- | FI132: ERR | FK132: ----
B133: 127 | AG133: 0 | AH133: 0 | AI133: 0 | AJ133: 0 | AK133: 0 | AL133: 0 | AM133: 0 | AN133: 0 | AO133: 0 | AP133: 0 | AQ133: 0 | AR133: 0 | AS133: 0 | BE133: 0 | BF133: 0 | BG133: E | BR133: 0 | BS133: 0 | BT133: E | CD133: 0 | CE133: 0 | CF133: E | CR133: 0 | CS133: 0 | CT133: E | DF133: 0 | DG133: 0 | DH133: E | DS133: 0 | DT133: 0 | DU133: E | ED133: 0 | EF133: 0 | EG133: E | EQ133: 0 | ES133: 0 | ET133: E | FD133: 0 | FF133: 0 | FG133: E | FH133: --- | FI133: ERR | FK133: ----
B134: 128 | AG134: 0 | AH134: 0 | AI134: 0 | AJ134: 0 | AK134: 0 | AL134: 0 | AM134: 0 | AN134: 0 | AO134: 0 | AP134: 0 | AQ134: 0 | AR134: 0 | AS134: 0 | BE134: 0 | BF134: 0 | BG134: E | BR134: 0 | BS134: 0 | BT134: E | CD134: 0 | CE134: 0 | CF134: E | CR134: 0 | CS134: 0 | CT134: E | DF134: 0 | DG134: 0 | DH134: E | DS134: 0 | DT134: 0 | DU134: E | ED134: 0 | EF134: 0 | EG134: E | EQ134: 0 | ES134: 0 | ET134: E | FD134: 0 | FF134: 0 | FG134: E | FH134: --- | FI134: ERR | FK134: ----
B135: 129 | AG135: 0 | AH135: 0 | AI135: 0 | AJ135: 0 | AK135: 0 | AL135: 0 | AM135: 0 | AN135: 0 | AO135: 0 | AP135: 0 | AQ135: 0 | AR135: 0 | AS135: 0 | BE135: 0 | BF135: 0 | BG135: E | BR135: 0 | BS135: 0 | BT135: E | CD135: 0 | CE135: 0 | CF135: E | CR135: 0 | CS135: 0 | CT135: E | DF135: 0 | DG135: 0 | DH135: E | DS135: 0 | DT135: 0 | DU135: E | ED135: 0 | EF135: 0 | EG135: E | EQ135: 0 | ES135: 0 | ET135: E | FD135: 0 | FF135: 0 | FG135: E | FH135: --- | FI135: ERR | FK135: ----
B136: 130 | AG136: =SUM(V136:AF136) -> 0 | AH136: =V136/$V$4 -> 0 | AI136: =W136/$W$4 -> 0 | AJ136: =X136/$X$4 -> 0 | AK136: =Y136/$Y$4 -> 0 | AL136: =Z136/$Z$4 -> 0 | AM136: =AA136/$AA$4 -> 0 | AN136: =AB136/$AB$4 -> 0 | AO136: =AC136/$AC$4 -> 0 | AP136: =AD136/$AD$4 -> 0 | AQ136: =AE136/$AE$4 -> 0 | AR136: =AF136/$AF$4 -> 0 | AS136: =AG136/$AG$4 -> 0 | BE136: =SUM(AZ136:BD136) -> 0 | BF136: =BE136+AY136 -> 0 | BG136: =IFERROR(IF(BF136>90,"A+",IF(BF136>80,"A",IF(BF136>70,"B+",IF(BF136>60,"B",IF(BF136>50,"C+",IF(BF136>40,"C",IF(BF136>=33,"D","E"))))))),"Abs") -> E | BR136: =SUM(BM136:BQ136) -> 0 | BS136: =BR136+BL136 -> 0 | BT136: =IFERROR(IF(BS136>90,"A+",IF(BS136>80,"A",IF(BS136>70,"B+",IF(BS136>60,"B",IF(BS136>50,"C+",IF(BS136>40,"C",IF(BS136>=33,"D","E"))))))),"Abs") -> E | CD136: =SUM(BZ136:CC136) -> 0 | CE136: =CD136+BY136 -> 0 | CF136: =IFERROR(IF(CE136>90,"A+",IF(CE136>80,"A",IF(CE136>70,"B+",IF(CE136>60,"B",IF(CE136>50,"C+",IF(CE136>40,"C",IF(CE136>=33,"D","E"))))))),"Abs") -> E | CR136: =SUM(CL136:CQ136) -> 0 | CS136: =CR136+CK136 -> 0 | CT136: =IFERROR(IF(CS136>90,"A+",IF(CS136>80,"A",IF(CS136>70,"B+",IF(CS136>60,"B",IF(CS136>50,"C+",IF(CS136>40,"C",IF(CS136>=33,"D","E"))))))),"Abs") -> E | DF136: =SUM(CZ136:DE136) -> 0 | DG136: =DF136+CY136 -> 0 | DH136: =IFERROR(IF(DG136>90,"A+",IF(DG136>80,"A",IF(DG136>70,"B+",IF(DG136>60,"B",IF(DG136>50,"C+",IF(DG136>40,"C",IF(DG136>=33,"D","E"))))))),"Abs") -> E | DS136: =SUM(DN136:DR136) -> 0 | DT136: =DS136+DM136 -> 0 | DU136: =IFERROR(IF(DT136>90,"A+",IF(DT136>80,"A",IF(DT136>70,"B+",IF(DT136>60,"B",IF(DT136>50,"C+",IF(DT136>40,"C",IF(DT136>=33,"D","E"))))))),"Abs") -> E | ED136: =SUM(EA136:EC136) -> 0 | EF136: =EE136+ED136+DZ136 -> 0 | EG136: =IFERROR(IF(EF136>90,"A+",IF(EF136>80,"A",IF(EF136>70,"B+",IF(EF136>60,"B",IF(EF136>50,"C+",IF(EF136>40,"C",IF(EF136>=33,"D","E"))))))),"Abs") -> E | EQ136: =SUM(EM136:EP136) -> 0 | ES136: =ER136+EQ136+EL136 -> 0 | ET136: =IFERROR(IF(ES136>90,"A+",IF(ES136>80,"A",IF(ES136>70,"B+",IF(ES136>60,"B",IF(ES136>50,"C+",IF(ES136>40,"C",IF(ES136>=33,"D","E"))))))),"Abs") -> E | FD136: =SUM(EZ136:FC136) -> 0 | FF136: =FE136+FD136+EY136 -> 0 | FG136: =IFERROR(IF(FF136>90,"A+",IF(FF136>80,"A",IF(FF136>70,"B+",IF(FF136>60,"B",IF(FF136>50,"C+",IF(FF136>40,"C",IF(FF136>=33,"D","E"))))))),"Abs") -> E | FH136: =IF(AND(MIN(AY136,BL136,BY136,CK136,CY136,DM136)>19,MIN(BF136,BS136,CE136,CS136,DG136,DT136)>32),SUM(BF136,BS136,CE136,CS136,DG136,DT136),"---") -> --- | FI136: =IFERROR(FH136/600*100,"ERR") -> ERR | FJ136: =IF(FI136="ERR","",(IF(FI136>90,"A+",IF(FI136>80,"A",IF(FI136>70,"B+",IF(FI136>60,"B",IF(FI136>50,"C+",IF(FI136>40,"C",IF(FI136>=33,"D",IF(FI136<33,"E","")))))))))) ->  | FK136: =IF(FI136="ERR","----",IF(FI136>=33,"ਪਾਸ","--")) -> ----
B137: 131 | AG137: 0 | AH137: 0 | AI137: 0 | AJ137: 0 | AK137: 0 | AL137: 0 | AM137: 0 | AN137: 0 | AO137: 0 | AP137: 0 | AQ137: 0 | AR137: 0 | AS137: 0 | BE137: 0 | BF137: 0 | BG137: E | BR137: 0 | BS137: 0 | BT137: E | CD137: 0 | CE137: 0 | CF137: E | CR137: 0 | CS137: 0 | CT137: E | DF137: 0 | DG137: 0 | DH137: E | DS137: 0 | DT137: 0 | DU137: E | ED137: 0 | EF137: 0 | EG137: E | EQ137: 0 | ES137: 0 | ET137: E | FD137: 0 | FF137: 0 | FG137: E | FH137: --- | FI137: ERR | FK137: ----
B138: 132 | AG138: 0 | AH138: 0 | AI138: 0 | AJ138: 0 | AK138: 0 | AL138: 0 | AM138: 0 | AN138: 0 | AO138: 0 | AP138: 0 | AQ138: 0 | AR138: 0 | AS138: 0 | BE138: 0 | BF138: 0 | BG138: E | BR138: 0 | BS138: 0 | BT138: E | CD138: 0 | CE138: 0 | CF138: E | CR138: 0 | CS138: 0 | CT138: E | DF138: 0 | DG138: 0 | DH138: E | DS138: 0 | DT138: 0 | DU138: E | ED138: 0 | EF138: 0 | EG138: E | EQ138: 0 | ES138: 0 | ET138: E | FD138: 0 | FF138: 0 | FG138: E | FH138: --- | FI138: ERR | FK138: ----
B139: 133 | AG139: 0 | AH139: 0 | AI139: 0 | AJ139: 0 | AK139: 0 | AL139: 0 | AM139: 0 | AN139: 0 | AO139: 0 | AP139: 0 | AQ139: 0 | AR139: 0 | AS139: 0 | BE139: 0 | BF139: 0 | BG139: E | BR139: 0 | BS139: 0 | BT139: E | CD139: 0 | CE139: 0 | CF139: E | CR139: 0 | CS139: 0 | CT139: E | DF139: 0 | DG139: 0 | DH139: E | DS139: 0 | DT139: 0 | DU139: E | ED139: 0 | EF139: 0 | EG139: E | EQ139: 0 | ES139: 0 | ET139: E | FD139: 0 | FF139: 0 | FG139: E | FH139: --- | FI139: ERR | FK139: ----
B140: 134 | AG140: 0 | AH140: 0 | AI140: 0 | AJ140: 0 | AK140: 0 | AL140: 0 | AM140: 0 | AN140: 0 | AO140: 0 | AP140: 0 | AQ140: 0 | AR140: 0 | AS140: 0 | BE140: 0 | BF140: 0 | BG140: E | BR140: 0 | BS140: 0 | BT140: E | CD140: 0 | CE140: 0 | CF140: E | CR140: 0 | CS140: 0 | CT140: E | DF140: 0 | DG140: 0 | DH140: E | DS140: 0 | DT140: 0 | DU140: E | ED140: 0 | EF140: 0 | EG140: E | EQ140: 0 | ES140: 0 | ET140: E | FD140: 0 | FF140: 0 | FG140: E | FH140: --- | FI140: ERR | FK140: ----
B141: 135 | AG141: 0 | AH141: 0 | AI141: 0 | AJ141: 0 | AK141: 0 | AL141: 0 | AM141: 0 | AN141: 0 | AO141: 0 | AP141: 0 | AQ141: 0 | AR141: 0 | AS141: 0 | BE141: 0 | BF141: 0 | BG141: E | BR141: 0 | BS141: 0 | BT141: E | CD141: 0 | CE141: 0 | CF141: E | CR141: 0 | CS141: 0 | CT141: E | DF141: 0 | DG141: 0 | DH141: E | DS141: 0 | DT141: 0 | DU141: E | ED141: 0 | EF141: 0 | EG141: E | EQ141: 0 | ES141: 0 | ET141: E | FD141: 0 | FF141: 0 | FG141: E | FH141: --- | FI141: ERR | FK141: ----
B142: 136 | AG142: 0 | AH142: 0 | AI142: 0 | AJ142: 0 | AK142: 0 | AL142: 0 | AM142: 0 | AN142: 0 | AO142: 0 | AP142: 0 | AQ142: 0 | AR142: 0 | AS142: 0 | BE142: 0 | BF142: 0 | BG142: E | BR142: 0 | BS142: 0 | BT142: E | CD142: 0 | CE142: 0 | CF142: E | CR142: 0 | CS142: 0 | CT142: E | DF142: 0 | DG142: 0 | DH142: E | DS142: 0 | DT142: 0 | DU142: E | ED142: 0 | EF142: 0 | EG142: E | EQ142: 0 | ES142: 0 | ET142: E | FD142: 0 | FF142: 0 | FG142: E | FH142: --- | FI142: ERR | FK142: ----
B143: 137 | AG143: 0 | AH143: 0 | AI143: 0 | AJ143: 0 | AK143: 0 | AL143: 0 | AM143: 0 | AN143: 0 | AO143: 0 | AP143: 0 | AQ143: 0 | AR143: 0 | AS143: 0 | BE143: 0 | BF143: 0 | BG143: E | BR143: 0 | BS143: 0 | BT143: E | CD143: 0 | CE143: 0 | CF143: E | CR143: 0 | CS143: 0 | CT143: E | DF143: 0 | DG143: 0 | DH143: E | DS143: 0 | DT143: 0 | DU143: E | ED143: 0 | EF143: 0 | EG143: E | EQ143: 0 | ES143: 0 | ET143: E | FD143: 0 | FF143: 0 | FG143: E | FH143: --- | FI143: ERR | FK143: ----
B144: 138 | AG144: 0 | AH144: 0 | AI144: 0 | AJ144: 0 | AK144: 0 | AL144: 0 | AM144: 0 | AN144: 0 | AO144: 0 | AP144: 0 | AQ144: 0 | AR144: 0 | AS144: 0 | BE144: 0 | BF144: 0 | BG144: E | BR144: 0 | BS144: 0 | BT144: E | CD144: 0 | CE144: 0 | CF144: E | CR144: 0 | CS144: 0 | CT144: E | DF144: 0 | DG144: 0 | DH144: E | DS144: 0 | DT144: 0 | DU144: E | ED144: 0 | EF144: 0 | EG144: E | EQ144: 0 | ES144: 0 | ET144: E | FD144: 0 | FF144: 0 | FG144: E | FH144: --- | FI144: ERR | FK144: ----
B145: 139 | AG145: 0 | AH145: 0 | AI145: 0 | AJ145: 0 | AK145: 0 | AL145: 0 | AM145: 0 | AN145: 0 | AO145: 0 | AP145: 0 | AQ145: 0 | AR145: 0 | AS145: 0 | BE145: 0 | BF145: 0 | BG145: E | BR145: 0 | BS145: 0 | BT145: E | CD145: 0 | CE145: 0 | CF145: E | CR145: 0 | CS145: 0 | CT145: E | DF145: 0 | DG145: 0 | DH145: E | DS145: 0 | DT145: 0 | DU145: E | ED145: 0 | EF145: 0 | EG145: E | EQ145: 0 | ES145: 0 | ET145: E | FD145: 0 | FF145: 0 | FG145: E | FH145: --- | FI145: ERR | FK145: ----
B146: 140 | AG146: 0 | AH146: 0 | AI146: 0 | AJ146: 0 | AK146: 0 | AL146: 0 | AM146: 0 | AN146: 0 | AO146: 0 | AP146: 0 | AQ146: 0 | AR146: 0 | AS146: 0 | BE146: 0 | BF146: 0 | BG146: E | BR146: 0 | BS146: 0 | BT146: E | CD146: 0 | CE146: 0 | CF146: E | CR146: 0 | CS146: 0 | CT146: E | DF146: 0 | DG146: 0 | DH146: E | DS146: 0 | DT146: 0 | DU146: E | ED146: 0 | EF146: 0 | EG146: E | EQ146: 0 | ES146: 0 | ET146: E | FD146: 0 | FF146: 0 | FG146: E | FH146: --- | FI146: ERR | FK146: ----
B147: 141 | AG147: 0 | AH147: 0 | AI147: 0 | AJ147: 0 | AK147: 0 | AL147: 0 | AM147: 0 | AN147: 0 | AO147: 0 | AP147: 0 | AQ147: 0 | AR147: 0 | AS147: 0 | BE147: 0 | BF147: 0 | BG147: E | BR147: 0 | BS147: 0 | BT147: E | CD147: 0 | CE147: 0 | CF147: E | CR147: 0 | CS147: 0 | CT147: E | DF147: 0 | DG147: 0 | DH147: E | DS147: 0 | DT147: 0 | DU147: E | ED147: 0 | EF147: 0 | EG147: E | EQ147: 0 | ES147: 0 | ET147: E | FD147: 0 | FF147: 0 | FG147: E | FH147: --- | FI147: ERR | FK147: ----
B148: 142 | AG148: 0 | AH148: 0 | AI148: 0 | AJ148: 0 | AK148: 0 | AL148: 0 | AM148: 0 | AN148: 0 | AO148: 0 | AP148: 0 | AQ148: 0 | AR148: 0 | AS148: 0 | BE148: 0 | BF148: 0 | BG148: E | BR148: 0 | BS148: 0 | BT148: E | CD148: 0 | CE148: 0 | CF148: E | CR148: 0 | CS148: 0 | CT148: E | DF148: 0 | DG148: 0 | DH148: E | DS148: 0 | DT148: 0 | DU148: E | ED148: 0 | EF148: 0 | EG148: E | EQ148: 0 | ES148: 0 | ET148: E | FD148: 0 | FF148: 0 | FG148: E | FH148: --- | FI148: ERR | FK148: ----
B149: 143 | AG149: 0 | AH149: 0 | AI149: 0 | AJ149: 0 | AK149: 0 | AL149: 0 | AM149: 0 | AN149: 0 | AO149: 0 | AP149: 0 | AQ149: 0 | AR149: 0 | AS149: 0 | BE149: 0 | BF149: 0 | BG149: E | BR149: 0 | BS149: 0 | BT149: E | CD149: 0 | CE149: 0 | CF149: E | CR149: 0 | CS149: 0 | CT149: E | DF149: 0 | DG149: 0 | DH149: E | DS149: 0 | DT149: 0 | DU149: E | ED149: 0 | EF149: 0 | EG149: E | EQ149: 0 | ES149: 0 | ET149: E | FD149: 0 | FF149: 0 | FG149: E | FH149: --- | FI149: ERR | FK149: ----
B150: 144 | AG150: 0 | AH150: 0 | AI150: 0 | AJ150: 0 | AK150: 0 | AL150: 0 | AM150: 0 | AN150: 0 | AO150: 0 | AP150: 0 | AQ150: 0 | AR150: 0 | AS150: 0 | BE150: 0 | BF150: 0 | BG150: E | BR150: 0 | BS150: 0 | BT150: E | CD150: 0 | CE150: 0 | CF150: E | CR150: 0 | CS150: 0 | CT150: E | DF150: 0 | DG150: 0 | DH150: E | DS150: 0 | DT150: 0 | DU150: E | ED150: 0 | EF150: 0 | EG150: E | EQ150: 0 | ES150: 0 | ET150: E | FD150: 0 | FF150: 0 | FG150: E | FH150: --- | FI150: ERR | FK150: ----
B151: 145 | AG151: 0 | AH151: 0 | AI151: 0 | AJ151: 0 | AK151: 0 | AL151: 0 | AM151: 0 | AN151: 0 | AO151: 0 | AP151: 0 | AQ151: 0 | AR151: 0 | AS151: 0 | BE151: 0 | BF151: 0 | BG151: E | BR151: 0 | BS151: 0 | BT151: E | CD151: 0 | CE151: 0 | CF151: E | CR151: 0 | CS151: 0 | CT151: E | DF151: 0 | DG151: 0 | DH151: E | DS151: 0 | DT151: 0 | DU151: E | ED151: 0 | EF151: 0 | EG151: E | EQ151: 0 | ES151: 0 | ET151: E | FD151: 0 | FF151: 0 | FG151: E | FH151: --- | FI151: ERR | FK151: ----
B152: 146 | AG152: 0 | AH152: 0 | AI152: 0 | AJ152: 0 | AK152: 0 | AL152: 0 | AM152: 0 | AN152: 0 | AO152: 0 | AP152: 0 | AQ152: 0 | AR152: 0 | AS152: 0 | BE152: 0 | BF152: 0 | BG152: E | BR152: 0 | BS152: 0 | BT152: E | CD152: 0 | CE152: 0 | CF152: E | CR152: 0 | CS152: 0 | CT152: E | DF152: 0 | DG152: 0 | DH152: E | DS152: 0 | DT152: 0 | DU152: E | ED152: 0 | EF152: 0 | EG152: E | EQ152: 0 | ES152: 0 | ET152: E | FD152: 0 | FF152: 0 | FG152: E | FH152: --- | FI152: ERR | FK152: ----
B153: 147 | AG153: 0 | AH153: 0 | AI153: 0 | AJ153: 0 | AK153: 0 | AL153: 0 | AM153: 0 | AN153: 0 | AO153: 0 | AP153: 0 | AQ153: 0 | AR153: 0 | AS153: 0 | BE153: 0 | BF153: 0 | BG153: E | BR153: 0 | BS153: 0 | BT153: E | CD153: 0 | CE153: 0 | CF153: E | CR153: 0 | CS153: 0 | CT153: E | DF153: 0 | DG153: 0 | DH153: E | DS153: 0 | DT153: 0 | DU153: E | ED153: 0 | EF153: 0 | EG153: E | EQ153: 0 | ES153: 0 | ET153: E | FD153: 0 | FF153: 0 | FG153: E | FH153: --- | FI153: ERR | FK153: ----
B154: 148 | AG154: 0 | AH154: 0 | AI154: 0 | AJ154: 0 | AK154: 0 | AL154: 0 | AM154: 0 | AN154: 0 | AO154: 0 | AP154: 0 | AQ154: 0 | AR154: 0 | AS154: 0 | BE154: 0 | BF154: 0 | BG154: E | BR154: 0 | BS154: 0 | BT154: E | CD154: 0 | CE154: 0 | CF154: E | CR154: 0 | CS154: 0 | CT154: E | DF154: 0 | DG154: 0 | DH154: E | DS154: 0 | DT154: 0 | DU154: E | ED154: 0 | EF154: 0 | EG154: E | EQ154: 0 | ES154: 0 | ET154: E | FD154: 0 | FF154: 0 | FG154: E | FH154: --- | FI154: ERR | FK154: ----
B155: 149 | AG155: 0 | AH155: 0 | AI155: 0 | AJ155: 0 | AK155: 0 | AL155: 0 | AM155: 0 | AN155: 0 | AO155: 0 | AP155: 0 | AQ155: 0 | AR155: 0 | AS155: 0 | BE155: 0 | BF155: 0 | BG155: E | BR155: 0 | BS155: 0 | BT155: E | CD155: 0 | CE155: 0 | CF155: E | CR155: 0 | CS155: 0 | CT155: E | DF155: 0 | DG155: 0 | DH155: E | DS155: 0 | DT155: 0 | DU155: E | ED155: 0 | EF155: 0 | EG155: E | EQ155: 0 | ES155: 0 | ET155: E | FD155: 0 | FF155: 0 | FG155: E | FH155: --- | FI155: ERR | FK155: ----
B156: 150 | AG156: 0 | AH156: 0 | AI156: 0 | AJ156: 0 | AK156: 0 | AL156: 0 | AM156: 0 | AN156: 0 | AO156: 0 | AP156: 0 | AQ156: 0 | AR156: 0 | AS156: 0 | BE156: 0 | BF156: 0 | BG156: E | BR156: 0 | BS156: 0 | BT156: E | CD156: 0 | CE156: 0 | CF156: E | CR156: 0 | CS156: 0 | CT156: E | DF156: 0 | DG156: 0 | DH156: E | DS156: 0 | DT156: 0 | DU156: E | ED156: 0 | EF156: 0 | EG156: E | EQ156: 0 | ES156: 0 | ET156: E | FD156: 0 | FF156: 0 | FG156: E | FH156: --- | FI156: ERR | FK156: ----
B157: 151 | AG157: 0 | AH157: 0 | AI157: 0 | AJ157: 0 | AK157: 0 | AL157: 0 | AM157: 0 | AN157: 0 | AO157: 0 | AP157: 0 | AQ157: 0 | AR157: 0 | AS157: 0 | BE157: 0 | BF157: 0 | BG157: E | BR157: 0 | BS157: 0 | BT157: E | CD157: 0 | CE157: 0 | CF157: E | CR157: 0 | CS157: 0 | CT157: E | DF157: 0 | DG157: 0 | DH157: E | DS157: 0 | DT157: 0 | DU157: E | ED157: 0 | EF157: 0 | EG157: E | EQ157: 0 | ES157: 0 | ET157: E | FD157: 0 | FF157: 0 | FG157: E | FH157: --- | FI157: ERR | FK157: ----
B158: 152 | AG158: 0 | AH158: 0 | AI158: 0 | AJ158: 0 | AK158: 0 | AL158: 0 | AM158: 0 | AN158: 0 | AO158: 0 | AP158: 0 | AQ158: 0 | AR158: 0 | AS158: 0 | BE158: 0 | BF158: 0 | BG158: E | BR158: 0 | BS158: 0 | BT158: E | CD158: 0 | CE158: 0 | CF158: E | CR158: 0 | CS158: 0 | CT158: E | DF158: 0 | DG158: 0 | DH158: E | DS158: 0 | DT158: 0 | DU158: E | ED158: 0 | EF158: 0 | EG158: E | EQ158: 0 | ES158: 0 | ET158: E | FD158: 0 | FF158: 0 | FG158: E | FH158: --- | FI158: ERR | FK158: ----
B159: 153 | AG159: 0 | AH159: 0 | AI159: 0 | AJ159: 0 | AK159: 0 | AL159: 0 | AM159: 0 | AN159: 0 | AO159: 0 | AP159: 0 | AQ159: 0 | AR159: 0 | AS159: 0 | BE159: 0 | BF159: 0 | BG159: E | BR159: 0 | BS159: 0 | BT159: E | CD159: 0 | CE159: 0 | CF159: E | CR159: 0 | CS159: 0 | CT159: E | DF159: 0 | DG159: 0 | DH159: E | DS159: 0 | DT159: 0 | DU159: E | ED159: 0 | EF159: 0 | EG159: E | EQ159: 0 | ES159: 0 | ET159: E | FD159: 0 | FF159: 0 | FG159: E | FH159: --- | FI159: ERR | FK159: ----
B160: 154 | AG160: 0 | AH160: 0 | AI160: 0 | AJ160: 0 | AK160: 0 | AL160: 0 | AM160: 0 | AN160: 0 | AO160: 0 | AP160: 0 | AQ160: 0 | AR160: 0 | AS160: 0 | BE160: 0 | BF160: 0 | BG160: E | BR160: 0 | BS160: 0 | BT160: E | CD160: 0 | CE160: 0 | CF160: E | CR160: 0 | CS160: 0 | CT160: E | DF160: 0 | DG160: 0 | DH160: E | DS160: 0 | DT160: 0 | DU160: E | ED160: 0 | EF160: 0 | EG160: E | EQ160: 0 | ES160: 0 | ET160: E | FD160: 0 | FF160: 0 | FG160: E | FH160: --- | FI160: ERR | FK160: ----
B161: 155 | AG161: 0 | AH161: 0 | AI161: 0 | AJ161: 0 | AK161: 0 | AL161: 0 | AM161: 0 | AN161: 0 | AO161: 0 | AP161: 0 | AQ161: 0 | AR161: 0 | AS161: 0 | BE161: 0 | BF161: 0 | BG161: E | BR161: 0 | BS161: 0 | BT161: E | CD161: 0 | CE161: 0 | CF161: E | CR161: 0 | CS161: 0 | CT161: E | DF161: 0 | DG161: 0 | DH161: E | DS161: 0 | DT161: 0 | DU161: E | ED161: 0 | EF161: 0 | EG161: E | EQ161: 0 | ES161: 0 | ET161: E | FD161: 0 | FF161: 0 | FG161: E | FH161: --- | FI161: ERR | FK161: ----
B162: 156 | AG162: 0 | AH162: 0 | AI162: 0 | AJ162: 0 | AK162: 0 | AL162: 0 | AM162: 0 | AN162: 0 | AO162: 0 | AP162: 0 | AQ162: 0 | AR162: 0 | AS162: 0 | BE162: 0 | BF162: 0 | BG162: E | BR162: 0 | BS162: 0 | BT162: E | CD162: 0 | CE162: 0 | CF162: E | CR162: 0 | CS162: 0 | CT162: E | DF162: 0 | DG162: 0 | DH162: E | DS162: 0 | DT162: 0 | DU162: E | ED162: 0 | EF162: 0 | EG162: E | EQ162: 0 | ES162: 0 | ET162: E | FD162: 0 | FF162: 0 | FG162: E | FH162: --- | FI162: ERR | FK162: ----
B163: 157 | AG163: 0 | AH163: 0 | AI163: 0 | AJ163: 0 | AK163: 0 | AL163: 0 | AM163: 0 | AN163: 0 | AO163: 0 | AP163: 0 | AQ163: 0 | AR163: 0 | AS163: 0 | BE163: 0 | BF163: 0 | BG163: E | BR163: 0 | BS163: 0 | BT163: E | CD163: 0 | CE163: 0 | CF163: E | CR163: 0 | CS163: 0 | CT163: E | DF163: 0 | DG163: 0 | DH163: E | DS163: 0 | DT163: 0 | DU163: E | ED163: 0 | EF163: 0 | EG163: E | EQ163: 0 | ES163: 0 | ET163: E | FD163: 0 | FF163: 0 | FG163: E | FH163: --- | FI163: ERR | FK163: ----
B164: 158 | AG164: 0 | AH164: 0 | AI164: 0 | AJ164: 0 | AK164: 0 | AL164: 0 | AM164: 0 | AN164: 0 | AO164: 0 | AP164: 0 | AQ164: 0 | AR164: 0 | AS164: 0 | BE164: 0 | BF164: 0 | BG164: E | BR164: 0 | BS164: 0 | BT164: E | CD164: 0 | CE164: 0 | CF164: E | CR164: 0 | CS164: 0 | CT164: E | DF164: 0 | DG164: 0 | DH164: E | DS164: 0 | DT164: 0 | DU164: E | ED164: 0 | EF164: 0 | EG164: E | EQ164: 0 | ES164: 0 | ET164: E | FD164: 0 | FF164: 0 | FG164: E | FH164: --- | FI164: ERR | FK164: ----
B165: 159 | AG165: 0 | AH165: 0 | AI165: 0 | AJ165: 0 | AK165: 0 | AL165: 0 | AM165: 0 | AN165: 0 | AO165: 0 | AP165: 0 | AQ165: 0 | AR165: 0 | AS165: 0 | BE165: 0 | BF165: 0 | BG165: E | BR165: 0 | BS165: 0 | BT165: E | CD165: 0 | CE165: 0 | CF165: E | CR165: 0 | CS165: 0 | CT165: E | DF165: 0 | DG165: 0 | DH165: E | DS165: 0 | DT165: 0 | DU165: E | ED165: 0 | EF165: 0 | EG165: E | EQ165: 0 | ES165: 0 | ET165: E | FD165: 0 | FF165: 0 | FG165: E | FH165: --- | FI165: ERR | FK165: ----
B166: 160 | AG166: 0 | AH166: 0 | AI166: 0 | AJ166: 0 | AK166: 0 | AL166: 0 | AM166: 0 | AN166: 0 | AO166: 0 | AP166: 0 | AQ166: 0 | AR166: 0 | AS166: 0 | BE166: 0 | BF166: 0 | BG166: E | BR166: 0 | BS166: 0 | BT166: E | CD166: 0 | CE166: 0 | CF166: E | CR166: 0 | CS166: 0 | CT166: E | DF166: 0 | DG166: 0 | DH166: E | DS166: 0 | DT166: 0 | DU166: E | ED166: 0 | EF166: 0 | EG166: E | EQ166: 0 | ES166: 0 | ET166: E | FD166: 0 | FF166: 0 | FG166: E | FH166: --- | FI166: ERR | FK166: ----
B167: 161 | AG167: 0 | AH167: 0 | AI167: 0 | AJ167: 0 | AK167: 0 | AL167: 0 | AM167: 0 | AN167: 0 | AO167: 0 | AP167: 0 | AQ167: 0 | AR167: 0 | AS167: 0 | BE167: 0 | BF167: 0 | BG167: E | BR167: 0 | BS167: 0 | BT167: E | CD167: 0 | CE167: 0 | CF167: E | CR167: 0 | CS167: 0 | CT167: E | DF167: 0 | DG167: 0 | DH167: E | DS167: 0 | DT167: 0 | DU167: E | ED167: 0 | EF167: 0 | EG167: E | EQ167: 0 | ES167: 0 | ET167: E | FD167: 0 | FF167: 0 | FG167: E | FH167: --- | FI167: ERR | FK167: ----
B168: 162 | AG168: 0 | AH168: 0 | AI168: 0 | AJ168: 0 | AK168: 0 | AL168: 0 | AM168: 0 | AN168: 0 | AO168: 0 | AP168: 0 | AQ168: 0 | AR168: 0 | AS168: 0 | BE168: 0 | BF168: 0 | BG168: E | BR168: 0 | BS168: 0 | BT168: E | CD168: 0 | CE168: 0 | CF168: E | CR168: 0 | CS168: 0 | CT168: E | DF168: 0 | DG168: 0 | DH168: E | DS168: 0 | DT168: 0 | DU168: E | ED168: 0 | EF168: 0 | EG168: E | EQ168: 0 | ES168: 0 | ET168: E | FD168: 0 | FF168: 0 | FG168: E | FH168: --- | FI168: ERR | FK168: ----
B169: 163 | AG169: 0 | AH169: 0 | AI169: 0 | AJ169: 0 | AK169: 0 | AL169: 0 | AM169: 0 | AN169: 0 | AO169: 0 | AP169: 0 | AQ169: 0 | AR169: 0 | AS169: 0 | BE169: 0 | BF169: 0 | BG169: E | BR169: 0 | BS169: 0 | BT169: E | CD169: 0 | CE169: 0 | CF169: E | CR169: 0 | CS169: 0 | CT169: E | DF169: 0 | DG169: 0 | DH169: E | DS169: 0 | DT169: 0 | DU169: E | ED169: 0 | EF169: 0 | EG169: E | EQ169: 0 | ES169: 0 | ET169: E | FD169: 0 | FF169: 0 | FG169: E | FH169: --- | FI169: ERR | FK169: ----
B170: 164 | AG170: 0 | AH170: 0 | AI170: 0 | AJ170: 0 | AK170: 0 | AL170: 0 | AM170: 0 | AN170: 0 | AO170: 0 | AP170: 0 | AQ170: 0 | AR170: 0 | AS170: 0 | BE170: 0 | BF170: 0 | BG170: E | BR170: 0 | BS170: 0 | BT170: E | CD170: 0 | CE170: 0 | CF170: E | CR170: 0 | CS170: 0 | CT170: E | DF170: 0 | DG170: 0 | DH170: E | DS170: 0 | DT170: 0 | DU170: E | ED170: 0 | EF170: 0 | EG170: E | EQ170: 0 | ES170: 0 | ET170: E | FD170: 0 | FF170: 0 | FG170: E | FH170: --- | FI170: ERR | FK170: ----
B171: 165 | AG171: 0 | AH171: 0 | AI171: 0 | AJ171: 0 | AK171: 0 | AL171: 0 | AM171: 0 | AN171: 0 | AO171: 0 | AP171: 0 | AQ171: 0 | AR171: 0 | AS171: 0 | BE171: 0 | BF171: 0 | BG171: E | BR171: 0 | BS171: 0 | BT171: E | CD171: 0 | CE171: 0 | CF171: E | CR171: 0 | CS171: 0 | CT171: E | DF171: 0 | DG171: 0 | DH171: E | DS171: 0 | DT171: 0 | DU171: E | ED171: 0 | EF171: 0 | EG171: E | EQ171: 0 | ES171: 0 | ET171: E | FD171: 0 | FF171: 0 | FG171: E | FH171: --- | FI171: ERR | FK171: ----
B172: 166 | AG172: 0 | AH172: 0 | AI172: 0 | AJ172: 0 | AK172: 0 | AL172: 0 | AM172: 0 | AN172: 0 | AO172: 0 | AP172: 0 | AQ172: 0 | AR172: 0 | AS172: 0 | BE172: 0 | BF172: 0 | BG172: E | BR172: 0 | BS172: 0 | BT172: E | CD172: 0 | CE172: 0 | CF172: E | CR172: 0 | CS172: 0 | CT172: E | DF172: 0 | DG172: 0 | DH172: E | DS172: 0 | DT172: 0 | DU172: E | ED172: 0 | EF172: 0 | EG172: E | EQ172: 0 | ES172: 0 | ET172: E | FD172: 0 | FF172: 0 | FG172: E | FH172: --- | FI172: ERR | FK172: ----
B173: 167 | AG173: 0 | AH173: 0 | AI173: 0 | AJ173: 0 | AK173: 0 | AL173: 0 | AM173: 0 | AN173: 0 | AO173: 0 | AP173: 0 | AQ173: 0 | AR173: 0 | AS173: 0 | BE173: 0 | BF173: 0 | BG173: E | BR173: 0 | BS173: 0 | BT173: E | CD173: 0 | CE173: 0 | CF173: E | CR173: 0 | CS173: 0 | CT173: E | DF173: 0 | DG173: 0 | DH173: E | DS173: 0 | DT173: 0 | DU173: E | ED173: 0 | EF173: 0 | EG173: E | EQ173: 0 | ES173: 0 | ET173: E | FD173: 0 | FF173: 0 | FG173: E | FH173: --- | FI173: ERR | FK173: ----
B174: 168 | AG174: 0 | AH174: 0 | AI174: 0 | AJ174: 0 | AK174: 0 | AL174: 0 | AM174: 0 | AN174: 0 | AO174: 0 | AP174: 0 | AQ174: 0 | AR174: 0 | AS174: 0 | BE174: 0 | BF174: 0 | BG174: E | BR174: 0 | BS174: 0 | BT174: E | CD174: 0 | CE174: 0 | CF174: E | CR174: 0 | CS174: 0 | CT174: E | DF174: 0 | DG174: 0 | DH174: E | DS174: 0 | DT174: 0 | DU174: E | ED174: 0 | EF174: 0 | EG174: E | EQ174: 0 | ES174: 0 | ET174: E | FD174: 0 | FF174: 0 | FG174: E | FH174: --- | FI174: ERR | FK174: ----
B175: 169 | AG175: 0 | AH175: 0 | AI175: 0 | AJ175: 0 | AK175: 0 | AL175: 0 | AM175: 0 | AN175: 0 | AO175: 0 | AP175: 0 | AQ175: 0 | AR175: 0 | AS175: 0 | BE175: 0 | BF175: 0 | BG175: E | BR175: 0 | BS175: 0 | BT175: E | CD175: 0 | CE175: 0 | CF175: E | CR175: 0 | CS175: 0 | CT175: E | DF175: 0 | DG175: 0 | DH175: E | DS175: 0 | DT175: 0 | DU175: E | ED175: 0 | EF175: 0 | EG175: E | EQ175: 0 | ES175: 0 | ET175: E | FD175: 0 | FF175: 0 | FG175: E | FH175: --- | FI175: ERR | FK175: ----
B176: 170 | AG176: 0 | AH176: 0 | AI176: 0 | AJ176: 0 | AK176: 0 | AL176: 0 | AM176: 0 | AN176: 0 | AO176: 0 | AP176: 0 | AQ176: 0 | AR176: 0 | AS176: 0 | BE176: 0 | BF176: 0 | BG176: E | BR176: 0 | BS176: 0 | BT176: E | CD176: 0 | CE176: 0 | CF176: E | CR176: 0 | CS176: 0 | CT176: E | DF176: 0 | DG176: 0 | DH176: E | DS176: 0 | DT176: 0 | DU176: E | ED176: 0 | EF176: 0 | EG176: E | EQ176: 0 | ES176: 0 | ET176: E | FD176: 0 | FF176: 0 | FG176: E | FH176: --- | FI176: ERR | FK176: ----
B177: 171 | AG177: 0 | AH177: 0 | AI177: 0 | AJ177: 0 | AK177: 0 | AL177: 0 | AM177: 0 | AN177: 0 | AO177: 0 | AP177: 0 | AQ177: 0 | AR177: 0 | AS177: 0 | BE177: 0 | BF177: 0 | BG177: E | BR177: 0 | BS177: 0 | BT177: E | CD177: 0 | CE177: 0 | CF177: E | CR177: 0 | CS177: 0 | CT177: E | DF177: 0 | DG177: 0 | DH177: E | DS177: 0 | DT177: 0 | DU177: E | ED177: 0 | EF177: 0 | EG177: E | EQ177: 0 | ES177: 0 | ET177: E | FD177: 0 | FF177: 0 | FG177: E | FH177: --- | FI177: ERR | FK177: ----
B178: 172 | AG178: 0 | AH178: 0 | AI178: 0 | AJ178: 0 | AK178: 0 | AL178: 0 | AM178: 0 | AN178: 0 | AO178: 0 | AP178: 0 | AQ178: 0 | AR178: 0 | AS178: 0 | BE178: 0 | BF178: 0 | BG178: E | BR178: 0 | BS178: 0 | BT178: E | CD178: 0 | CE178: 0 | CF178: E | CR178: 0 | CS178: 0 | CT178: E | DF178: 0 | DG178: 0 | DH178: E | DS178: 0 | DT178: 0 | DU178: E | ED178: 0 | EF178: 0 | EG178: E | EQ178: 0 | ES178: 0 | ET178: E | FD178: 0 | FF178: 0 | FG178: E | FH178: --- | FI178: ERR | FK178: ----
B179: 173 | AG179: 0 | AH179: 0 | AI179: 0 | AJ179: 0 | AK179: 0 | AL179: 0 | AM179: 0 | AN179: 0 | AO179: 0 | AP179: 0 | AQ179: 0 | AR179: 0 | AS179: 0 | BE179: 0 | BF179: 0 | BG179: E | BR179: 0 | BS179: 0 | BT179: E | CD179: 0 | CE179: 0 | CF179: E | CR179: 0 | CS179: 0 | CT179: E | DF179: 0 | DG179: 0 | DH179: E | DS179: 0 | DT179: 0 | DU179: E | ED179: 0 | EF179: 0 | EG179: E | EQ179: 0 | ES179: 0 | ET179: E | FD179: 0 | FF179: 0 | FG179: E | FH179: --- | FI179: ERR | FK179: ----
B180: 174 | AG180: 0 | AH180: 0 | AI180: 0 | AJ180: 0 | AK180: 0 | AL180: 0 | AM180: 0 | AN180: 0 | AO180: 0 | AP180: 0 | AQ180: 0 | AR180: 0 | AS180: 0 | BE180: 0 | BF180: 0 | BG180: E | BR180: 0 | BS180: 0 | BT180: E | CD180: 0 | CE180: 0 | CF180: E | CR180: 0 | CS180: 0 | CT180: E | DF180: 0 | DG180: 0 | DH180: E | DS180: 0 | DT180: 0 | DU180: E | ED180: 0 | EF180: 0 | EG180: E | EQ180: 0 | ES180: 0 | ET180: E | FD180: 0 | FF180: 0 | FG180: E | FH180: --- | FI180: ERR | FK180: ----
B181: 175 | AG181: 0 | AH181: 0 | AI181: 0 | AJ181: 0 | AK181: 0 | AL181: 0 | AM181: 0 | AN181: 0 | AO181: 0 | AP181: 0 | AQ181: 0 | AR181: 0 | AS181: 0 | BE181: 0 | BF181: 0 | BG181: E | BR181: 0 | BS181: 0 | BT181: E | CD181: 0 | CE181: 0 | CF181: E | CR181: 0 | CS181: 0 | CT181: E | DF181: 0 | DG181: 0 | DH181: E | DS181: 0 | DT181: 0 | DU181: E | ED181: 0 | EF181: 0 | EG181: E | EQ181: 0 | ES181: 0 | ET181: E | FD181: 0 | FF181: 0 | FG181: E | FH181: --- | FI181: ERR | FK181: ----
B182: 176 | AG182: 0 | AH182: 0 | AI182: 0 | AJ182: 0 | AK182: 0 | AL182: 0 | AM182: 0 | AN182: 0 | AO182: 0 | AP182: 0 | AQ182: 0 | AR182: 0 | AS182: 0 | BE182: 0 | BF182: 0 | BG182: E | BR182: 0 | BS182: 0 | BT182: E | CD182: 0 | CE182: 0 | CF182: E | CR182: 0 | CS182: 0 | CT182: E | DF182: 0 | DG182: 0 | DH182: E | DS182: 0 | DT182: 0 | DU182: E | ED182: 0 | EF182: 0 | EG182: E | EQ182: 0 | ES182: 0 | ET182: E | FD182: 0 | FF182: 0 | FG182: E | FH182: --- | FI182: ERR | FK182: ----
B183: 177 | AG183: 0 | AH183: 0 | AI183: 0 | AJ183: 0 | AK183: 0 | AL183: 0 | AM183: 0 | AN183: 0 | AO183: 0 | AP183: 0 | AQ183: 0 | AR183: 0 | AS183: 0 | BE183: 0 | BF183: 0 | BG183: E | BR183: 0 | BS183: 0 | BT183: E | CD183: 0 | CE183: 0 | CF183: E | CR183: 0 | CS183: 0 | CT183: E | DF183: 0 | DG183: 0 | DH183: E | DS183: 0 | DT183: 0 | DU183: E | ED183: 0 | EF183: 0 | EG183: E | EQ183: 0 | ES183: 0 | ET183: E | FD183: 0 | FF183: 0 | FG183: E | FH183: --- | FI183: ERR | FK183: ----
B184: 178 | AG184: 0 | AH184: 0 | AI184: 0 | AJ184: 0 | AK184: 0 | AL184: 0 | AM184: 0 | AN184: 0 | AO184: 0 | AP184: 0 | AQ184: 0 | AR184: 0 | AS184: 0 | BE184: 0 | BF184: 0 | BG184: E | BR184: 0 | BS184: 0 | BT184: E | CD184: 0 | CE184: 0 | CF184: E | CR184: 0 | CS184: 0 | CT184: E | DF184: 0 | DG184: 0 | DH184: E | DS184: 0 | DT184: 0 | DU184: E | ED184: 0 | EF184: 0 | EG184: E | EQ184: 0 | ES184: 0 | ET184: E | FD184: 0 | FF184: 0 | FG184: E | FH184: --- | FI184: ERR | FK184: ----
B185: 179 | AG185: 0 | AH185: 0 | AI185: 0 | AJ185: 0 | AK185: 0 | AL185: 0 | AM185: 0 | AN185: 0 | AO185: 0 | AP185: 0 | AQ185: 0 | AR185: 0 | AS185: 0 | BE185: 0 | BF185: 0 | BG185: E | BR185: 0 | BS185: 0 | BT185: E | CD185: 0 | CE185: 0 | CF185: E | CR185: 0 | CS185: 0 | CT185: E | DF185: 0 | DG185: 0 | DH185: E | DS185: 0 | DT185: 0 | DU185: E | ED185: 0 | EF185: 0 | EG185: E | EQ185: 0 | ES185: 0 | ET185: E | FD185: 0 | FF185: 0 | FG185: E | FH185: --- | FI185: ERR | FK185: ----
B186: 180 | AG186: 0 | AH186: 0 | AI186: 0 | AJ186: 0 | AK186: 0 | AL186: 0 | AM186: 0 | AN186: 0 | AO186: 0 | AP186: 0 | AQ186: 0 | AR186: 0 | AS186: 0 | BE186: 0 | BF186: 0 | BG186: E | BR186: 0 | BS186: 0 | BT186: E | CD186: 0 | CE186: 0 | CF186: E | CR186: 0 | CS186: 0 | CT186: E | DF186: 0 | DG186: 0 | DH186: E | DS186: 0 | DT186: 0 | DU186: E | ED186: 0 | EF186: 0 | EG186: E | EQ186: 0 | ES186: 0 | ET186: E | FD186: 0 | FF186: 0 | FG186: E | FH186: --- | FI186: ERR | FK186: ----
B187: 181 | AG187: 0 | AH187: 0 | AI187: 0 | AJ187: 0 | AK187: 0 | AL187: 0 | AM187: 0 | AN187: 0 | AO187: 0 | AP187: 0 | AQ187: 0 | AR187: 0 | AS187: 0 | BE187: 0 | BF187: 0 | BG187: E | BR187: 0 | BS187: 0 | BT187: E | CD187: 0 | CE187: 0 | CF187: E | CR187: 0 | CS187: 0 | CT187: E | DF187: 0 | DG187: 0 | DH187: E | DS187: 0 | DT187: 0 | DU187: E | ED187: 0 | EF187: 0 | EG187: E | EQ187: 0 | ES187: 0 | ET187: E | FD187: 0 | FF187: 0 | FG187: E | FH187: --- | FI187: ERR | FK187: ----
B188: 182 | AG188: 0 | AH188: 0 | AI188: 0 | AJ188: 0 | AK188: 0 | AL188: 0 | AM188: 0 | AN188: 0 | AO188: 0 | AP188: 0 | AQ188: 0 | AR188: 0 | AS188: 0 | BE188: 0 | BF188: 0 | BG188: E | BR188: 0 | BS188: 0 | BT188: E | CD188: 0 | CE188: 0 | CF188: E | CR188: 0 | CS188: 0 | CT188: E | DF188: 0 | DG188: 0 | DH188: E | DS188: 0 | DT188: 0 | DU188: E | ED188: 0 | EF188: 0 | EG188: E | EQ188: 0 | ES188: 0 | ET188: E | FD188: 0 | FF188: 0 | FG188: E | FH188: --- | FI188: ERR | FK188: ----
B189: 183 | AG189: 0 | AH189: 0 | AI189: 0 | AJ189: 0 | AK189: 0 | AL189: 0 | AM189: 0 | AN189: 0 | AO189: 0 | AP189: 0 | AQ189: 0 | AR189: 0 | AS189: 0 | BE189: 0 | BF189: 0 | BG189: E | BR189: 0 | BS189: 0 | BT189: E | CD189: 0 | CE189: 0 | CF189: E | CR189: 0 | CS189: 0 | CT189: E | DF189: 0 | DG189: 0 | DH189: E | DS189: 0 | DT189: 0 | DU189: E | ED189: 0 | EF189: 0 | EG189: E | EQ189: 0 | ES189: 0 | ET189: E | FD189: 0 | FF189: 0 | FG189: E | FH189: --- | FI189: ERR | FK189: ----
B190: 184 | AG190: 0 | AH190: 0 | AI190: 0 | AJ190: 0 | AK190: 0 | AL190: 0 | AM190: 0 | AN190: 0 | AO190: 0 | AP190: 0 | AQ190: 0 | AR190: 0 | AS190: 0 | BE190: 0 | BF190: 0 | BG190: E | BR190: 0 | BS190: 0 | BT190: E | CD190: 0 | CE190: 0 | CF190: E | CR190: 0 | CS190: 0 | CT190: E | DF190: 0 | DG190: 0 | DH190: E | DS190: 0 | DT190: 0 | DU190: E | ED190: 0 | EF190: 0 | EG190: E | EQ190: 0 | ES190: 0 | ET190: E | FD190: 0 | FF190: 0 | FG190: E | FH190: --- | FI190: ERR | FK190: ----
B191: 185 | AG191: 0 | AH191: 0 | AI191: 0 | AJ191: 0 | AK191: 0 | AL191: 0 | AM191: 0 | AN191: 0 | AO191: 0 | AP191: 0 | AQ191: 0 | AR191: 0 | AS191: 0 | BE191: 0 | BF191: 0 | BG191: E | BR191: 0 | BS191: 0 | BT191: E | CD191: 0 | CE191: 0 | CF191: E | CR191: 0 | CS191: 0 | CT191: E | DF191: 0 | DG191: 0 | DH191: E | DS191: 0 | DT191: 0 | DU191: E | ED191: 0 | EF191: 0 | EG191: E | EQ191: 0 | ES191: 0 | ET191: E | FD191: 0 | FF191: 0 | FG191: E | FH191: --- | FI191: ERR | FK191: ----
B192: 186 | AG192: 0 | AH192: 0 | AI192: 0 | AJ192: 0 | AK192: 0 | AL192: 0 | AM192: 0 | AN192: 0 | AO192: 0 | AP192: 0 | AQ192: 0 | AR192: 0 | AS192: 0 | BE192: 0 | BF192: 0 | BG192: E | BR192: 0 | BS192: 0 | BT192: E | CD192: 0 | CE192: 0 | CF192: E | CR192: 0 | CS192: 0 | CT192: E | DF192: 0 | DG192: 0 | DH192: E | DS192: 0 | DT192: 0 | DU192: E | ED192: 0 | EF192: 0 | EG192: E | EQ192: 0 | ES192: 0 | ET192: E | FD192: 0 | FF192: 0 | FG192: E | FH192: --- | FI192: ERR | FK192: ----
B193: 187 | AG193: 0 | AH193: 0 | AI193: 0 | AJ193: 0 | AK193: 0 | AL193: 0 | AM193: 0 | AN193: 0 | AO193: 0 | AP193: 0 | AQ193: 0 | AR193: 0 | AS193: 0 | BE193: 0 | BF193: 0 | BG193: E | BR193: 0 | BS193: 0 | BT193: E | CD193: 0 | CE193: 0 | CF193: E | CR193: 0 | CS193: 0 | CT193: E | DF193: 0 | DG193: 0 | DH193: E | DS193: 0 | DT193: 0 | DU193: E | ED193: 0 | EF193: 0 | EG193: E | EQ193: 0 | ES193: 0 | ET193: E | FD193: 0 | FF193: 0 | FG193: E | FH193: --- | FI193: ERR | FK193: ----
B194: 188 | AG194: 0 | AH194: 0 | AI194: 0 | AJ194: 0 | AK194: 0 | AL194: 0 | AM194: 0 | AN194: 0 | AO194: 0 | AP194: 0 | AQ194: 0 | AR194: 0 | AS194: 0 | BE194: 0 | BF194: 0 | BG194: E | BR194: 0 | BS194: 0 | BT194: E | CD194: 0 | CE194: 0 | CF194: E | CR194: 0 | CS194: 0 | CT194: E | DF194: 0 | DG194: 0 | DH194: E | DS194: 0 | DT194: 0 | DU194: E | ED194: 0 | EF194: 0 | EG194: E | EQ194: 0 | ES194: 0 | ET194: E | FD194: 0 | FF194: 0 | FG194: E | FH194: --- | FI194: ERR | FK194: ----
B195: 189 | AG195: 0 | AH195: 0 | AI195: 0 | AJ195: 0 | AK195: 0 | AL195: 0 | AM195: 0 | AN195: 0 | AO195: 0 | AP195: 0 | AQ195: 0 | AR195: 0 | AS195: 0 | BE195: 0 | BF195: 0 | BG195: E | BR195: 0 | BS195: 0 | BT195: E | CD195: 0 | CE195: 0 | CF195: E | CR195: 0 | CS195: 0 | CT195: E | DF195: 0 | DG195: 0 | DH195: E | DS195: 0 | DT195: 0 | DU195: E | ED195: 0 | EF195: 0 | EG195: E | EQ195: 0 | ES195: 0 | ET195: E | FD195: 0 | FF195: 0 | FG195: E | FH195: --- | FI195: ERR | FK195: ----
B196: 190 | AG196: 0 | AH196: 0 | AI196: 0 | AJ196: 0 | AK196: 0 | AL196: 0 | AM196: 0 | AN196: 0 | AO196: 0 | AP196: 0 | AQ196: 0 | AR196: 0 | AS196: 0 | BE196: 0 | BF196: 0 | BG196: E | BR196: 0 | BS196: 0 | BT196: E | CD196: 0 | CE196: 0 | CF196: E | CR196: 0 | CS196: 0 | CT196: E | DF196: 0 | DG196: 0 | DH196: E | DS196: 0 | DT196: 0 | DU196: E | ED196: 0 | EF196: 0 | EG196: E | EQ196: 0 | ES196: 0 | ET196: E | FD196: 0 | FF196: 0 | FG196: E | FH196: --- | FI196: ERR | FK196: ----
B197: 191 | AG197: 0 | AH197: 0 | AI197: 0 | AJ197: 0 | AK197: 0 | AL197: 0 | AM197: 0 | AN197: 0 | AO197: 0 | AP197: 0 | AQ197: 0 | AR197: 0 | AS197: 0 | BE197: 0 | BF197: 0 | BG197: E | BR197: 0 | BS197: 0 | BT197: E | CD197: 0 | CE197: 0 | CF197: E | CR197: 0 | CS197: 0 | CT197: E | DF197: 0 | DG197: 0 | DH197: E | DS197: 0 | DT197: 0 | DU197: E | ED197: 0 | EF197: 0 | EG197: E | EQ197: 0 | ES197: 0 | ET197: E | FD197: 0 | FF197: 0 | FG197: E | FH197: --- | FI197: ERR | FK197: ----
B198: 192 | AG198: 0 | AH198: 0 | AI198: 0 | AJ198: 0 | AK198: 0 | AL198: 0 | AM198: 0 | AN198: 0 | AO198: 0 | AP198: 0 | AQ198: 0 | AR198: 0 | AS198: 0 | BE198: 0 | BF198: 0 | BG198: E | BR198: 0 | BS198: 0 | BT198: E | CD198: 0 | CE198: 0 | CF198: E | CR198: 0 | CS198: 0 | CT198: E | DF198: 0 | DG198: 0 | DH198: E | DS198: 0 | DT198: 0 | DU198: E | ED198: 0 | EF198: 0 | EG198: E | EQ198: 0 | ES198: 0 | ET198: E | FD198: 0 | FF198: 0 | FG198: E | FH198: --- | FI198: ERR | FK198: ----
B199: 193 | AG199: 0 | AH199: 0 | AI199: 0 | AJ199: 0 | AK199: 0 | AL199: 0 | AM199: 0 | AN199: 0 | AO199: 0 | AP199: 0 | AQ199: 0 | AR199: 0 | AS199: 0 | BE199: 0 | BF199: 0 | BG199: E | BR199: 0 | BS199: 0 | BT199: E | CD199: 0 | CE199: 0 | CF199: E | CR199: 0 | CS199: 0 | CT199: E | DF199: 0 | DG199: 0 | DH199: E | DS199: 0 | DT199: 0 | DU199: E | ED199: 0 | EF199: 0 | EG199: E | EQ199: 0 | ES199: 0 | ET199: E | FD199: 0 | FF199: 0 | FG199: E | FH199: --- | FI199: ERR | FK199: ----
B200: 194 | AG200: =SUM(V200:AF200) -> 0 | AH200: =V200/$V$4 -> 0 | AI200: =W200/$W$4 -> 0 | AJ200: =X200/$X$4 -> 0 | AK200: =Y200/$Y$4 -> 0 | AL200: =Z200/$Z$4 -> 0 | AM200: =AA200/$AA$4 -> 0 | AN200: =AB200/$AB$4 -> 0 | AO200: =AC200/$AC$4 -> 0 | AP200: =AD200/$AD$4 -> 0 | AQ200: =AE200/$AE$4 -> 0 | AR200: =AF200/$AF$4 -> 0 | AS200: =AG200/$AG$4 -> 0 | BE200: =SUM(AZ200:BD200) -> 0 | BF200: =BE200+AY200 -> 0 | BG200: =IFERROR(IF(BF200>90,"A+",IF(BF200>80,"A",IF(BF200>70,"B+",IF(BF200>60,"B",IF(BF200>50,"C+",IF(BF200>40,"C",IF(BF200>=33,"D","E"))))))),"Abs") -> E | BR200: =SUM(BM200:BQ200) -> 0 | BS200: =BR200+BL200 -> 0 | BT200: =IFERROR(IF(BS200>90,"A+",IF(BS200>80,"A",IF(BS200>70,"B+",IF(BS200>60,"B",IF(BS200>50,"C+",IF(BS200>40,"C",IF(BS200>=33,"D","E"))))))),"Abs") -> E | CD200: =SUM(BZ200:CC200) -> 0 | CE200: =CD200+BY200 -> 0 | CF200: =IFERROR(IF(CE200>90,"A+",IF(CE200>80,"A",IF(CE200>70,"B+",IF(CE200>60,"B",IF(CE200>50,"C+",IF(CE200>40,"C",IF(CE200>=33,"D","E"))))))),"Abs") -> E | CR200: =SUM(CL200:CQ200) -> 0 | CS200: =CR200+CK200 -> 0 | CT200: =IFERROR(IF(CS200>90,"A+",IF(CS200>80,"A",IF(CS200>70,"B+",IF(CS200>60,"B",IF(CS200>50,"C+",IF(CS200>40,"C",IF(CS200>=33,"D","E"))))))),"Abs") -> E | DF200: =SUM(CZ200:DE200) -> 0 | DG200: =DF200+CY200 -> 0 | DH200: =IFERROR(IF(DG200>90,"A+",IF(DG200>80,"A",IF(DG200>70,"B+",IF(DG200>60,"B",IF(DG200>50,"C+",IF(DG200>40,"C",IF(DG200>=33,"D","E"))))))),"Abs") -> E | DS200: =SUM(DN200:DR200) -> 0 | DT200: =DS200+DM200 -> 0 | DU200: =IFERROR(IF(DT200>90,"A+",IF(DT200>80,"A",IF(DT200>70,"B+",IF(DT200>60,"B",IF(DT200>50,"C+",IF(DT200>40,"C",IF(DT200>=33,"D","E"))))))),"Abs") -> E | ED200: =SUM(EA200:EC200) -> 0 | EF200: =EE200+ED200+DZ200 -> 0 | EG200: =IFERROR(IF(EF200>90,"A+",IF(EF200>80,"A",IF(EF200>70,"B+",IF(EF200>60,"B",IF(EF200>50,"C+",IF(EF200>40,"C",IF(EF200>=33,"D","E"))))))),"Abs") -> E | EQ200: =SUM(EM200:EP200) -> 0 | ES200: =ER200+EQ200+EL200 -> 0 | ET200: =IFERROR(IF(ES200>90,"A+",IF(ES200>80,"A",IF(ES200>70,"B+",IF(ES200>60,"B",IF(ES200>50,"C+",IF(ES200>40,"C",IF(ES200>=33,"D","E"))))))),"Abs") -> E | FD200: =SUM(EZ200:FC200) -> 0 | FF200: =FE200+FD200+EY200 -> 0 | FG200: =IFERROR(IF(FF200>90,"A+",IF(FF200>80,"A",IF(FF200>70,"B+",IF(FF200>60,"B",IF(FF200>50,"C+",IF(FF200>40,"C",IF(FF200>=33,"D","E"))))))),"Abs") -> E | FH200: =IF(AND(MIN(AY200,BL200,BY200,CK200,CY200,DM200)>19,MIN(BF200,BS200,CE200,CS200,DG200,DT200)>32),SUM(BF200,BS200,CE200,CS200,DG200,DT200),"---") -> --- | FI200: =IFERROR(FH200/600*100,"ERR") -> ERR | FJ200: =IF(FI200="ERR","",(IF(FI200>90,"A+",IF(FI200>80,"A",IF(FI200>70,"B+",IF(FI200>60,"B",IF(FI200>50,"C+",IF(FI200>40,"C",IF(FI200>=33,"D",IF(FI200<33,"E","")))))))))) ->  | FK200: =IF(FI200="ERR","----",IF(FI200>=33,"ਪਾਸ","--")) -> ----
... 306 more rows

Sheet Holistic Card Print
B2: ਸਰਬਪੱਖੀ ਪ੍ਰਗਤੀ ਕਾਰਡ (2025-26) (HOLISTIC PROGRESS CARD 2025-26) (ਅੱਪਰ ਪ੍ਰਾਇਮਰੀ) | AA2: Total Number of Record | AB2: =COUNTA('Entry Sheet'!C7:C506) -> 2 | AJ2: 1
B3: ਸਕੂਲ ਦਾ ਨਾਮ ਅਤੇ ਪਤਾ | J3: ='Entry Sheet'!D2 -> srkwrI hweI skUL | AJ3: 2
AJ4: 3
B5: UDISE Code : | G5: ='Entry Sheet'!D3 -> 0 | H5: ='Entry Sheet'!E3 -> 3 | I5: ='Entry Sheet'!F3 -> 0 | J5: ='Entry Sheet'!G3 -> 9 | K5: ='Entry Sheet'!H3 -> 0 | L5: ='Entry Sheet'!I3 -> 4 | M5: ='Entry Sheet'!J3 -> 0 | N5: ='Entry Sheet'!K3 -> 1 | O5: ='Entry Sheet'!L3 -> 0 | Q5: ='Entry Sheet'!M3 -> 0 | R5: ='Entry Sheet'!N3 -> 0 | AJ5: 4
AA6: Sr No. of Record | AB6: 2 | AJ6: 5
B7: ਵਿਦਿਆਰਥੀ ਦੇ ਆਮ ਵੇਰਵੇ | AJ7: 6
B8: ਨਾਮ: | I8: =IFERROR(VLOOKUP($AB$6,'Entry Sheet'!B7:$FL$500,2),"") -> sham | T8: ਫੋਟੋ | AJ8: 7
B9: ਰੋਲ ਨੰਬਰ : | I9: =IFERROR(VLOOKUP($AB$6,'Entry Sheet'!B7:$FL$500,3),"") -> 2 | M9: ਰਜਿਸਟਰੇਸ਼ਨ/ ਦਾਖਲਾ ਨੰ: | Q9: =IFERROR(VLOOKUP($AB$6,'Entry Sheet'!B7:$FL$500,4),"") -> 0 | AJ9: 8
K10: =IFERROR(VLOOKUP($AB$6,'Entry Sheet'!B7:$FL$500,5),"") -> 7th | AJ10: 9
B11: ਜਮਾਤ: | I11: ਗ੍ਰੇਡ 6 | K11: =IF(K10="6th","P","") ->  | L11: ਗ੍ਰੇਡ 7 | N11: =IF(K10="7th","P","") -> P | O11: ਗ੍ਰੇਡ 8 | R11: =IF(K10="8th","P","") ->  | AJ11: 10
B12: ਸੈਕਸ਼ਨ: | I12: =IFERROR(VLOOKUP($AB$6,'Entry Sheet'!B7:$FL$500,6),"") -> 0 | L12: ਜਨਮ ਮਿਤੀ | O12: =IFERROR(VLOOKUP($AB$6,'Entry Sheet'!B7:$FL$500,7),"") -> 2001-10-01 | AJ12: 11
B13: ਪਤਾ | I13: =IFERROR(VLOOKUP($AB$6,'Entry Sheet'!B7:$FL$500,8),"") -> 0 | AJ13: 12
Q14: ਫ਼ੋਨ : | T14: =IFERROR(VLOOKUP($AB$6,'Entry Sheet'!B7:$FL$500,9),"") -> 123456789 | AJ14: 13
B15: ਮਾਤਾ ਸਰਪ੍ਰਸਤ ਦਾ ਨਾਮ: | I15: =IFERROR(VLOOKUP($AB$6,'Entry Sheet'!B7:$FL$500,10),"") -> sIqMU | AJ15: 14
B16: ਮਾਤਾ ਸਰਪ੍ਰਸਤ ਦੀ ਵਿਦਿਅਕ ਯੋਗਤਾ: | I16: =IFERROR(VLOOKUP($AB$6,'Entry Sheet'!B7:$FL$500,11),"") -> 8vI | M16: ਮਾਤਾ/ਸਰਪ੍ਰਸਤ ਦਾ ਕਿੱਤਾ: | U16: =IFERROR(VLOOKUP($AB$6,'Entry Sheet'!B7:$FL$500,12),"") -> 0 | AJ16: 15
B17: ਪਿਤਾ/ਸਰਪ੍ਰਸਤ ਦਾ ਨਾਮ: | I17: =IFERROR(VLOOKUP($AB$6,'Entry Sheet'!B7:$FL$500,13),"") -> kulj | AJ17: 16
B18: ਪਿਤਾ/ਸਰਪ੍ਰਸਤ ਦੀ ਵਿਦਿਅਕ ਯੋਗਤਾ: | J18: =IFERROR(VLOOKUP($AB$6,'Entry Sheet'!B7:$FL$500,14),"") -> AnpV | M18: ਪਿਤਾ/ਸਰਪ੍ਰਸਤ ਦਾ ਕਿੱਤਾ: | U18: =IFERROR(VLOOKUP($AB$6,'Entry Sheet'!B7:$FL$500,15),"") -> 0 | AJ18: 17
B19: ਭੈਣ-ਭਰਾਵਾਂ ਦੀ ਗਿਣਤੀ : | I19: =IFERROR(VLOOKUP($AB$6,'Entry Sheet'!B7:$FL$500,16),"") -> 1 | Q19: ਭੈਣ-ਭਰਾਵਾਂ ਦੀ ਉਮਰ: | U19: =IFERROR(VLOOKUP($AB$6,'Entry Sheet'!B7:$FL$500,17),"") -> 10 | AJ19: 18
B20: ਮਾਤ ਭਾਸ਼ਾ : | I20: =IFERROR(VLOOKUP($AB$6,'Entry Sheet'!B7:$FL$500,18),"") -> 0 | O20: ਮਾਧਿਅਮ : | U20: =IFERROR(VLOOKUP($AB$6,'Entry Sheet'!B7:$FL$500,19),"") -> 0 | AJ20: 19
B21: ਰਿਹਾਇਸ: | I21: ਪੇਡੂ | K21: =IF(L21="Rural","P","") -> P | L21: =IFERROR(VLOOKUP($AB$6,'Entry Sheet'!B7:$FL$500,20),"") -> Rural | M21: ਸ਼ਾਹਿਰੀ | O21: =IF(L21="Urban","P","") ->  | AJ21: 20
B22: ਹਾਜ਼ਰੀ : | AJ22: 21
B23: ਮਹੀਨਾ | I23: ਅਪ੍ਰੈਲ | J23: ਮਈ | K23: ਜੁਲਾਈ | L23: ਅਗਸਤ | M23: ਸਤੰਬਰ | N23: ਅਕਤੂਬਰ | O23: ਨਵੰਬਰ | Q23: ਦਸੰਬਰ | R23: ਜਨਵਰੀ | S23: ਫਰਵਰੀ | U23: ਮਾਰਚ | V23: ਕੁੱਲ ਹਾਜ਼ਰੀ | AJ23: 22
B24: ਮਹੀਨੇ ਚ ਸਕੂਲ ਖੁੱਲਣ ਕੁੱਲ ਦਿਨ | I24: ='Entry Sheet'!V4 -> 25 | J24: ='Entry Sheet'!W4 -> 30 | K24: ='Entry Sheet'!X4 -> 30 | L24: ='Entry Sheet'!Y4 -> 30 | M24: ='Entry Sheet'!Z4 -> 30 | N24: ='Entry Sheet'!AA4 -> 30 | O24: ='Entry Sheet'!AB4 -> 30 | Q24: ='Entry Sheet'!AC4 -> 30 | R24: ='Entry Sheet'!AD4 -> 30 | S24: ='Entry Sheet'!AE4 -> 30 | U24: ='Entry Sheet'!AF4 -> 30 | V24: ='Entry Sheet'!AG4 -> 325 | AJ24: 23
B25: ਕੁੱਲ ਹਾਜਰੀਆ | I25: =IFERROR(VLOOKUP($AB$6,'Entry Sheet'!B7:$FL$500,21),"") -> 23 | J25: =IFERROR(VLOOKUP($AB$6,'Entry Sheet'!B7:$FL$500,22),"") -> 19 | K25: =IFERROR(VLOOKUP($AB$6,'Entry Sheet'!B7:$FL$500,23),"") -> 16 | L25: =IFERROR(VLOOKUP($AB$6,'Entry Sheet'!B7:$FL$500,24),"") -> 17 | M25: =IFERROR(VLOOKUP($AB$6,'Entry Sheet'!B7:$FL$500,25),"") -> 18 | N25: =IFERROR(VLOOKUP($AB$6,'Entry Sheet'!B7:$FL$500,26),"") -> 23 | O25: =IFERROR(VLOOKUP($AB$6,'Entry Sheet'!B7:$FL$500,27),"") -> 0 | Q25: =IFERROR(VLOOKUP($AB$6,'Entry Sheet'!B7:$FL$500,28),"") -> 0 | R25: =IFERROR(VLOOKUP($AB$6,'Entry Sheet'!B7:$FL$500,29),"") -> 0 | S25: =IFERROR(VLOOKUP($AB$6,'Entry Sheet'!B7:$FL$500,30),"") -> 0 | U25: =IFERROR(VLOOKUP($AB$6,'Entry Sheet'!B7:$FL$500,31),"") -> 0 | V25: =IFERROR(VLOOKUP($AB$6,'Entry Sheet'!B7:$FL$500,32),"") -> 116 | AJ25: 24
B26: ਹਾਜ਼ਰੀਆ | I26: =IFERROR(VLOOKUP($AB$6,'Entry Sheet'!B7:$FL$500,33),"") -> 0.92 | J26: =IFERROR(VLOOKUP($AB$6,'Entry Sheet'!B7:$FL$500,34),"") -> 0.6333333333 | K26: =IFERROR(VLOOKUP($AB$6,'Entry Sheet'!B7:$FL$500,35),"") -> 0.5333333333 | L26: =IFERROR(VLOOKUP($AB$6,'Entry Sheet'!B7:$FL$500,36),"") -> 0.5666666667 | M26: =IFERROR(VLOOKUP($AB$6,'Entry Sheet'!B7:$FL$500,37),"") -> 0.6 | N26: =IFERROR(VLOOKUP($AB$6,'Entry Sheet'!B7:$FL$500,38),"") -> 0.7666666667 | O26: =IFERROR(VLOOKUP($AB$6,'Entry Sheet'!B7:$FL$500,39),"") -> 0 | Q26: =IFERROR(VLOOKUP($AB$6,'Entry Sheet'!B7:$FL$500,40),"") -> 0 | R26: =IFERROR(VLOOKUP($AB$6,'Entry Sheet'!B7:$FL$500,41),"") -> 0 | S26: =IFERROR(VLOOKUP($AB$6,'Entry Sheet'!B7:$FL$500,42),"") -> 0 | U26: =IFERROR(VLOOKUP($AB$6,'Entry Sheet'!B7:$FL$500,43),"") -> 0 | V26: =IFERROR(VLOOKUP($AB$6,'Entry Sheet'!B7:$FL$500,44),"") -> 0.3569230769 | AJ26: 25
B27: ਜੇਕਰ ਕੁਲ ਹਾਜ਼ਰੀਆਂ 75% ਤੋਂ ਘੱਟ ਹੈ | AJ27: 26
AJ28: 27
AJ29: 28
AJ30: 29
AJ31: 30
B32: ਅੱਪਰ ਪ੍ਰਾਇਮਰੀ ਜਮਾਤਾਂ ਲਈ ਪ੍ਰਗਤੀ ਕਾਰਡ | AJ32: 31
B33: ਵਿਸ਼ਾ: ਪੰਜਾਬੀ | AJ33: 32
B34: ਥਿਉਰੀ ਪ੍ਰੀਖਿਆ | K34: CCE | AJ34: 33
F35: ਕੁਲ ਅੰਕ | H35: ਪ੍ਰਾਪਤ ਅੰਕ | T35: ਕੁਲ ਅੰਕ | V35: ਪ੍ਰਾਪਤ ਅੰਕ | AJ35: 34
B36: Bimonthly-I | F36: 20 | H36: =IFERROR(VLOOKUP($AB$6,'Entry Sheet'!B7:$FL$500,46),"") -> 0 | K36: ਪ੍ਰੈਕਟੀਕਲ ਪ੍ਰੋਜੈਕਟ /ਵਰਕਾ ਅਸਾਈਨਮੈਂਟ | T36: 6 | V36: =IFERROR(VLOOKUP($AB$6,'Entry Sheet'!B7:$FL$500,51),"") -> 0 | AJ36: 35
B37: ਟਰਮ ਪ੍ਰੀਖਿਆ -1 | F37: 80 | H37: =IFERROR(VLOOKUP($AB$6,'Entry Sheet'!B7:$FL$500,47),"") -> 0 | K37: ਜਮਾਤ ਵਿੱਚ ਵਿਦਿਆਰਥੀ ਦੀ ਕਾਰਗੁਜ਼ਾਰੀ, ਸਹਿਯੋਗ ਅਤੇ ਅਨੁਸ਼ਾਸਨ | T37: 3 | V37: =IFERROR(VLOOKUP($AB$6,'Entry Sheet'!B7:$FL$500,52),"") -> 0 | AJ37: 36
B38: Bimonthly-II | F38: 20 | H38: =IFERROR(VLOOKUP($AB$6,'Entry Sheet'!B7:$FL$500,48),"") -> 0 | K38: ਪ੍ਰੀ-ਬੋਰਡ ਟਰਮ ਪ੍ਰੀਖਿਆ ਦੇ ਅੰਕ | T38: 3 | V38: =IFERROR(VLOOKUP($AB$6,'Entry Sheet'!B7:$FL$500,53),"") -> 0 | AJ38: 37
B39: ਟਰਮ ਪ੍ਰੀਖਿਆ-II / ਪ੍ਰੀ ਬੋਰਡ | F39: 80 | H39: =IFERROR(VLOOKUP($AB$6,'Entry Sheet'!B7:$FL$500,49),"") -> 0 | K39: ਬੋਲ ਲਿਖਤ, ਮੌਲਿਕ ਲਿਖਤ | T39: 7 | V39: =IFERROR(VLOOKUP($AB$6,'Entry Sheet'!B7:$FL$500,54),"") -> 0 | AJ39: 38
B40: ਸਲਾਨਾ ਪ੍ਰੀਖਿਆਵਾਂ | F40: 80 | H40: =IFERROR(VLOOKUP($AB$6,'Entry Sheet'!B7:$FL$500,50),"") -> 0 | K40: ਬੁੱਕ ਬੈਂਕ | T40: 1 | V40: =IFERROR(VLOOKUP($AB$6,'Entry Sheet'!B7:$FL$500,55),"") -> 0 | AJ40: 39
K41: ਕੁਲ | T41: 20 | V41: =IFERROR(VLOOKUP($AB$6,'Entry Sheet'!B7:$FL$500,56),"") -> 0 | AJ41: 40
B42: ਸਲਾਨਾ ਪ੍ਰੀਖਿਆਵਾਂ ਵਿੱਚ ਪ੍ਰਾਪਤ ਅੰਕ (80 ਵਿੱਚੋਂ) | H42: ਸੀ.ਸੀ.ਈ ਵਿੱਚ ਪ੍ਰਾਪਤ ਅੰਕ (20 ਵਿੱਚੋਂ) | M42: ਕੁੱਲ ਪ੍ਰਾਪਤ ਅੰਕ (100 ਵਿੱਚੋਂ) | T42: ਗ੍ਰੇਡ | V42: ਵਿਸ਼ੇਸ਼ ਕਥਨ | AJ42: 41
B43: =H40 -> 0 | H43: =V41 -> 0 | M43: =IFERROR(VLOOKUP($AB$6,'Entry Sheet'!B7:$FL$500,57),"") -> 0 | T43: =IFERROR(VLOOKUP($AB$6,'Entry Sheet'!B7:$FL$500,58),"") -> E | AJ43: 42
B44: ਵਿਸ਼ਾ: ਹਿੰਦੀ | AJ44: 43
B45: ਥਿਉਰੀ ਪ੍ਰੀਖਿਆ | K45: CCE | AJ45: 44
F46: ਕੁਲ ਅੰਕ | H46: ਪ੍ਰਾਪਤ ਅੰਕ | T46: ਕੁਲ ਅੰਕ | V46: ਪ੍ਰਾਪਤ ਅੰਕ | AJ46: 45
B47: Bimonthly-I | F47: 20 | H47: =IFERROR(VLOOKUP($AB$6,'Entry Sheet'!B7:$FL$500,59),"") -> 0 | K47: ਪ੍ਰੈਕਟੀਕਲ ਪ੍ਰੋਜੈਕਟ /ਵਰਕਾ ਅਸਾਈਨਮੈਂਟ | T47: 6 | V47: =IFERROR(VLOOKUP($AB$6,'Entry Sheet'!B7:$FL$500,64),"") -> 0 | AJ47: 46
B48: ਟਰਮ ਪ੍ਰੀਖਿਆ -1 | F48: 80 | H48: =IFERROR(VLOOKUP($AB$6,'Entry Sheet'!B7:$FL$500,60),"") -> 0 | K48: ਜਮਾਤ ਵਿੱਚ ਵਿਦਿਆਰਥੀ ਦੀ ਕਾਰਗੁਜ਼ਾਰੀ, ਸਹਿਯੋਗ ਅਤੇ ਅਨੁਸ਼ਾਸਨ | T48: 3 | V48: =IFERROR(VLOOKUP($AB$6,'Entry Sheet'!B7:$FL$500,65),"") -> 0 | AJ48: 47
B49: Bimonthly-II | F49: 20 | H49: =IFERROR(VLOOKUP($AB$6,'Entry Sheet'!B7:$FL$500,61),"") -> 0 | K49: ਪ੍ਰੀ-ਬੋਰਡ ਟਰਮ ਪ੍ਰੀਖਿਆ ਦੇ ਅੰਕ | T49: 3 | V49: =IFERROR(VLOOKUP($AB$6,'Entry Sheet'!B7:$FL$500,66),"") -> 0 | AJ49: 48
B50: ਟਰਮ ਪ੍ਰੀਖਿਆ-II / ਪ੍ਰੀ ਬੋਰਡ | F50: 80 | H50: =IFERROR(VLOOKUP($AB$6,'Entry Sheet'!B7:$FL$500,62),"") -> 0 | K50: ਭਾਸ਼ਾਈ ਕੌਸ਼ਲ ਦਾ ਮਲਾਂਕਣ | T50: 7 | V50: =IFERROR(VLOOKUP($AB$6,'Entry Sheet'!B7:$FL$500,67),"") -> 0 | AJ50: 49
B51: ਸਲਾਨਾ ਪ੍ਰੀਖਿਆਵਾਂ | F51: 80 | H51: =IFERROR(VLOOKUP($AB$6,'Entry Sheet'!B7:$FL$500,63),"") -> 0 | K51: ਬੁੱਕ ਬੈਂਕ | T51: 1 | V51: =IFERROR(VLOOKUP($AB$6,'Entry Sheet'!B7:$FL$500,68),"") -> 0 | AJ51: 50
K52: ਕੁੱਲ | T52: 20 | V52: =IFERROR(VLOOKUP($AB$6,'Entry Sheet'!B7:$FL$500,69),"") -> 0 | AJ52: 51
B53: ਸਲਾਨਾ ਪ੍ਰੀਖਿਆਵਾਂ ਵਿੱਚ ਪ੍ਰਾਪਤ ਅੰਕ (80 ਵਿੱਚੋਂ) | H53: ਸੀ.ਸੀ.ਈ ਵਿੱਚ ਪ੍ਰਾਪਤ ਅੰਕ (20 ਵਿੱਚੋਂ) | M53: ਕੁੱਲ ਪ੍ਰਾਪਤ ਅੰਕ (100 ਵਿੱਚੋਂ) | T53: ਗ੍ਰੇਡ | V53: ਵਿਸ਼ੇਸ਼ ਕਥਨ | AJ53: 52
B54: =H51 -> 0 | H54: =V52 -> 0 | M54: =IFERROR(VLOOKUP($AB$6,'Entry Sheet'!B7:$FL$500,70),"") -> 0 | T54: =IFERROR(VLOOKUP($AB$6,'Entry Sheet'!B7:$FL$500,71),"") -> E | AJ54: 53
B55: ਵਿਸ਼ਾ: ਅੰਗਰੇਜ਼ੀ | AJ55: 54
B56: ਥਿਉਰੀ ਪ੍ਰੀਖਿਆ | K56: CCE | AJ56: 55
F57: ਕੁਲ ਅੰਕ | H57: ਪ੍ਰਾਪਤ ਅੰਕ | T57: ਕੁਲ ਅੰਕ | V57: ਪ੍ਰਾਪਤ ਅੰਕ | AJ57: 56
B58: Bimonthly-I | F58: 20 | H58: =IFERROR(VLOOKUP($AB$6,'Entry Sheet'!B7:$FL$500,72),"") -> 0 | K58: ਪ੍ਰੈਕਟੀਕਲ ਪ੍ਰੋਜੈਕਟ /ਵਰਕਾ ਅਸਾਈਨਮੈਂਟ | T58: 10 | V58: =IFERROR(VLOOKUP($AB$6,'Entry Sheet'!B7:$FL$500,77),"") -> 0 | AJ58: 57
B59: ਟਰਮ ਪ੍ਰੀਖਿਆ -1 | F59: 80 | H59: =IFERROR(VLOOKUP($AB$6,'Entry Sheet'!B7:$FL$500,73),"") -> 0 | K59: ਜਮਾਤ ਵਿੱਚ ਵਿਦਿਆਰਥੀ ਦੀ ਕਾਰਗੁਜ਼ਾਰੀ, ਸਹਿਯੋਗ ਅਤੇ ਅਨੁਸ਼ਾਸਨ | T59: 2 | V59: =IFERROR(VLOOKUP($AB$6,'Entry Sheet'!B7:$FL$500,78),"") -> 0 | AJ59: 58
B60: Bimonthly-II | F60: 20 | H60: =IFERROR(VLOOKUP($AB$6,'Entry Sheet'!B7:$FL$500,74),"") -> 0 | K60: ਪ੍ਰੀ-ਬੋਰਡ ਟਰਮ ਪ੍ਰੀਖਿਆ ਦੇ ਅੰਕ | T60: 2 | V60: =IFERROR(VLOOKUP($AB$6,'Entry Sheet'!B7:$FL$500,79),"") -> 0 | AJ60: 59
B61: ਟਰਮ ਪ੍ਰੀਖਿਆ-II / ਪ੍ਰੀ ਬੋਰਡ | F61: 80 | H61: =IFERROR(VLOOKUP($AB$6,'Entry Sheet'!B7:$FL$500,75),"") -> 0 | K61: ਨੋਟ ਬੁੱਕ/ ਅਸਾਈਨਮੈਂਟ/ ਟੈਸਟ ਵਿੱਚ ਭਾਗੀਦਾਰੀ | T61: 6 | V61: =IFERROR(VLOOKUP($AB$6,'Entry Sheet'!B7:$FL$500,80),"") -> 0 | AJ61: 60
B62: ਸਲਾਨਾ ਪ੍ਰੀਖਿਆਵਾਂ | F62: 80 | H62: =IFERROR(VLOOKUP($AB$6,'Entry Sheet'!B7:$FL$500,76),"") -> 0 | K62: ਕੁੱਲ | T62: 20 | V62: =IFERROR(VLOOKUP($AB$6,'Entry Sheet'!B7:$FL$500,81),"") -> 0 | AJ62: 61
B63: ਸਲਾਨਾ ਪ੍ਰੀਖਿਆਵਾਂ ਵਿੱਚ ਪ੍ਰਾਪਤ ਅੰਕ (80 ਵਿੱਚੋਂ) | H63: ਸੀ.ਸੀ.ਈ ਵਿੱਚ ਪ੍ਰਾਪਤ ਅੰਕ (20 ਵਿੱਚੋਂ) | M63: ਕੁੱਲ ਪ੍ਰਾਪਤ ਅੰਕ (100 ਵਿੱਚੋਂ) | T63: ਗ੍ਰੇਡ | V63: ਵਿਸ਼ੇਸ਼ ਕਥਨ | AJ63: 62
B64: =H62 -> 0 | H64: =V62 -> 0 | M64: =IFERROR(VLOOKUP($AB$6,'Entry Sheet'!B7:$FL$500,82),"") -> 0 | T64: =IFERROR(VLOOKUP($AB$6,'Entry Sheet'!B7:$FL$500,83),"") -> E | AJ64: 63
B65: ਵਿਸ਼ਾ :ਗਣਿਤ | AJ65: 64
B66: ਥਿਉਰੀ ਪ੍ਰੀਖਿਆ | K66: CCE | AJ66: 65
F67: ਕੁਲ ਅੰਕ | H67: ਪ੍ਰਾਪਤ ਅੰਕ | T67: ਕੁਲ ਅੰਕ | V67: ਪ੍ਰਾਪਤ ਅੰਕ | AJ67: 66
B68: Bimonthly-I | F68: 20 | H68: =IFERROR(VLOOKUP($AB$6,'Entry Sheet'!B7:$FL$500,84),"") -> 0 | K68: ਪ੍ਰੈਕਟੀਕਲ ਪ੍ਰੋਜੈਕਟ /ਵਰਕਾ ਅਸਾਈਨਮੈਂਟ | T68: 10 | V68: =IFERROR(VLOOKUP($AB$6,'Entry Sheet'!B7:$FL$500,89),"") -> 0 | AJ68: 67
B69: ਟਰਮ ਪ੍ਰੀਖਿਆ -1 | F69: 80 | H69: =IFERROR(VLOOKUP($AB$6,'Entry Sheet'!B7:$FL$500,85),"") -> 0 | K69: ਜਮਾਤ ਵਿੱਚ ਵਿਦਿਆਰਥੀ ਦੀ ਕਾਰਗੁਜ਼ਾਰੀ, ਸਹਿਯੋਗ ਅਤੇ ਅਨੁਸ਼ਾਸਨ | T69: 2 | V69: =IFERROR(VLOOKUP($AB$6,'Entry Sheet'!B7:$FL$500,90),"") -> 0 | AJ69: 68
B70: Bimonthly-II | F70: 20 | H70: =IFERROR(VLOOKUP($AB$6,'Entry Sheet'!B7:$FL$500,86),"") -> 0 | K70: ਪ੍ਰੀ-ਬੋਰਡ ਟਰਮ ਪ੍ਰੀਖਿਆ ਦੇ ਅੰਕ | T70: 2 | V70: =IFERROR(VLOOKUP($AB$6,'Entry Sheet'!B7:$FL$500,91),"") -> 0 | AJ70: 69
B71: ਟਰਮ ਪ੍ਰੀਖਿਆ-II / ਪ੍ਰੀ ਬੋਰਡ | F71: 80 | H71: =IFERROR(VLOOKUP($AB$6,'Entry Sheet'!B7:$FL$500,87),"") -> 0 | K71: ਗਤੀਵਿਧੀਆਂ ਮੇਲੇ ਵਿੱਚ ਸੰਕਲਪ ਦੀ ਸਪਸ਼ਟਤਾ ਅਤੇ ਮਾਡਲ ਦੀ ਪੇਸ਼ਕਾਰੀ | T71: 2 | V71: =IFERROR(VLOOKUP($AB$6,'Entry Sheet'!B7:$FL$500,92),"") -> 0 | AJ71: 70
B72: ਸਲਾਨਾ ਪ੍ਰੀਖਿਆਵਾਂ | F72: 80 | H72: =IFERROR(VLOOKUP($AB$6,'Entry Sheet'!B7:$FL$500,88),"") -> 0 | K72: ਗਤੀਵਿਧੀ ਮੇਲੇ ਵਿੱਚ ਦਸਾਈ ਗਈ ਗਤੀਵਿਧੀ ਦਾ ਰੋਜਾਨਾ ਜੀਵਨ ਨਾਲ ਗਤੀਵਿਧੀ ਦਾ ਸਬੰਧ | T72: 2 | V72: =IFERROR(VLOOKUP($AB$6,'Entry Sheet'!B7:$FL$500,93),"") -> 0 | AJ72: 71
K73: ਕਾਪੀਆਂ ਦੀ ਸਾਂਭ ਸੰਭਾਲ ਸੁੰਦਰ ਲਿਖਾਈ ਅਤੇ ਪੁਸਤਕ ਬੈਂਕ ਵਿੱਚ ਪੁਰਾਣੀਆਂ ਪੁਸਤਕਾਂ ਨੂੰ ਜਮਾ ਕਰਾਉਣਾ Books in book bank | T73: 2 | V73: =IFERROR(VLOOKUP($AB$6,'Entry Sheet'!B7:$FL$500,94),"") -> 0 | AJ73: 72
K74: ਕੁੱਲ | T74: 20 | V74: =IFERROR(VLOOKUP($AB$6,'Entry Sheet'!B7:$FL$500,95),"") -> 0 | AJ74: 73
B75: ਸਲਾਨਾ ਪ੍ਰੀਖਿਆਵਾਂ ਵਿੱਚ ਪ੍ਰਾਪਤ ਅੰਕ (80 ਵਿੱਚੋਂ) | H75: ਸੀ.ਸੀ.ਈ ਵਿੱਚ ਪ੍ਰਾਪਤ ਅੰਕ (20 ਵਿੱਚੋਂ) | M75: ਕੁੱਲ ਪ੍ਰਾਪਤ ਅੰਕ (100 ਵਿੱਚੋਂ) | T75: ਗ੍ਰੇਡ | V75: ਵਿਸ਼ੇਸ਼ ਕਥਨ | AJ75: 74
B76: =H72 -> 0 | H76: =V74 -> 0 | M76: =IFERROR(VLOOKUP($AB$6,'Entry Sheet'!B7:$FL$500,96),"") -> 0 | T76: =IFERROR(VLOOKUP($AB$6,'Entry Sheet'!B7:$FL$500,97),"") -> E | AJ76: 75
AJ77: 76
AJ78: 77
B79: ਵਿਸ਼ਾ: ਸਾਇੰਸ | AJ79: 78
B80: ਥਿਉਰੀ ਪ੍ਰੀਖਿਆ | K80: CCE | AJ80: 79
F81: ਕੁਲ ਅੰਕ | H81: ਪ੍ਰਾਪਤ ਅੰਕ | T81: ਕੁਲ ਅੰਕ | V81: ਪ੍ਰਾਪਤ ਅੰਕ | AJ81: 80
B82: Bimonthly-I | F82: 20 | H82: =IFERROR(VLOOKUP($AB$6,'Entry Sheet'!B7:$FL$500,98),"") -> 0 | K82: ਪ੍ਰੈਕਟੀਕਲ ਪ੍ਰੋਜੈਕਟ /ਵਰਕਾ ਅਸਾਈਨਮੈਂਟ | T82: 10 | V82: =IFERROR(VLOOKUP($AB$6,'Entry Sheet'!B7:$FL$500,103),"") -> 0 | AJ82: 81
B83: ਟਰਮ ਪ੍ਰੀਖਿਆ -1 | F83: 80 | H83: =IFERROR(VLOOKUP($AB$6,'Entry Sheet'!B7:$FL$500,99),"") -> 0 | K83: ਜਮਾਤ ਵਿੱਚ ਵਿਦਿਆਰਥੀ ਦੀ ਕਾਰਗੁਜ਼ਾਰੀ, ਸਹਿਯੋਗ ਅਤੇ ਅਨੁਸ਼ਾਸਨ | T83: 2 | V83: =IFERROR(VLOOKUP($AB$6,'Entry Sheet'!B7:$FL$500,104),"") -> 0 | AJ83: 82
B84: Bimonthly-II | F84: 20 | H84: =IFERROR(VLOOKUP($AB$6,'Entry Sheet'!B7:$FL$500,100),"") -> 0 | K84: ਪ੍ਰੀ-ਬੋਰਡ ਟਰਮ ਪ੍ਰੀਖਿਆ ਦੇ ਅੰਕ | T84: 2 | V84: =IFERROR(VLOOKUP($AB$6,'Entry Sheet'!B7:$FL$500,105),"") -> 0 | AJ84: 83
B85: ਟਰਮ ਪ੍ਰੀਖਿਆ-II / ਪ੍ਰੀ ਬੋਰਡ | F85: 80 | H85: =IFERROR(VLOOKUP($AB$6,'Entry Sheet'!B7:$FL$500,101),"") -> 0 | K85: ਗਤੀਵਿਧੀਆਂ ਮੇਲੇ ਵਿੱਚ ਸੰਕਲਪ ਦੀ ਸਪਸ਼ਟਤਾ ਅਤੇ ਮਾਡਲ ਦੀ ਪੇਸ਼ਕਾਰੀ | T85: 2 | V85: =IFERROR(VLOOKUP($AB$6,'Entry Sheet'!B7:$FL$500,106),"") -> 0 | AJ85: 84
B86: ਸਲਾਨਾ ਪ੍ਰੀਖਿਆਵਾਂ | F86: 80 | H86: =IFERROR(VLOOKUP($AB$6,'Entry Sheet'!B7:$FL$500,102),"") -> 0 | K86: ਗਤੀਵਿਧੀ ਮੇਲੇ ਵਿੱਚ ਦਸਾਈ ਗਈ ਗਤੀਵਿਧੀ ਦਾ ਰੋਜਾਨਾ ਜੀਵਨ ਨਾਲ ਗਤੀਵਿਧੀ ਦਾ ਸਬੰਧ | T86: 2 | V86: =IFERROR(VLOOKUP($AB$6,'Entry Sheet'!B7:$FL$500,107),"") -> 0 | AJ86: 85
K87: ਕਾਪੀਆਂ ਦੀ ਸਾਂਭ ਸੰਭਾਲ ਸੁੰਦਰ ਲਿਖਾਈ ਅਤੇ ਪੁਸਤਕ ਬੈਂਕ ਵਿੱਚ ਪੁਰਾਣੀਆਂ ਪੁਸਤਕਾਂ ਨੂੰ ਜਮਾ ਕਰਾਉਣਾ | T87: 2 | V87: =IFERROR(VLOOKUP($AB$6,'Entry Sheet'!B7:$FL$500,108),"") -> 0 | AJ87: 86
K88: ਕੁੱਲ | T88: 20 | V88: =IFERROR(VLOOKUP($AB$6,'Entry Sheet'!B7:$FL$500,109),"") -> 0 | AJ88: 87
B89: ਸਲਾਨਾ ਪ੍ਰੀਖਿਆਵਾਂ ਵਿੱਚ ਪ੍ਰਾਪਤ ਅੰਕ (80 ਵਿੱਚੋਂ) | H89: ਸੀ.ਸੀ.ਈ ਵਿੱਚ ਪ੍ਰਾਪਤ ਅੰਕ (20 ਵਿੱਚੋਂ) | M89: ਕੁੱਲ ਪ੍ਰਾਪਤ ਅੰਕ (100 ਵਿੱਚੋਂ) | T89: ਗ੍ਰੇਡ | V89: ਵਿਸ਼ੇਸ਼ ਕਥਨ | AJ89: 88
B90: =H86 -> 0 | H90: =V88 -> 0 | M90: =IFERROR(VLOOKUP($AB$6,'Entry Sheet'!B7:$FL$500,110),"") -> 0 | T90: =IFERROR(VLOOKUP($AB$6,'Entry Sheet'!B7:$FL$500,111),"") -> E | AJ90: 89
B91: ਵਿਸ਼ਾ:ਸਮਾਜਿਕ ਵਿਗਿਆਨ | AJ91: 90
B92: ਥਿਉਰੀ ਪ੍ਰੀਖਿਆ | K92: CCE | AJ92: 91
F93: ਕੁਲ ਅੰਕ | H93: ਪ੍ਰਾਪਤ ਅੰਕ | T93: ਕੁਲ ਅੰਕ | V93: ਪ੍ਰਾਪਤ ਅੰਕ | AJ93: 92
B94: Bimonthly-I | F94: 20 | H94: =IFERROR(VLOOKUP($AB$6,'Entry Sheet'!B7:$FL$500,112),"") -> 0 | K94: ਟਰਮ ਪ੍ਰੀਖਿਆ/Bimonthly Tests | T94: 4 | V94: =IFERROR(VLOOKUP($AB$6,'Entry Sheet'!B7:$FL$500,117),"") -> 0 | AJ94: 93
B95: ਟਰਮ ਪ੍ਰੀਖਿਆ -1 | F95: 80 | H95: =IFERROR(VLOOKUP($AB$6,'Entry Sheet'!B7:$FL$500,113),"") -> 0 | K95: ਪ੍ਰੀ-ਬੋਰਡ | T95: 5 | V95: =IFERROR(VLOOKUP($AB$6,'Entry Sheet'!B7:$FL$500,118),"") -> 0 | AJ95: 94
B96: Bimonthly-II | F96: 20 | H96: =IFERROR(VLOOKUP($AB$6,'Entry Sheet'!B7:$FL$500,114),"") -> 0 | K96: ਵਿਸ਼ੇ ਵਿੱਚ ਵਿਦਿਆਰਥੀ ਦੀ ਰੁਚੀ ਅਤੇ ਨੈਤਿਕ ਕਦਰਾਂ ਕੀਮਤਾਂ ਅਨੁਸਾਰ ਵਿਹਾਰ ਦਾ ਪ੍ਰਗਟਾਵਾ ਅਤੇ ਅਨੁਸ਼ਾਸਨ (ਹੋਮ_ਵਰਕ/ ਨੋਟ -ਬੁੱਕ /ਵਰਕ -) | T96: 4 | V96: =IFERROR(VLOOKUP($AB$6,'Entry Sheet'!B7:$FL$500,119),"") -> 0 | AJ96: 95
B97: ਟਰਮ ਪ੍ਰੀਖਿਆ-II / ਪ੍ਰੀ ਬੋਰਡ | F97: 80 | H97: =IFERROR(VLOOKUP($AB$6,'Entry Sheet'!B7:$FL$500,115),"") -> 0 | K97: ਬੁੱਕ ਬੈਂਕ | T97: 1 | V97: =IFERROR(VLOOKUP($AB$6,'Entry Sheet'!B7:$FL$500,120),"") -> 0 | AJ97: 96
B98: ਸਲਾਨਾ ਪ੍ਰੀਖਿਆਵਾਂ | F98: 80 | H98: =IFERROR(VLOOKUP($AB$6,'Entry Sheet'!B7:$FL$500,116),"") -> 0 | K98: ਪ੍ਰੋਜੈਕਟ ਵਰਕ/ ਗਤੀਵਿਧੀ (ਕੁਦਰਤੀ ਆਫਤਾਂ ਰਾਸ਼ਟਰੀ ਅੰਦੋਲਨ 1885 ਤੋਂ 1919 ਈਸਵੀ ਤੱਕ/ ਮੌਲਿਕ ਅਧਿਕਾਰ ਦੇ ਕਰਤਵ /ਲਿੰਗ ਸਮਤਾ) | T98: 6 | V98: =IFERROR(VLOOKUP($AB$6,'Entry Sheet'!B7:$FL$500,121),"") -> 0 | AJ98: 97
K99: ਕੁੱਲ | T99: 20 | V99: =IFERROR(VLOOKUP($AB$6,'Entry Sheet'!B7:$FL$500,122),"") -> 0 | AJ99: 98
B100: ਸਲਾਨਾ ਪ੍ਰੀਖਿਆਵਾਂ ਵਿੱਚ ਪ੍ਰਾਪਤ ਅੰਕ (80 ਵਿੱਚੋਂ) | H100: ਸੀ.ਸੀ.ਈ ਵਿੱਚ ਪ੍ਰਾਪਤ ਅੰਕ (20 ਵਿੱਚੋਂ) | M100: ਕੁੱਲ ਪ੍ਰਾਪਤ ਅੰਕ (100 ਵਿੱਚੋਂ) | T100: ਗ੍ਰੇਡ | V100: ਵਿਸ਼ੇਸ਼ ਕਥਨ | AJ100: 99
B101: =H98 -> 0 | H101: =V99 -> 0 | M101: =IFERROR(VLOOKUP($AB$6,'Entry Sheet'!B7:$FL$500,123),"") -> 0 | T101: =IFERROR(VLOOKUP($AB$6,'Entry Sheet'!B7:$FL$500,124),"") -> E | AJ101: 100
B102: ਵਿਸ਼ਾ : ਕੰਪਿਊਟਰ ਸਾਇੰਸ | AJ102: 101
B103: ਥਿਉਰੀ ਪ੍ਰੀਖਿਆ | K103: CCE and Practical | AJ103: 102
F104: ਕੁਲ ਅੰਕ | H104: ਪ੍ਰਾਪਤ ਅੰਕ | T104: ਕੁਲ ਅੰਕ | V104: ਪ੍ਰਾਪਤ ਅੰਕ | AJ104: 103
B105: Bimonthly-I | F105: 20 | H105: =IFERROR(VLOOKUP($AB$6,'Entry Sheet'!B7:$FL$500,125),"") -> 0 | K105: ਜਮਾਤ ਵਿੱਚ ਵਿਦਿਆਰਥੀ ਦੀ ਕਾਰਗੁਜ਼ਾਰੀ, ਸਹਿਯੋਗ ਅਤੇ ਅਨੁਸ਼ਾਸਨ | T105: 8 | V105: =IFERROR(VLOOKUP($AB$6,'Entry Sheet'!B7:$FL$500,130),"") -> 0 | AJ105: 104
B106: ਟਰਮ ਪ੍ਰੀਖਿਆ -1 | F106: 40 | H106: =IFERROR(VLOOKUP($AB$6,'Entry Sheet'!B7:$FL$500,126),"") -> 0 | K106: ਪ੍ਰੀ-ਬੋਰਡ ਟਰਮ ਪ੍ਰੀਖਿਆ ਦੇ ਅੰਕ | T106: 8 | V106: =IFERROR(VLOOKUP($AB$6,'Entry Sheet'!B7:$FL$500,131),"") -> 0 | AJ106: 105
B107: Bimonthly-II | F107: 20 | H107: =IFERROR(VLOOKUP($AB$6,'Entry Sheet'!B7:$FL$500,127),"") -> 0 | K107: ਕਾਪੀਆਂ ਦੀ ਸਾਂਭ ਸੰਭਾਲ ਸੁੰਦਰ ਲਿਖਾਈ ਅਤੇ ਪੁਸਤਕ ਬੈਂਕ ਵਿੱਚ ਪੁਰਾਣੀਆਂ ਪੁਸਤਕਾਂ ਨੂੰ ਜਮਾ ਕਰਾਉਣਾ | T107: 4 | V107: =IFERROR(VLOOKUP($AB$6,'Entry Sheet'!B7:$FL$500,132),"") -> 0 | AJ107: 106
B108: ਟਰਮ ਪ੍ਰੀਖਿਆ-II / ਪ੍ਰੀ ਬੋਰਡ | F108: 40 | H108: =IFERROR(VLOOKUP($AB$6,'Entry Sheet'!B7:$FL$500,128),"") -> 0 | K108: ਕੁੱਲ | T108: 20 | V108: =IFERROR(VLOOKUP($AB$6,'Entry Sheet'!B7:$FL$500,133),"") -> 0 | AJ108: 107
B109: ਸਲਾਨਾ ਪ੍ਰੀਖਿਆਵਾਂ | F109: 40 | H109: =IFERROR(VLOOKUP($AB$6,'Entry Sheet'!B7:$FL$500,129),"") -> 0 | AJ109: 108
B110: ਕੁੱਲ ਅੰਕ | F110: ਥਿਓਰੀ ਵਿੱਚ ਅੰਕ (40 ਵਿੱਚੋਂ) | H110: ਸੀ.ਸੀ.ਈ ਵਿੱਚ ਪ੍ਰਾਪਤ ਅੰਕ (20 ਵਿੱਚੋਂ) | K110: ਪ੍ਰੈਕਟੀਕਲ ਅੰਕ (40 ਵਿੱਚੋਂ) | O110: ਕੁੱਲ ਪ੍ਰਾਪਤ ਅੰਕ (100 ਵਿੱਚੋਂ) | T110: ਗ੍ਰੇਡ | V110: ਵਿਸ਼ੇਸ਼ ਕਥਨ | AJ110: 109
B111: 100 | F111: =H109 -> 0 | H111: =V108 -> 0 | K111: =IFERROR(VLOOKUP($AB$6,'Entry Sheet'!B7:$FL$500,134),"") -> 0 | O111: =IFERROR(VLOOKUP($AB$6,'Entry Sheet'!B7:$FL$500,135),"") -> 0 | T111: =IFERROR(VLOOKUP($AB$6,'Entry Sheet'!B7:$FL$500,136),"") -> E | AJ111: 110
B112: ਵਿਸ਼ਾ: ਸਰੀਰਕ ਸਿੱਖਿਆ | AJ112: 111
B113: ਥਿਉਰੀ ਪ੍ਰੀਖਿਆ | K113: ਸੀ.ਸੀ.ਈ ਅਤੇ ਪ੍ਰੈਕਟੀਕਲ | AJ113: 112
F114: ਕੁਲ ਅੰਕ | H114: ਪ੍ਰਾਪਤ ਅੰਕ | T114: ਕੁਲ ਅੰਕ | V114: ਪ੍ਰਾਪਤ ਅੰਕ | AJ114: 113
B115: Bimonthly-I | F115: 20 | H115: =IFERROR(VLOOKUP($AB$6,'Entry Sheet'!B7:$FL$500,137),"") -> 0 | K115: ਪ੍ਰੈਕਟੀਕਲ/ ਪ੍ਰੋਜੈਕਟ ਵਰਕ/ ਅਸਾਈਨਮੈਂਟ | T115: 3 | V115: =IFERROR(VLOOKUP($AB$6,'Entry Sheet'!B7:$FL$500,142),"") -> 0 | AJ115: 114
B116: ਟਰਮ ਪ੍ਰੀਖਿਆ -1 | F116: 40 | H116: =IFERROR(VLOOKUP($AB$6,'Entry Sheet'!B7:$FL$500,138),"") -> 0 | K116: ਜਮਾਤ ਵਿੱਚ ਵਿਦਿਆਰਥੀ ਦੀ ਕਾਰਗੁਜ਼ਾਰੀ, ਸਹਿਯੋਗ ਅਤੇ ਅਨੁਸ਼ਾਸਨ | T116: 2 | V116: =IFERROR(VLOOKUP($AB$6,'Entry Sheet'!B7:$FL$500,143),"") -> 0 | AJ116: 115
B117: Bimonthly-II | F117: 20 | H117: =IFERROR(VLOOKUP($AB$6,'Entry Sheet'!B7:$FL$500,139),"") -> 0 | K117: ਪ੍ਰੀ-ਬੋਰਡ ਟਰਮ ਪ੍ਰੀਖਿਆ ਦੇ ਅੰਕ | T117: 4 | V117: =IFERROR(VLOOKUP($AB$6,'Entry Sheet'!B7:$FL$500,144),"") -> 0 | AJ117: 116
B118: ਟਰਮ ਪ੍ਰੀਖਿਆ-II / ਪ੍ਰੀ ਬੋਰਡ | F118: 40 | H118: =IFERROR(VLOOKUP($AB$6,'Entry Sheet'!B7:$FL$500,140),"") -> 0 | K118: ਕਾਪੀਆਂ ਦੀ ਸਾਂਭ ਸੰਭਾਲ ਸੁੰਦਰ ਲਿਖਾਈ ਅਤੇ ਪੁਸਤਕ ਬੈਂਕ ਵਿੱਚ ਪੁਰਾਣੀਆਂ ਪੁਸਤਕਾਂ ਨੂੰ ਜਮਾ ਕਰਾਉਣਾ | T118: 1 | V118: =IFERROR(VLOOKUP($AB$6,'Entry Sheet'!B7:$FL$500,145),"") -> 0 | AJ118: 117
B119: ਸਲਾਨਾ ਪ੍ਰੀਖਿਆਵਾਂ | F119: 40 | H119: =IFERROR(VLOOKUP($AB$6,'Entry Sheet'!B7:$FL$500,141),"") -> 0 | K119: ਕੁੱਲ | T119: 10 | V119: =IFERROR(VLOOKUP($AB$6,'Entry Sheet'!B7:$FL$500,146),"") -> 0 | AJ119: 118
B120: ਸਲਾਨਾ ਪ੍ਰੀਖਿਆਵਾਂ ਵਿੱਚ ਪ੍ਰਾਪਤ ਅੰਕ (40 ਵਿੱਚੋਂ) | H120: ਸੀ.ਸੀ.ਈ (20 ਵਿੱਚੋਂ) | K120: ਪ੍ਰੈਕਟੀਕਲ ਅੰਕ (40 ਵਿੱਚੋਂ) | O120: ਕੁੱਲ ਪ੍ਰਾਪਤ ਅੰਕ (100 ਵਿੱਚੋਂ) | T120: ਗ੍ਰੇਡ | V120: ਵਿਸ਼ੇਸ਼ ਕਥਨ | AJ120: 119
B121: =H119 -> 0 | H121: =V119 -> 0 | K121: =IFERROR(VLOOKUP($AB$6,'Entry Sheet'!B7:$FL$500,147),"") -> 0 | O121: =IFERROR(VLOOKUP($AB$6,'Entry Sheet'!B7:$FL$500,148),"") -> 0 | T121: =IFERROR(VLOOKUP($AB$6,'Entry Sheet'!B7:$FL$500,149),"") -> E | AJ121: 120
B122: ਵਿਸ਼ਾ:ਡਰਾਇੰਗ | AJ122: 121
B123: ਥਿਉਰੀ ਪ੍ਰੀਖਿਆ | K123: ਸੀ.ਸੀ.ਈ ਅਤੇ ਪ੍ਰੈਕਟੀਕਲ | AJ123: 122
F124: ਕੁਲ ਅੰਕ | H124: ਪ੍ਰਾਪਤ ਅੰਕ | T124: ਕੁਲ ਅੰਕ | V124: ਪ੍ਰਾਪਤ ਅੰਕ | AJ124: 123
B125: Bimonthly-I | F125: ='Entry Sheet'!EU5 -> 20 | H125: =IFERROR(VLOOKUP($AB$6,'Entry Sheet'!B7:$FL$500,150),"") -> 0 | K125: ਪ੍ਰੈਕਟੀਕਲ/ ਪ੍ਰੋਜੈਕਟ ਵਰਕ/ ਅਸਾਈਨਮੈਂਟ | T125: ='Entry Sheet'!EZ5 -> 10 | V125: =IFERROR(VLOOKUP($AB$6,'Entry Sheet'!B7:$FL$500,155),"") -> 0 | AJ125: 124
B126: ਟਰਮ ਪ੍ਰੀਖਿਆ -1 | F126: ='Entry Sheet'!EV5 -> 80 | H126: =IFERROR(VLOOKUP($AB$6,'Entry Sheet'!B7:$FL$500,151),"") -> 0 | K126: ਜਮਾਤ ਵਿੱਚ ਵਿਦਿਆਰਥੀ ਦੀ ਕਾਰਗੁਜ਼ਾਰੀ, ਸਹਿਯੋਗ ਅਤੇ ਅਨੁਸ਼ਾਸਨ | T126: ='Entry Sheet'!FA5 -> 5 | V126: =IFERROR(VLOOKUP($AB$6,'Entry Sheet'!B7:$FL$500,156),"") -> 0 | AJ126: 125
B127: Bimonthly-II | F127: ='Entry Sheet'!EW5 -> 20 | H127: =IFERROR(VLOOKUP($AB$6,'Entry Sheet'!B7:$FL$500,152),"") -> 0 | K127: ਪ੍ਰੀ-ਬੋਰਡ ਟਰਮ ਪ੍ਰੀਖਿਆ ਦੇ ਅੰਕ | T127: ='Entry Sheet'!FB5 -> 4 | V127: =IFERROR(VLOOKUP($AB$6,'Entry Sheet'!B7:$FL$500,157),"") -> 0 | AJ127: 126
B128: ਟਰਮ ਪ੍ਰੀਖਿਆ-II / ਪ੍ਰੀ ਬੋਰਡ | F128: ='Entry Sheet'!EX5 -> 80 | H128: =IFERROR(VLOOKUP($AB$6,'Entry Sheet'!B7:$FL$500,153),"") -> 0 | K128: ਕਾਪੀਆਂ ਦੀ ਸਾਂਭ ਸੰਭਾਲ ਸੁੰਦਰ ਲਿਖਾਈ ਅਤੇ ਪੁਸਤਕ ਬੈਂਕ ਵਿੱਚ ਪੁਰਾਣੀਆਂ ਪੁਸਤਕਾਂ ਨੂੰ ਜਮਾ ਕਰਾਉਣਾ | T128: ='Entry Sheet'!FC5 -> 1 | V128: =IFERROR(VLOOKUP($AB$6,'Entry Sheet'!B7:$FL$500,158),"") -> 0 | AJ128: 127
B129: ਸਲਾਨਾ ਪ੍ਰੀਖਿਆਵਾਂ | F129: ='Entry Sheet'!EY5 -> 80 | H129: =IFERROR(VLOOKUP($AB$6,'Entry Sheet'!B7:$FL$500,154),"") -> 0 | K129: ਕੁੱਲ | T129: =SUM(T125:U128) -> 20 | V129: =IFERROR(VLOOKUP($AB$6,'Entry Sheet'!B7:$FL$500,159),"") -> 0 | AJ129: 128
B130: ਥਿਉਰੀ ਵਿੱਚ ਪ੍ਰਾਪਤ ਅੰਕ | H130: ਸੀ.ਸੀ.ਈ ਵਿੱਚ ਪ੍ਰਾਪਤ ਅੰਕ (20 ਵਿੱਚੋਂ) | K130: ਪ੍ਰੈਕਟੀਕਲ ਅੰਕ | O130: ਕੁੱਲ ਪ੍ਰਾਪਤ ਅੰਕ | T130: ਗ੍ਰੇਡ | V130: ਵਿਸ਼ੇਸ਼ ਕਥਨ | AJ130: 129
B131: =H129 -> 0 | H131: =V129 -> 0 | K131: =IFERROR(VLOOKUP($AB$6,'Entry Sheet'!B7:$FL$500,160),"") -> 0 | O131: =IFERROR(VLOOKUP($AB$6,'Entry Sheet'!B7:$FL$500,161),"") -> 0 | T131: =IFERROR(VLOOKUP($AB$6,'Entry Sheet'!B7:$FL$500,162),"") -> E | AJ131: 130
B132: Grand Total | AJ132: 131
B133: ਕੁੱਲ ਅੰਕ | H133: ਪ੍ਰਾਪਤ ਅੰਕ | M133: ਪ੍ਰਤੀਸ਼ਤ /ਗ੍ਰੇਡ | R133: ਨਤੀਜਾ | AJ133: 132
B134: 600 | H134: =IFERROR(VLOOKUP($AB$6,'Entry Sheet'!B7:$FL$500,163),"") -> --- | M134: =IFERROR(VLOOKUP($AB$6,'Entry Sheet'!B7:$FL$500,165),"") ->  | R134: =IFERROR(VLOOKUP($AB$6,'Entry Sheet'!B7:$FL$500,166),"") -> ---- | AJ134: 133
B135: 3600 Progress Report (ਪ੍ਰਗਤੀ ਰਿਪੋਰਟ) | AJ135: 134
B136: ਸੰਕੇਤਕ/ ਸੂਚਕ | R136: ਆਰੰਭਕ Beginner | T136: ਸਮਰੱਥ Proficient | V136: ਕੁਸ਼ਲ Advanced | AJ136: 135
B137: ਜਾਗਰੂਕਤਾ ( Awareness ) | AJ137: 136
B138: ਗੱਲਬਾਤ (Communication) | AJ138: 137
B139: ਵਿਦਿਆਰਥੀ ਦੂਜਿਆਂ ਨਾਲ਼ ਰਸਮੀ ਅਤੇ ਗ਼ੈਰ ਰਸਮੀ ਗੱਲ-ਬਾਤ ਕਰ ਸਕਦਾ ਹੈ। | R139: =IF(OR($M$134="D",$M$134="C+",$M$134="C"),"P","") ->  | T139: =IF(OR($M$134="A",$M$134="B+"),"P","") ->  | V139: =IF($M$134="A+","P","") ->  | AJ139: 138
B140: ਗੱਲ-ਬਾਤ ਕਰਦੇ ਸਮੇਂ ਵਿਦਿਆਰਥੀ ਦੁਸਰੇ ਪ੍ਰਤੀ ਸਤਿਕਾਰ ਅਤੇ ਹਮਦਰਦੀ ਦਾ ਪ੍ਰਦਰਸ਼ਨ ਕਰਦਾ ਹੈ। | R140: =IF(OR($M$134="D",$M$134="C+",$M$134="C"),"P","") ->  | T140: =IF(OR($M$134="A",$M$134="B+"),"P","") ->  | V140: =IF($M$134="A+","P","") ->  | AJ140: 139
B141: ਵਿਦਿਆਰਥੀ ਇਸ ਨਾਲ਼ ਜਾਣੂ ਹੈ ਕਿ ਕਿਵੇਂ ਸੱਭਿਆਚਾਰ ਅਤੇ ਸੰਦਰਭ (context) ਗੱਲਬਾਤ 'ਤੇ ਪ੍ਰਭਾਵ ਪਾਉਂਦਾ ਹੈ। | AJ141: 140
B142: ਵਿਦਿਆਰਥੀ ਮੌਖਿਕ ਅਤੇ ਲਿਖਿਤ ਰੂਪ ਵਿੱਚ ਜਾਂ ਗੈਰ-ਮੌਖਿਕ ਰੂਪ ਵਿੱਚ ਆਪਣੇ ਵਿਚਾਰ ਪ੍ਰਗਟ ਕਰਦਾ ਹੈ। | AJ142: 141
B143: ਵਿਅਕਤੀਗਤ ਵਿਕਾਸ ਅਤੇ ਤੰਦਰੁਸਤੀ(Growth and Well -being) | AJ143: 142
B144: ਵਿਦਿਆਰਥੀ ਸਰੀਰਿਕ ਤੰਦਰੁਸਤੀ ਲਈ ਆਪਣੇ ਉਦੇਸ਼ ਮਿੱਥ ਕੇ ਉਸ ਦੀ ਪ੍ਰਾਪਤੀ ਲਈ ਯਤਨ ਕਰਦਾ ਹੈ। | R144: =IF(OR($M$134="D",$M$134="C+",$M$134="C"),"P","") ->  | T144: =IF(OR($M$134="A",$M$134="B+"),"P","") ->  | V144: =IF($M$134="A+","P","") ->  | AJ144: 143
B145: ਵਿਦਿਆਰਥੀ ਆਪਣੀ ਅਤੇ ਆਪਣੇ ਆਲ਼ੇ-ਦੁਆਲ਼ੇ ਦੀ ਸਫ਼ਾਈ ਲਈ ਬਹੁਤ ਸੁਚੇਤ ਹੈ। | R145: =IF(OR($M$134="D",$M$134="C+",$M$134="C"),"P","") ->  | T145: =IF(OR($M$134="A",$M$134="B+"),"P","") ->  | V145: =IF($M$134="A+","P","") ->  | AJ145: 144
B146: ਵਿਦਿਆਰਥੀ ਲੋਕ ਭਲਾਈ ਪ੍ਰਤੀ ਆਪਣੀ ਸਮਾਜਿਕ ਜਿੰਮੇਵਾਰੀ ਦੀ ਪਾਲਣਾ ਕਰਦਾ ਹੈ। | AJ146: 145
B147: Sensitivity (ਸੰਵੇਦਨਸ਼ੀਲਤਾ) | AJ147: 146
B148: ਆਪਸੀ ਸਹਿਯੋਗ(Collaboration) | AJ148: 147
B149: ਦੂਜਿਆਂ ਨਾਲ਼ ਸਹਿਯੋਗ ਰਾਹੀਂ ਇੱਕ ਸਾਂਝੇ ਟੀਚੇ ਨੂੰ ਪ੍ਰਾਪਤ ਕਰਨ ਲਈ ਕੰਮ ਕਰਦਾ ਹੈ। | R149: =IF(OR($M$134="D",$M$134="C+",$M$134="C"),"P","") ->  | T149: =IF(OR($M$134="A",$M$134="B+"),"P","") ->  | V149: =IF($M$134="A+","P","") ->  | AJ149: 148
B150: ਵਿਦਿਆਰਥੀ ਦੂਜਿਆਂ ਨਾਲ਼ ਵਿਚਾਰਾਂ ਦਾ ਅਦਾਨ-ਪ੍ਰਦਾਨ ਕਰਦਾ ਹੈ। | AJ150: 149
B151: ਆਪਣੇ ਸਹਿਪਾਠੀਆਂ ਅਤੇ ਦੋਸਤਾਂ ਨਾਲ ਵਧੀਆ ਸੰਬੰਧ ਬਣਾ ਕੇ ਰੱਖਦਾ ਹੈ। | AJ151: 150
B152: Cultural & Global Citizenship | AJ152: 151
B153: ਵਿਦਿਆਰਥੀ ਸੱਭਿਆਚਾਰਕ, ਸਮਾਜਿਕ, ਆਰਥਿਕ ਪ੍ਰਣਾਲੀ ਅਤੇ ਵਾਤਾਵਰਨ ਨਾਲ਼ ਜੁੜੀਆਂ ਗਤੀਵਿਧੀਆਂ ਵਿੱਚ ਵੱਧ ਚੜ੍ਹ ਕੇ ਭਾਗ ਲੈਂਦਾ ਹੈ। | AJ153: 152
B154: ਵਿਦਿਆਰਥੀ ਹਮੇਸ਼ਾ ਦੂਜਿਆਂ ਦੀ ਭਲਾਈ ਲਈ ਯਤਨਸ਼ੀਲ ਰਹਿੰਦਾ ਹੈ। | AJ154: 153
B155: ਵਿਦਿਆਰਥੀ ਦੂਜਿਆਂ ਦੀ ਸਮਾਨਤਾ ਅਤੇ ਵਿਭਿੰਨਤਾ ਦੀ ਕਦਰ ਕਰਦਾ ਹੈ। | AJ155: 154
B156: Creativity (ਰਚਨਾਤਮਕਤਾ) | AJ156: 155
B157: ਆਲੋਚਨਾਤਮਕ ਸੋਚ (Critical Thinking) | AJ157: 156
B158: ਵਿਦਿਆਰਥੀ ਇਸ ਗੱਲ ਦਾ ਵਿਸ਼ਲੇਸ਼ਣ ਕਰਦਾ ਹੈ ਕਿ ਇੱਕ ਪ੍ਰਣਾਲੀ ਦੇ ਵੱਖ-ਵੱਖ ਭਾਗ ਆਪਸੀ ਸਹਿਭਾਗਤਾ ਨਾਲ ਕੰਮ ਕਰਦੇ ਹਨ। | R158: =IF(OR($M$134="D",$M$134="C+",$M$134="C"),"P","") ->  | T158: =IF(OR($M$134="A",$M$134="B+"),"P","") ->  | V158: =IF($M$134="A+","P","") ->  | AJ158: 157
B159: ਸਬੂਤਾਂ, ਤਰਕਾਂ ਦਾਅਵੇ ਅਤੇ ਵਿਸ਼ਵਾਸਾਂ ਅਤੇ ਵਿਕਲਪਿਕ ਨਜ਼ਰੀਏ ਦਾ ਪ੍ਰਭਾਵਸ਼ਾਲੀ ਤਰੀਕੇ ਨਾਲ਼ ਵਿਸ਼ਲੇਸ਼ਣ ਅਤੇ ਮੁਲਾਂਕਣ ਕਰਦਾ ਹੈ। | AJ159: 158
B160: ਉਪਲਬਧ ਸੂਚਨਾ ਦਾ ਸਹੀ ਵਿਸ਼ਲੇਸ਼ਣ ਰਾਹੀ ਵਧੀਆ ਪਰਿਣਾਮ ਪ੍ਰਾਪਤ ਕਰ ਸਕਦਾ ਹੈ। | AJ160: 159
B161: ਕਿਸੇ ਵਿਚਾਰ ਦੀ ਪੜਤਾਲ ਅਤੇ ਵਿਸ਼ਲੇਸ਼ਣ ਕਰਨ ਲਈ ਤਰਕ ਅਤੇ ਕਸੌਟੀ ਦੀ ਵਰਤੋਂ ਕਰਦਾ ਹੈ | AJ161: 160
B162: ਵਿਦਿਆਰਥੀ ਆਪਣੀ ਸੋਚ ਅਤੇ ਵਿਚਾਰਾਂ ਦੀ ਪੜਚੋਲ ਕਰਦਾ ਹੈ। | AJ162: 161
B163: ਵਿਦਿਆਰਥੀ ਇਮਾਨਦਾਰੀ ਅਤੇ ਨਿਰਪੱਖਤਾ ਵਰਗੀਆਂ ਕੀਮਤਾਂ ਦੀ ਕਦਰ ਕਰਦਾ ਹੈ। | AJ163: 162
B164: ਸਮੱਸਿਆ ਦਾ ਹੱਲ ਲੱਭਣਾ(Problem Solving) | AJ164: 163
B165: ਕੁਝ ਨਵਾਂ ਜਾਨਣ ਦੀ ਜਿਗਿਆਸਾ ਰੱਖਦਾ ਹੈ। | AJ165: 164
B166: ਗਿਆਨ, ਕੌਸ਼ਲ ਅਤੇ ਧਾਰਨਾ ਨਾਲ ਸੰਬੰਧਤ ਪ੍ਰਸ਼ਨ ਪੁੱਛਦਾ ਹੈ। | AJ166: 165
B167: ਕਿਸੇ ਵੀ ਨਵੀਂ ਸਮੱਸਿਆ ਦਾ ਪਾਰੰਪਰਿਕ ਅਤੇ ਨਵੀਨ ਤਰੀਕਿਆਂ ਨਾਲ ਹੱਲ ਕਰਦਾ ਹੈ। | AJ167: 166
B168: ਅਜਿਹੇ ਮੋਹਤਵਪੂਰਨ ਪ੍ਰਸ਼ਨ ਪੁੱਛਦਾ ਹੈ, ਜੋ ਕਿਸੇ ਸਮੱਸਿਆ ਦੇ ਹੱਲ ਲਈ ਸੰਭਵ ਵੱਖ-ਵੱਖ ਨਜ਼ਰੀਏ ਨੂੰ ਸਪਸ਼ਟ ਕਰਦਾ ਹੈ ਅਤੇ ਸਮੱਸਿਆ ਦੇ ਬਿਹਤਰ ਹੱਲ ਤੱਕ ਪੁੱਜਦਾ ਹੈ। | AJ168: 167
B169: ਸੂਚਨਾ ਪ੍ਰਬੰਧਨ (Information Management) | AJ169: 168
B170: ਕਿਸੇ ਸੂਚਨਾ ਨੂੰ ਪ੍ਰਾਪਤ ਕਰਨ ਲਈ ਪ੍ਰਭਾਵਸ਼ਾਲੀ ਸੋਮੇ ਖੋਜਦਾ ਹੈ। | AJ170: 169
B171: ਪ੍ਰਾਪਤ ਹੋਈ ਸੂਚਨਾ ਦੀ ਪੜਚੋਲ ਕਰਦਾ ਹੈ। | AJ171: 170
B172: ਪ੍ਰਾਪਤ ਸੂਚਨਾ ਨੂੰ ਕਿਸੇ ਸਮੱਸਿਆ ਦਾ ਨਿਪਟਾਰਾ ਕਰਨ ਲਈ ਸਟੀਕ ਅਤੇ ਰਚਨਾਤਮਕ ਢੰਗ ਨਾਲ ਵਰਤਦਾ ਹੈ। | AJ172: 171
B173: ਵੱਖ-ਵੱਖ ਸੋਮਿਆਂ ਤੋਂ ਪ੍ਰਾਪਤ ਹੋਈ ਸੂਚਨਾ ਦੇ ਪ੍ਰਵਾਹ ਦਾ ਪ੍ਰਬੰਧਨ ਕਰਦਾ ਹੈ। | AJ173: 172
B174: ਸਿਰਜਨਾਤਮਕਤਾ ਅਤੇ ਨਵੀਨਤਾ(Creativity and Innovation) | AJ174: 173
B175: ਨਵੇਂ ਵਿਚਾਰਾਂ ਦੀ ਸਿਰਜਨਾ ਕਰਦਾ ਹੈ। | AJ175: 174
B176: ਨਵੇਂ ਵਿਚਾਰਾਂ ਨੂੰ ਦੂਜਿਆਂ ਤੱਕ ਸੰਚਾਰ ਕਰ ਸਕਦਾ ਹੈ ਅਤੇ ਲਾਗੂ ਵੀ ਕਰ ਸਕਦਾ ਹੈ । | AJ176: 175
B177: ਗਰੁੱਪ ਵਿੱਚ ਕੰਮ ਕਰਦੇ ਦੂਜਿਆਂ ਦੇ ਵਿਚਾਰਾਂ ਨੂੰ ਵੀ ਸਹਿਜਤਾ ਨਾਲ ਗ੍ਰਹਿਣ ਕਰਦਾ ਹੈ ਅਤੇ ਉਨ੍ਹਾਂ ਨੂੰ ਲਾਗੂ ਕਰਦਾ ਹੈ। | AJ177: 176
B178: ਨਵੇਂ ਹਲਾਤਾਂ ਨਾਲ ਬਹੁਤ ਜਲਦੀ ਅਨੁਕੂਲਿਤ ਹੋ ਜਾਂਦਾ ਹੈ। | AJ178: 177
B179: ਨਵੇਂ ਹਲਾਤਾਂ ਨਾਲ ਬਹੁਤ ਜਲਦੀ ਅਨੁਕੂਲਿਤ ਹੋ ਜਾਂਦਾ ਹੈ। | AJ179: 178
B180: ਸਕਾਰਾਤਮਕਤਾ ਦਾ ਪ੍ਰਦਰਸ਼ਨ ਕਰਦਾ ਹੈ। | AJ180: 179
B181: ਸਰਬਪੱਖੀ ਪ੍ਰਗਤੀ ਕਾਰਡ | AJ181: 180
E182: ਵਿਦਿਆਰਥੀ ਦੀ ਸਹਿ-ਵਿੱਦਿਅਕ / ਵਾਧੂ-ਪਾਠਕ੍ਰਮ ਗਤੀਵਿਧੀਆਂ ਅਤੇ ਖੇਡਾਂ ਵਿੱਚ ਸਕੂਲ / ਬਲਾਕ/ ਜ਼ਿਲਾ ਜਾਂ ਰਾਜ ਪੱਧਰ ਤੇ ਭਾਗੀਦਾਰੀ ਬਾਰੇ ਅਧਿਆਪਕ ਦੀ ਵਿਸਥਾਰਿਤ ਟਿੱਪਣੀ | AJ182: 181
B183: ਟਰਮ -1 | AJ183: 182
E184: =IFERROR(VLOOKUP($AB$6,'Entry Sheet'!B7:$FL$500,167),"") -> 0 | AJ184: 183
AJ185: 184
AJ186: 185
B187: ਟਰਮ-2 / ਪ੍ਰੀ ਬੋਰਡ | AJ187: 186
E188: =IFERROR(VLOOKUP($AB$6,'Entry Sheet'!B7:$FN$500,168),"") -> 0 | AJ188: 187
AJ189: 188
AJ190: 189
B191: ਸਲਾਨਾ ਪ੍ਰੀਖਿਆ | AJ191: 190
E192: =IFERROR(VLOOKUP($AB$6,'Entry Sheet'!B7:$FN$500,169),"") -> 0 | AJ192: 191
AJ193: 192
AJ194: 193
AJ195: 194
E196: ਜਮਾਤ ਇੰਚਾਰਜ ਦੇ ਹਸਤਾਖ਼ਰ | K196: ਸਕੂਲ ਮੁੱਖੀ ਦੇ ਹਸਤਾਖ਼ਰ | R196: ਮਾਤਾ/ਪਿਤਾ/ਸਰਪ੍ਰਸਤ ਦੇ ਹਸਤਾਖ਼ਰ | AJ196: 195
B197: ਟਰਮ-1 | AJ197: 196
B198: ਟਰਮ-2 / ਪ੍ਰੀ ਬੋਰਡ | AJ198: 197
B199: ਸਲਾਨਾ ਪ੍ਰੀਖਿਆ | AJ199: 198
B200: ਸਕੂਲ ਸਿੱਖਿਆ ਵਿਭਾਗ, ਪੰਜਾਬ | AJ200: 199
A201: www.Teachershelp.in | AJ201: 200
... 798 more rows

Sheet Result Class 6
C1: Annnual Result Sheet 2024-25 Class 6th
A3: Sr. no | B3: Name | C3: Fahter Name | D3: Punjabi | G3: Hindi | J3: English | M3: Mathematics | P3: Science | S3: Social Science | V3: Computer Sci. | Z3: Physical | AD3: Elective Sub | AH3: Total Marks | AI3: Result
D4: Th. | E4: CCE | F4: Total | G4: Th. | H4: CCE | I4: Total | J4: Th. | K4: CCE | L4: Total | M4: Th. | N4: CCE | O4: Total | P4: Th. | Q4: CCE | R4: Total | S4: Th. | T4: CCE | U4: Total | V4: Th. | W4: CCE | X4: Pract. | Y4: Total | Z4: Th. | AA4: CCE | AB4: Pr | AC4: Total | AD4: Th. | AE4: CCE | AF4: Pra. | AG4: Total
E6: 0 | F6: 0 | H6: 0 | I6: 0 | K6: 0 | L6: 0 | N6: 0 | O6: 0 | Q6: 0 | R6: 0 | T6: 0 | U6: 0 | W6: 0 | Y6: 0 | AA6: 0 | AC6: 0 | AE6: 0 | AG6: 0 | AH6: --- | AI6: ----
E7: 0 | F7: 0 | H7: 0 | I7: 0 | K7: 0 | L7: 0 | N7: 0 | O7: 0 | Q7: 0 | R7: 0 | T7: 0 | U7: 0 | W7: 0 | Y7: 0 | AA7: 0 | AC7: 0 | AE7: 0 | AG7: 0 | AH7: --- | AI7: ----
E8: 0 | F8: 0 | H8: 0 | I8: 0 | K8: 0 | L8: 0 | N8: 0 | O8: 0 | Q8: 0 | R8: 0 | T8: 0 | U8: 0 | W8: 0 | Y8: 0 | AA8: 0 | AC8: 0 | AE8: 0 | AG8: 0 | AH8: --- | AI8: ----
E9: 0 | F9: 0 | H9: 0 | I9: 0 | K9: 0 | L9: 0 | N9: 0 | O9: 0 | Q9: 0 | R9: 0 | T9: 0 | U9: 0 | W9: 0 | Y9: 0 | AA9: 0 | AC9: 0 | AE9: 0 | AG9: 0 | AH9: --- | AI9: ----
E10: 0 | F10: 0 | H10: 0 | I10: 0 | K10: 0 | L10: 0 | N10: 0 | O10: 0 | Q10: 0 | R10: 0 | T10: 0 | U10: 0 | W10: 0 | Y10: 0 | AA10: 0 | AC10: 0 | AE10: 0 | AG10: 0 | AH10: --- | AI10: ----
E11: 0 | F11: 0 | H11: 0 | I11: 0 | K11: 0 | L11: 0 | N11: 0 | O11: 0 | Q11: 0 | R11: 0 | T11: 0 | U11: 0 | W11: 0 | Y11: 0 | AA11: 0 | AC11: 0 | AE11: 0 | AG11: 0 | AH11: --- | AI11: ----
E12: 0 | F12: 0 | H12: 0 | I12: 0 | K12: 0 | L12: 0 | N12: 0 | O12: 0 | Q12: 0 | R12: 0 | T12: 0 | U12: 0 | W12: 0 | Y12: 0 | AA12: 0 | AC12: 0 | AE12: 0 | AG12: 0 | AH12: --- | AI12: ----
E13: 0 | F13: 0 | H13: 0 | I13: 0 | K13: 0 | L13: 0 | N13: 0 | O13: 0 | Q13: 0 | R13: 0 | T13: 0 | U13: 0 | W13: 0 | Y13: 0 | AA13: 0 | AC13: 0 | AE13: 0 | AG13: 0 | AH13: --- | AI13: ----
E14: 0 | F14: 0 | H14: 0 | I14: 0 | K14: 0 | L14: 0 | N14: 0 | O14: 0 | Q14: 0 | R14: 0 | T14: 0 | U14: 0 | W14: 0 | Y14: 0 | AA14: 0 | AC14: 0 | AE14: 0 | AG14: 0 | AH14: --- | AI14: ----
E15: 0 | F15: 0 | H15: 0 | I15: 0 | K15: 0 | L15: 0 | N15: 0 | O15: 0 | Q15: 0 | R15: 0 | T15: 0 | U15: 0 | W15: 0 | Y15: 0 | AA15: 0 | AC15: 0 | AE15: 0 | AG15: 0 | AH15: --- | AI15: ----
E16: 0 | F16: 0 | H16: 0 | I16: 0 | K16: 0 | L16: 0 | N16: 0 | O16: 0 | Q16: 0 | R16: 0 | T16: 0 | U16: 0 | W16: 0 | Y16: 0 | AA16: 0 | AC16: 0 | AE16: 0 | AG16: 0 | AH16: --- | AI16: ----
E17: 0 | F17: 0 | H17: 0 | I17: 0 | K17: 0 | L17: 0 | N17: 0 | O17: 0 | Q17: 0 | R17: 0 | T17: 0 | U17: 0 | W17: 0 | Y17: 0 | AA17: 0 | AC17: 0 | AE17: 0 | AG17: 0 | AH17: --- | AI17: ----
E18: 0 | F18: 0 | H18: 0 | I18: 0 | K18: 0 | L18: 0 | N18: 0 | O18: 0 | Q18: 0 | R18: 0 | T18: 0 | U18: 0 | W18: 0 | Y18: 0 | AA18: 0 | AC18: 0 | AE18: 0 | AG18: 0 | AH18: --- | AI18: ----
E19: 0 | F19: 0 | H19: 0 | I19: 0 | K19: 0 | L19: 0 | N19: 0 | O19: 0 | Q19: 0 | R19: 0 | T19: 0 | U19: 0 | W19: 0 | Y19: 0 | AA19: 0 | AC19: 0 | AE19: 0 | AG19: 0 | AH19: --- | AI19: ----
E20: 0 | F20: 0 | H20: 0 | I20: 0 | K20: 0 | L20: 0 | N20: 0 | O20: 0 | Q20: 0 | R20: 0 | T20: 0 | U20: 0 | W20: 0 | Y20: 0 | AA20: 0 | AC20: 0 | AE20: 0 | AG20: 0 | AH20: --- | AI20: ----
E21: 0 | F21: 0 | H21: 0 | I21: 0 | K21: 0 | L21: 0 | N21: 0 | O21: 0 | Q21: 0 | R21: 0 | T21: 0 | U21: 0 | W21: 0 | Y21: 0 | AA21: 0 | AC21: 0 | AE21: 0 | AG21: 0 | AH21: --- | AI21: ----
E22: 0 | F22: 0 | H22: 0 | I22: 0 | K22: 0 | L22: 0 | N22: 0 | O22: 0 | Q22: 0 | R22: 0 | T22: 0 | U22: 0 | W22: 0 | Y22: 0 | AA22: 0 | AC22: 0 | AE22: 0 | AG22: 0 | AH22: --- | AI22: ----
E23: 0 | F23: 0 | H23: 0 | I23: 0 | K23: 0 | L23: 0 | N23: 0 | O23: 0 | Q23: 0 | R23: 0 | T23: 0 | U23: 0 | W23: 0 | Y23: 0 | AA23: 0 | AC23: 0 | AE23: 0 | AG23: 0 | AH23: --- | AI23: ----
E24: 0 | F24: 0 | H24: 0 | I24: 0 | K24: 0 | L24: 0 | N24: 0 | O24: 0 | Q24: 0 | R24: 0 | T24: 0 | U24: 0 | W24: 0 | Y24: 0 | AA24: 0 | AC24: 0 | AE24: 0 | AG24: 0 | AH24: --- | AI24: ----
E25: 0 | F25: 0 | H25: 0 | I25: 0 | K25: 0 | L25: 0 | N25: 0 | O25: 0 | Q25: 0 | R25: 0 | T25: 0 | U25: 0 | W25: 0 | Y25: 0 | AA25: 0 | AC25: 0 | AE25: 0 | AG25: 0 | AH25: --- | AI25: ----
E26: 0 | F26: 0 | H26: 0 | I26: 0 | K26: 0 | L26: 0 | N26: 0 | O26: 0 | Q26: 0 | R26: 0 | T26: 0 | U26: 0 | W26: 0 | Y26: 0 | AA26: 0 | AC26: 0 | AE26: 0 | AG26: 0 | AH26: --- | AI26: ----
E27: 0 | F27: 0 | H27: 0 | I27: 0 | K27: 0 | L27: 0 | N27: 0 | O27: 0 | Q27: 0 | R27: 0 | T27: 0 | U27: 0 | W27: 0 | Y27: 0 | AA27: 0 | AC27: 0 | AE27: 0 | AG27: 0 | AH27: --- | AI27: ----
E28: 0 | F28: 0 | H28: 0 | I28: 0 | K28: 0 | L28: 0 | N28: 0 | O28: 0 | Q28: 0 | R28: 0 | T28: 0 | U28: 0 | W28: 0 | Y28: 0 | AA28: 0 | AC28: 0 | AE28: 0 | AG28: 0 | AH28: --- | AI28: ----
E29: 0 | F29: 0 | H29: 0 | I29: 0 | K29: 0 | L29: 0 | N29: 0 | O29: 0 | Q29: 0 | R29: 0 | T29: 0 | U29: 0 | W29: 0 | Y29: 0 | AA29: 0 | AC29: 0 | AE29: 0 | AG29: 0 | AH29: --- | AI29: ----

Sheet Result Class 7
C1: Annnual Result Sheet 2024-25 Class 7th
A3: Sr. no | B3: Name | C3: Fahter Name | D3: Punjabi | G3: Hindi | J3: English | M3: Mathematics | P3: Science | S3: Social Science | V3: Computer Sci. | Z3: Physical | AD3: Elective Sub | AH3: Total Marks | AI3: Result
D4: Th. | E4: CCE | F4: Total | G4: Th. | H4: CCE | I4: Total | J4: Th. | K4: CCE | L4: Total | M4: Th. | N4: CCE | O4: Total | P4: Th. | Q4: CCE | R4: Total | S4: Th. | T4: CCE | U4: Total | V4: Th. | W4: CCE | X4: Pract. | Y4: Total | Z4: Th. | AA4: CCE | AB4: Pr | AC4: Total | AD4: Th. | AE4: CCE | AF4: Pra. | AG4: Total
E5: 0 | F5: 0 | H5: 0 | I5: 0 | K5: 0 | L5: 0 | N5: 0 | O5: 0 | Q5: 0 | R5: 0 | T5: 0 | U5: 0 | W5: 0 | Y5: 0 | AA5: 0 | AC5: 0 | AE5: 0 | AG5: 0 | AH5: --- | AI5: ----
E6: 0 | F6: 0 | H6: 0 | I6: 0 | K6: 0 | L6: 0 | N6: 0 | O6: 0 | Q6: 0 | R6: 0 | T6: 0 | U6: 0 | W6: 0 | Y6: 0 | AA6: 0 | AC6: 0 | AE6: 0 | AG6: 0 | AH6: --- | AI6: ----
E7: 0 | F7: 0 | H7: 0 | I7: 0 | K7: 0 | L7: 0 | N7: 0 | O7: 0 | Q7: 0 | R7: 0 | T7: 0 | U7: 0 | W7: 0 | Y7: 0 | AA7: 0 | AC7: 0 | AE7: 0 | AG7: 0 | AH7: --- | AI7: ----
E8: 0 | F8: 0 | H8: 0 | I8: 0 | K8: 0 | L8: 0 | N8: 0 | O8: 0 | Q8: 0 | R8: 0 | T8: 0 | U8: 0 | W8: 0 | Y8: 0 | AA8: 0 | AC8: 0 | AE8: 0 | AG8: 0 | AH8: --- | AI8: ----
E9: 0 | F9: 0 | H9: 0 | I9: 0 | K9: 0 | L9: 0 | N9: 0 | O9: 0 | Q9: 0 | R9: 0 | T9: 0 | U9: 0 | W9: 0 | Y9: 0 | AA9: 0 | AC9: 0 | AE9: 0 | AG9: 0 | AH9: --- | AI9: ----
E10: 0 | F10: 0 | H10: 0 | I10: 0 | K10: 0 | L10: 0 | N10: 0 | O10: 0 | Q10: 0 | R10: 0 | T10: 0 | U10: 0 | W10: 0 | Y10: 0 | AA10: 0 | AC10: 0 | AE10: 0 | AG10: 0 | AH10: --- | AI10: ----
E11: 0 | F11: 0 | H11: 0 | I11: 0 | K11: 0 | L11: 0 | N11: 0 | O11: 0 | Q11: 0 | R11: 0 | T11: 0 | U11: 0 | W11: 0 | Y11: 0 | AA11: 0 | AC11: 0 | AE11: 0 | AG11: 0 | AH11: --- | AI11: ----
E12: 0 | F12: 0 | H12: 0 | I12: 0 | K12: 0 | L12: 0 | N12: 0 | O12: 0 | Q12: 0 | R12: 0 | T12: 0 | U12: 0 | W12: 0 | Y12: 0 | AA12: 0 | AC12: 0 | AE12: 0 | AG12: 0 | AH12: --- | AI12: ----
E13: 0 | F13: 0 | H13: 0 | I13: 0 | K13: 0 | L13: 0 | N13: 0 | O13: 0 | Q13: 0 | R13: 0 | T13: 0 | U13: 0 | W13: 0 | Y13: 0 | AA13: 0 | AC13: 0 | AE13: 0 | AG13: 0 | AH13: --- | AI13: ----
E14: 0 | F14: 0 | H14: 0 | I14: 0 | K14: 0 | L14: 0 | N14: 0 | O14: 0 | Q14: 0 | R14: 0 | T14: 0 | U14: 0 | W14: 0 | Y14: 0 | AA14: 0 | AC14: 0 | AE14: 0 | AG14: 0 | AH14: --- | AI14: ----
E15: 0 | F15: 0 | H15: 0 | I15: 0 | K15: 0 | L15: 0 | N15: 0 | O15: 0 | Q15: 0 | R15: 0 | T15: 0 | U15: 0 | W15: 0 | Y15: 0 | AA15: 0 | AC15: 0 | AE15: 0 | AG15: 0 | AH15: --- | AI15: ----
E16: 0 | F16: 0 | H16: 0 | I16: 0 | K16: 0 | L16: 0 | N16: 0 | O16: 0 | Q16: 0 | R16: 0 | T16: 0 | U16: 0 | W16: 0 | Y16: 0 | AA16: 0 | AC16: 0 | AE16: 0 | AG16: 0 | AH16: --- | AI16: ----
E17: 0 | F17: 0 | H17: 0 | I17: 0 | K17: 0 | L17: 0 | N17: 0 | O17: 0 | Q17: 0 | R17: 0 | T17: 0 | U17: 0 | W17: 0 | Y17: 0 | AA17: 0 | AC17: 0 | AE17: 0 | AG17: 0 | AH17: --- | AI17: ----
E18: 0 | F18: 0 | H18: 0 | I18: 0 | K18: 0 | L18: 0 | N18: 0 | O18: 0 | Q18: 0 | R18: 0 | T18: 0 | U18: 0 | W18: 0 | Y18: 0 | AA18: 0 | AC18: 0 | AE18: 0 | AG18: 0 | AH18: --- | AI18: ----
E19: 0 | F19: 0 | H19: 0 | I19: 0 | K19: 0 | L19: 0 | N19: 0 | O19: 0 | Q19: 0 | R19: 0 | T19: 0 | U19: 0 | W19: 0 | Y19: 0 | AA19: 0 | AC19: 0 | AE19: 0 | AG19: 0 | AH19: --- | AI19: ----
E20: 0 | F20: 0 | H20: 0 | I20: 0 | K20: 0 | L20: 0 | N20: 0 | O20: 0 | Q20: 0 | R20: 0 | T20: 0 | U20: 0 | W20: 0 | Y20: 0 | AA20: 0 | AC20: 0 | AE20: 0 | AG20: 0 | AH20: --- | AI20: ----
E21: 0 | F21: 0 | H21: 0 | I21: 0 | K21: 0 | L21: 0 | N21: 0 | O21: 0 | Q21: 0 | R21: 0 | T21: 0 | U21: 0 | W21: 0 | Y21: 0 | AA21: 0 | AC21: 0 | AE21: 0 | AG21: 0 | AH21: --- | AI21: ----
E22: 0 | F22: 0 | H22: 0 | I22: 0 | K22: 0 | L22: 0 | N22: 0 | O22: 0 | Q22: 0 | R22: 0 | T22: 0 | U22: 0 | W22: 0 | Y22: 0 | AA22: 0 | AC22: 0 | AE22: 0 | AG22: 0 | AH22: --- | AI22: ----
E23: 0 | F23: 0 | H23: 0 | I23: 0 | K23: 0 | L23: 0 | N23: 0 | O23: 0 | Q23: 0 | R23: 0 | T23: 0 | U23: 0 | W23: 0 | Y23: 0 | AA23: 0 | AC23: 0 | AE23: 0 | AG23: 0 | AH23: --- | AI23: ----
E24: 0 | F24: 0 | H24: 0 | I24: 0 | K24: 0 | L24: 0 | N24: 0 | O24: 0 | Q24: 0 | R24: 0 | T24: 0 | U24: 0 | W24: 0 | Y24: 0 | AA24: 0 | AC24: 0 | AE24: 0 | AG24: 0 | AH24: --- | AI24: ----
E25: 0 | F25: 0 | H25: 0 | I25: 0 | K25: 0 | L25: 0 | N25: 0 | O25: 0 | Q25: 0 | R25: 0 | T25: 0 | U25: 0 | W25: 0 | Y25: 0 | AA25: 0 | AC25: 0 | AE25: 0 | AG25: 0 | AH25: --- | AI25: ----
E26: 0 | F26: 0 | H26: 0 | I26: 0 | K26: 0 | L26: 0 | N26: 0 | O26: 0 | Q26: 0 | R26: 0 | T26: 0 | U26: 0 | W26: 0 | Y26: 0 | AA26: 0 | AC26: 0 | AE26: 0 | AG26: 0 | AH26: --- | AI26: ----
E27: 0 | F27: 0 | H27: 0 | I27: 0 | K27: 0 | L27: 0 | N27: 0 | O27: 0 | Q27: 0 | R27: 0 | T27: 0 | U27: 0 | W27: 0 | Y27: 0 | AA27: 0 | AC27: 0 | AE27: 0 | AG27: 0 | AH27: --- | AI27: ----
E28: 0 | F28: 0 | H28: 0 | I28: 0 | K28: 0 | L28: 0 | N28: 0 | O28: 0 | Q28: 0 | R28: 0 | T28: 0 | U28: 0 | W28: 0 | Y28: 0 | AA28: 0 | AC28: 0 | AE28: 0 | AG28: 0 | AH28: --- | AI28: ----
E29: 0 | F29: 0 | H29: 0 | I29: 0 | K29: 0 | L29: 0 | N29: 0 | O29: 0 | Q29: 0 | R29: 0 | T29: 0 | U29: 0 | W29: 0 | Y29: 0 | AA29: 0 | AC29: 0 | AE29: 0 | AG29: 0 | AH29: --- | AI29: ----
